{"text_format":"1","workbook":"xlsx","n_sheets":5,"sheets":["DADOS","DEMANDA","TAB","AUX","CAMPOS"],"not_rendered":{"charts":0,"images":0,"macros":1,"external_links":0,"defined_names":5,"comments":0,"pivot_tables":0},"unopened":[],"bounds":{"document_bytes":16777216,"sheet_cells":100000,"rows_first":2000,"rows_last":500,"rows_between":2000,"halvings":0,"cell_chars":16384,"cell_head_chars":4096},"cells_cut":0,"cells_raw":0,"read":"whole","date_system":"1900"}

{"sheet":"DADOS","index":0,"n_rows":56,"n_cols":41,"rows_kept":56,"cut":false,"hidden":false,"merged":[[7,2,10,4],[6,5,6,11],[7,5,10,21],[13,2,13,4],[14,2,14,4],[15,2,15,4],[16,2,16,4],[17,2,18,4],[15,18,15,19],[15,20,15,21],[6,17,6,19],[6,20,6,21],[6,2,6,4],[6,12,6,16],[11,6,12,21],[11,2,12,5],[13,5,13,21],[14,5,14,8],[14,9,14,10],[14,11,14,14],[14,15,14,17],[14,18,14,21],[15,5,15,14],[15,16,15,17],[20,2,21,5],[20,6,21,21],[16,5,16,10],[16,11,16,12],[16,13,16,19],[17,5,17,21],[18,5,18,21],[19,5,19,9],[19,11,19,15],[19,17,19,21],[19,2,19,4],[27,2,27,4],[27,5,27,6],[27,20,27,21],[27,7,27,15],[28,2,28,21],[27,16,27,17],[27,18,27,19],[35,2,39,21],[22,2,22,4],[23,20,23,21],[24,13,24,17],[24,5,24,10],[23,5,23,14],[22,5,22,21],[24,11,24,12],[24,18,24,19],[24,20,24,21],[25,2,26,5],[25,6,26,21],[23,16,23,17],[23,18,23,19],[24,2,24,4],[23,2,23,4],[29,19,29,21],[30,2,30,3],[30,4,30,6],[30,7,30,8],[30,9,30,11],[30,12,30,13],[30,14,30,16],[30,17,30,18],[30,19,30,21],[29,2,29,3],[29,4,29,6],[29,7,29,8],[29,9,29,11],[29,12,29,13],[29,14,29,16],[29,17,29,18],[31,12,31,13],[31,14,31,16],[31,17,31,18],[31,19,31,21],[32,2,32,3],[32,4,32,6],[32,7,32,8],[32,9,32,11],[32,12,32,13],[32,14,32,16],[31,2,31,3],[31,4,31,6],[31,7,31,8],[31,9,31,11],[32,17,32,18],[32,19,32,21],[33,2,33,3],[33,4,33,6],[33,7,33,8],[33,9,33,11],[33,12,33,13],[33,14,33,16],[33,17,33,18],[33,19,33,21],[55,2,60,21],[0,2,0,21],[3,2,5,21],[47,5,47,18],[47,2,47,4],[47,19,47,21],[48,2,54,21],[40,2,41,5],[40,6,41,21],[46,2,46,4],[44,2,45,4],[43,2,43,4],[42,2,42,4],[42,5,42,21],[43,18,43,21],[45,5,45,21],[46,5,46,9],[46,11,46,15],[44,5,44,21],[46,17,46,21],[34,2,34,21],[43,5,43,8],[43,9,43,10],[43,11,43,14],[43,15,43,17]]}
[null,null,"ANTES DE CADASTRAR OS DADOS, UTILIZE A OPÇÃO \"SALVAR COMO\" E CRIE UMA CÓPIA DESTE ARQUIVO"]
[null,null,null,null,null,null,null,null,null,null,null,null,null,null,null,null,null,null,null,null,null,null,null,null,null,null,"UF","mês","TEXTO","TIPO DE PROJETO","PESSOA","DOC1","DOC2","ZONA","MEDIÇÕES","MED","OBS","ORGAO","ano"]
[null,null,null,null,null,null,null,null,null,null,null,null,null,null,null,null,null,null,null,null,null,null,null,null,null,null,"PB","Janeiro","Favor Informar o total de UCs do empreendimento.","Subestação Aérea ","Pessoa Física","CPF:","RG/EMISSOR:","Urbana","NÃO","Nº UC:","OBSERVAÇÃO:","CREA",{"$f":"YEAR(TODAY())","v":2017}]
[null,null,"MEMORIAL TÉCNICO PARA PROJETO ELÉTRICO\nDE PADRÃO DE MEDIÇÃO PARA SUBESTAÇÃO AÉREA",null,null,null,null,null,null,null,null,null,null,null,null,null,null,null,null,null,null,null,null,null,null,null,"AC","Feveireiro","Favor informar a existencia ou não de medição(ões) existente(s) no local a ser atendido.","Subestação p/ Canteiro de Obras","Poder Publico","CNPJ:","INSC.ESTADUAL:","Rural","SIM","Nº MEDIDOR:","OBSERVAÇÃO: Por se tratar de um nº superior a 20 UCs existentes, favor informar as demais medições no espaço abaixo.","CAU",{"$f":"AM3+1","v":2018}]
[null,null,null,null,null,null,null,null,null,null,null,null,null,null,null,null,null,null,null,null,null,null,null,null,null,null,"AL","Março","Informo a NÃO EXISTÊNCIA de unidades Ligadas ou Desligadas mesmo que provinientes de imóvel já demolido no local a ser atendido.",null,"Empresa Privada",null,null,null,null,null,null,"Outros",{"$f":"AM4+1","v":2019}]
[null,null,null,null,null,null,null,null,null,null,null,null,null,null,null,null,null,null,null,null,null,null,null,null,null,null,"AM","Abril","Descrição das UC(S) ou Medidor (es) existente(s) no local a ser atendido."]
[null,null,"TIPO DE PROJETO:",null,null,"Subestação Aérea ",null,null,null,null,null,null,"PREVISÃO DE ATENDIMENTO:",null,null,null,null,"Junho",null,null,2017,null,null,null,null,null,"AP","Maio","Favor Informar o quantitativo de UC(s) existente(s)."]
[null,null,"FINALIDADE:",null,null,"Atender a um Hotel com entrada em tensão primária.",null,null,null,null,null,null,null,null,null,null,null,null,null,null,null,null,null,null,null,null,"BA","Junho","Existem Dados não informados para os campos acima!!! Favor preencher os campos solicitados!!!"]
[null,null,null,null,null,null,null,null,null,null,null,null,null,null,null,null,null,null,null,null,null,null,null,null,null,null,"CE","Julho"]
[null,null,null,null,null,null,null,null,null,null,null,null,null,null,null,null,null,null,null,null,null,null,null,null,null,null,"DF","Agosto"]
[null,null,null,null,null,null,null,null,null,null,null,null,null,null,null,null,null,null,null,null,null,null,null,null,null,null,"ES","Setembro"]
[null,null,"DADOS DO PROPRIETÁRIO",null,null,null,{"$f":"AC16","v":""},null,null,null,null,null,null,null,null,null,null,null,null,null,null,null,null,null,null,null,"GO","Outubro"]
[null,null,null,null,null,null,null,null,null,null,null,null,null,null,null,null,null,null,null,null,null,null,null,null,null,null,"MA","Novembro"]
[null,null,"NOME:",null,null,"Proprietário Exemplo",null,null,null,null,null,null,null,null,null,null,null,null,null,null,null,null,null,null,null,null,"MG","Dezembro"]
[null,null,"PESSOA:",null,null,"Empresa Privada",null,null,null,{"$f":"IF((F15=\"\"),\"-\",(IF((F15=$AE$3),$AF$3,$AF$4)))","v":"CNPJ:"},null,"25.086.034/0001-71 ",null,null,null,{"$f":"IF((F15=\"\"),\"-\",(IF((F15=$AE$3),$AG$3,$AG$4)))","v":"INSC.ESTADUAL:"},null,null,123456,null,null,null,null,null,null,null,"MS",null,null,0]
[null,null,"ENDEREÇO:",null,null,"Rua Endereço do Proprietario",null,null,null,null,null,null,null,null,null,"Nº:",111,null,"COMP.:",null,null,null,null,null,null,null,"MT","proprietarios",{"$f":"IF((AD16>0),$AC$8,\"\")","v":""},{"$f":"COUNTIF(AE16:AG16,$AD$15)","v":0},{"$f":"F7","v":"Subestação Aérea "},{"$f":"U7","v":2017},{"$f":"F8","v":"Atender a um Hotel com entrada em tensão primária."}]
[null,null,"BAIRRO:",null,null,"Manaira",null,null,null,null,null,"CIDADE:",null,"João Pessoa",null,null,null,null,null,null,"UF:","PB",null,null,null,null,"PA","obra",{"$f":"IF((AD17>0),$AC$8,\"\")","v":""},{"$f":"COUNTIF(AE17:AO17,$AD$15)","v":0},{"$f":"F14","v":"Proprietário Exemplo"},{"$f":"F15","v":"Empresa Privada"},{"$f":"L15","v":"25.086.034/0001-71 "},{"$f":"S15","v":123456},{"$f":"F16","v":"Rua Endereço do Proprietario"},{"$f":"Q16","v":111},{"$f":"F17","v":"Manaira"},{"$f":"N17","v":"João Pessoa"},{"$f":"V17","v":"PB"},{"$f":"F18","v":"email@proprietario.com.br"},{"$f":"F20","v":"(83) 12345-6789"}]
[null,null,"EMAIL:",null,null,"email@proprietario.com.br",null,null,null,null,null,null,null,null,null,null,null,null,null,null,null,null,null,null,null,null,"ão","mediç",{"$f":"IF((AD18>0),$AC$8,\"\")","v":""},{"$f":"COUNTIF(AE18:AJ18,$AD$15)","v":0},{"$f":"F23","v":"Hotel Exemplo"},{"$f":"F24","v":"Rua do Hotel Exemplo"},{"$f":"Q24","v":222},{"$f":"F25","v":"Tambaú"},{"$f":"N25","v":"João Pessoa"},{"$f":"U25","v":"Urbana"}]
[null,null,null,null,null,null,null,null,null,null,null,null,null,null,null,null,null,null,null,null,null,null,null,null,null,null,"PI","OBS",{"$f":"IF((U28>20),$AK$4,$AK$3)","v":"OBSERVAÇÃO:"},{"$f":"COUNTIF(AE19:AG19,$AD$15)","v":0}]
[null,null,"TELEFONE-01:",null,null,"(83) 12345-6789",null,null,null,null,"02:",null,null,null,null,null,"03:",null,null,null,null,null,null,null,null,null,"PR","PROJ",{"$f":"AC18","v":""}]
[null,null," DADOS DA OBRA",null,null,null,{"$f":"AC17","v":""},null,null,null,null,null,null,null,null,null,null,null,null,null,null,null,null,null,null,null,"RJ","PARECER",{"$f":"IF((AD21>0),$AC$8,\"\")","v":""},{"$f":"COUNTIF(AE21:AJ21,$AD$15)","v":0},{"$f":"F43","v":"Projetista Modelo"},{"$f":"F44","v":4551626},{"$f":"L44","v":"CREA"},{"$f":"S44","v":"123.4565.789-11"},{"$f":"F45","v":"email@projetista.com.br"},{"$f":"F47","v":"(83) 98765-4321"}]
[null,null,null,null,null,null,null,null,null,null,null,null,null,null,null,null,null,null,null,null,null,null,null,null,null,null,"RN","PARECER ENERGISA:",{"$f":"IF((AD21=0),AB22,\"\")","v":"PARECER ENERGISA:"}]
[null,null,"EDIFICAÇÃO:",null,null,"Hotel Exemplo",null,null,null,null,null,null,null,null,null,null,null,null,null,null,null,null,null,null,null,null,"RO",1,{"$f":"VLOOKUP(AB23,AB24:AC27,2,FALSE)","v":"Descrição das UC(S) ou Medidor (es) existente(s) no local a ser atendido."}]
[null,null,"ENDEREÇO:",null,null,"Rua do Hotel Exemplo",null,null,null,null,null,null,null,null,null,"N°:",222,null,"COMP.:",null,null,null,null,null,null,null,"RR",{"$f":"IF((Q28=0),1,0)","v":0},"Favor informar a existencia ou não de medição(ões) existente(s) no local a ser atendido."]
[null,null,"BAIRRO:",null,null,"Tambaú",null,null,null,null,null,"CIDADE:",null,"João Pessoa",null,null,null,null,"ZONA:",null,"Urbana",null,null,null,null,null,"RS",{"$f":"IF(AND((AB24=0),(Q28=AI3)),1,0)","v":0},"Informo a NÃO EXISTÊNCIA de unidades Ligadas ou Desligadas mesmo que provinientes de imóvel já demolido no local a ser atendido."]
[null,null,"MEDIÇÕES EXISTENTES: ",null,null,null,{"$f":"AC18","v":""},null,null,null,null,null,null,null,null,null,null,null,null,null,null,null,null,null,null,null,"SC",{"$f":"IF(AND((AB25=0),(Q28=AI4),(U28=0)),1,0)","v":0},"Favor Informar o quantitativo de UC(s) existente(s)."]
[null,null,null,null,null,null,null,null,null,null,null,null,null,null,null,null,null,null,null,null,null,null,null,null,null,null,"SE",{"$f":"IF(AND((AB26=0),(Q28=AI4),(U28>0)),1,0)","v":1},"Descrição das UC(S) ou Medidor (es) existente(s) no local a ser atendido."]
[null,null,"TOTAL DE UNIDADES:",null,null," 01 Medição",null,"EXISTE ALGUMA MEDIÇÃO NO LOCAL A SER ATENDIDO?",null,null,null,null,null,null,null,null,"SIM",null,"QUANTAS?",null,1,null,null,null,null,null,"SP"]
[null,null,{"$f":"AC23","v":"Descrição das UC(S) ou Medidor (es) existente(s) no local a ser atendido."},null,null,null,null,null,null,null,null,null,null,null,null,null,null,null,null,null,null,null,null,null,null,null,"TO"]
[null,null,"Nº UC:",null,1234566]
[null,null,null,null,null,null,null,null,null,null,null,null,null,null,null,null,null,null,null,null,null,null,null,null,null,null,null,null,null,"Favor preencher os dods referente ao campo "]
[null,null,null,null,null,null,null,null,null,null,null,null,null,null,null,null,null,null,null,null,null,null,null,null,null,null,null,"TIPO DE PROJETO",{"$f":"CONCATENATE($AD$31,AB32)","v":"Favor preencher os dods referente ao campo TIPO DE PROJETO"},{"$f":"CONCATENATE($AD$31,AB32)","v":"Favor preencher os dods referente ao campo TIPO DE PROJETO"},"o"]
[null,null,null,null,null,null,null,null,null,null,null,null,null,null,null,null,null,null,null,null,null,null,null,null,null,null,null,"PREVISAO DE ATENDIMENTO"]
[null,null,null,null,null,null,null,null,null,null,null,null,null,null,null,null,null,null,null,null,null,null,null,null,null,null,"DADOS DO PROPRIETÁRIO: ","NOME"]
[null,null,{"$f":"AC19","v":"OBSERVAÇÃO:"},null,null,null,null,null,null,null,null,null,null,null,null,null,null,null,null,null,null,null,null,null,null,null,null,"PESSOA"]
[null,null,"Existe uma medição do canteiro de obras em baixa tensão tarifada no grupo B que deverá ser desativada quando da energização do hotel que será atendido em média tensão tarifado no Grupo A",null,null,null,null,null,null,null,null,null,null,null,null,null,null,null,null,null,null,null,null,null,null,null,null,"CPF/CNPJ"]
[null,null,null,null,null,null,null,null,null,null,null,null,null,null,null,null,null,null,null,null,null,null,null,null,null,null,null,"RG/EMISSOR/INSC ESTADUAL"]
[null,null,null,null,null,null,null,null,null,null,null,null,null,null,null,null,null,null,null,null,null,null,null,null,null,null,null,"ENDEREÇO"]
[]
[]
[null,null,"DADOS DO RESP. TÉCNICO",null,null,null,{"$f":"AC20","v":""}]
[]
[null,null,"NOME:",null,null,"Projetista Modelo"]
[null,null,"REG. PROFISSIONAL:",null,null,4551626,null,null,null,"ORGÃO:",null,"CREA",null,null,null,"CPF:",null,null,"123.4565.789-11"]
[null,null,"EMAIL:",null,null,"email@projetista.com.br"]
[]
[null,null,"TELEFONE-01:",null,null,"(83) 98765-4321",null,null,null,null,"02:",null,null,null,null,null,"03:"]
[null,null,null,null,null,{"$f":"AC21","v":""},null,null,null,null,null,null,null,null,null,null,null,null,null,{"$f":"AC22","v":"PARECER ENERGISA:"}]
[]
[]
[]
[]
[]
[]
[]
[null,null,"ESPAÇO PARA INSERIR LOGOTIPO DA EMPRESA RESPONSAVEL PELA ELABORAÇÃO DO PROJETO"]

{"sheet":"DEMANDA","index":1,"n_rows":158,"n_cols":48,"rows_kept":158,"cut":false,"hidden":false,"merged":[[45,1,45,17],[35,1,35,9],[36,1,37,9],[38,1,38,9],[20,11,34,17],[39,1,44,9],[3,10,44,10],[19,11,19,17],[35,11,35,17],[36,11,44,17],[34,1,34,7],[16,11,17,11],[16,16,16,17],[16,12,17,15],[18,12,18,15],[13,16,14,16],[13,17,14,17],[11,12,11,14],[12,12,12,14],[0,1,0,17],[10,11,11,11],[13,11,14,11],[13,12,14,13],[7,14,7,15],[13,14,14,15],[9,11,9,12],[9,13,9,17],[1,1,1,17],[2,1,2,17],[3,1,3,9],[33,1,33,7],[3,11,3,17],[5,12,5,17],[6,12,6,13],[6,14,6,15],[6,16,6,17],[4,12,4,17],[6,2,6,9],[5,2,5,9],[4,2,4,9],[10,12,10,16],[11,15,11,16],[12,15,12,16],[7,12,7,13],[15,14,15,15],[15,12,15,13]]}
[null,{"$f":"AC37","v":"DADOS CONFIRMADOS PARA AVALIAÇÃO DA CONCESSIONÁRIA"}]
[]
[null,"DECLARAÇÃO DE CARGA E CÁLCULO E DEMANDA "]
[null,"DECLARAÇÃO DE CARGA INSTALADA",null,null,null,null,null,null,null,null,null,"CÁLCULO DA DEMANDA INDIVIDUAL",null,null,null,null,null,null,null,null,null,null,null,null,null,null,null,{"$f":"M5","v":"15 - Indústria metalúrgica"},"Carga","Fd","D","(",")"," x ","DEMANDA (KVA) = ("," = "," + "]
[null,"PROPRIETÁRIO:",{"$f":"AB34","v":"Proprietário Exemplo"},null,null,null,null,null,null,null,null,"RAMO DE ATIVIDADE:","15 - Indústria metalúrgica",null,null,null,null,null,null,null,null,null,null,null,null,null,null,1,{"$f":"TRUNC((VLOOKUP($AB$4,AUX!$T$5:$Z$169,5,FALSE)),2)","v":234.46},{"$f":"(VLOOKUP($AB$4,AUX!$T$5:$Z$169,2,FALSE))/100","v":0.65},{"$f":"TRUNC((AC5*AD5),2)","v":152.38999999999999},{"$f":"CONCATENATE(AI4,$AF$4,AC5,$AH$4,AD5,$AJ$4,AE5,$AG$4)","v":"DEMANDA (KVA) = ((234,46 x 0,65 = 152,39)"},null,0,"A metodologia do Cálculo de Demanda ainda não foi definida pelo projetista"]
[null,"EDIFICAÇÃO:",{"$f":"AB35","v":"Hotel Exemplo"},null,null,null,null,null,null,null,null,"MÉTODO DE CÁLCULO:","Utilizar  Fator de Demanda e Fator de Potencia conforme NDU 002",null,null,null,null,null,null,null,null,null,null,null,null,null,null,2,{"$f":"TRUNC((VLOOKUP($AB$4,AUX!$T$5:$Z$169,6,FALSE)),2)","v":0},{"$f":"(VLOOKUP($AB$4,AUX!$T$5:$Z$169,3,FALSE))/100","v":0},{"$f":"TRUNC((AC6*AD6),2)","v":0},{"$f":"IF((AE6=0),\"\",(CONCATENATE(AK4,$AF$4,AC6,$AH$4,AD6,$AJ$4,AE6,$AG$4)))","v":""},null,{"$f":"AI9","v":"Utilizar  Fator de Demanda e Fator de Potencia conforme NDU 002"},{"$f":"CONCATENATE(AF5,AF6,AF7)","v":"DEMANDA (KVA) = ((234,46 x 0,65 = 152,39)) / 0,92"}]
[null,"ENDEREÇO:","Rua do Hotel Exemplo",null,null,null,null,null,null,null,null,"TIPO DE LIGAÇÃO:","Trifásico",null,"RAMAL DE LIGAÇÃO:",null,"Cabo nu - 2AWG",null,null,null,null,null,null,null,null,null,null,3,{"$f":"TRUNC((VLOOKUP($AB$4,AUX!$T$5:$Z$169,7,FALSE)),2)","v":0},{"$f":"(VLOOKUP($AB$4,AUX!$T$5:$Z$169,4,FALSE))/100","v":0},0,{"$f":"IF((AE7=0),AG7,(CONCATENATE(AK4,$AF$4,AC7,$AH$4,AD7,$AJ$4,AE7,$AG$4,AG7)))","v":") / 0,92"},") / 0,92",{"$f":"AI10","v":"Utilizar Fator de Demanda e Fator de Potência Definidos pelo Projetista"},"DEMANDA (KVA) = (CARGA (KW) x FD) / FP",{"$f":"SUM(I9:I33)","v":234.464}]
[null,"CARGA","TIPO DE CARGA","QTD","EIXO\n(CV)","TENSÃO \n(V)","POT. IND.\n(W)","FP","CARGA\n(kW)","CARGA\n(kVA)",null,"CARGA\n (kW)","FD",null,"FP",null,"DEMANDA\n (kVA)","DEMANDA\n (kW)",null,null,null,null,null,null,null,null,{"$f":"IF(OR(L13=0,M13=0),0,1)","v":1},"total",{"$f":"SUM(AC5:AC7)","v":234.46},{"$f":"AE8/AC8","v":0.6499616139213511},{"$f":"SUM(AE5:AE7)","v":152.38999999999999},{"$f":"TRUNC((AE8/0.92),2)","v":165.64}]
[null,"Iluminação","Ilum./Tomadas ",100,null,"220V",60,0.92,{"$f":"IF(OR((C9=0),(D9=0)),\"-\",(IF(OR((C9=$AF$16),(C9=$AF$17)),(D9*E9*0.736),((D9*G9)/1000))))","v":6},{"$f":"IF(OR((I9=\"-\"),(H9=0)),\"-\",(I9/H9))","v":6.5217391304347823},null,{"$f":"IF((AB18=0),\"-\",AB18)","v":234.464},{"$f":"IF(OR(AB18=0,M5=0,M6<>AI9),\"-\",AD8)","v":0.6499616139213511},null,{"$f":"IF(OR(AB18=0,M5=0,M6<>AI9),\"-\",0.92)","v":0.92},null,{"$f":"IF(OR(AB18=0,M6=0),\"-\",((IF((M6=AI9),AF8,(IF(OR(N9=\"\",P9=\"\"),\"-\",(L9*N9)/P9))))))","v":165.64},{"$f":"IF((Q9=\"-\"),\"-\",(IF((M6=AH6),(Q9*O9),(Q9*P9))))","v":152.3888},null,null,null,null,null,null,null,null,"FASE",{"$f":"IF((M7=\"\"),\"-\",(VLOOKUP(M7,AJ9:AK10,2,FALSE)))","v":"3#"},{"$f":"IF(OR((M13=\"\"),(AB18<=0)),\"-\",1)","v":1},null,null,"Ilum./Tomadas ","220V",{"$f":"AUX!T5","v":"1 - Indústria de extração e tratamento de minerais"},"Utilizar  Fator de Demanda e Fator de Potencia conforme NDU 002",{"$f":"IF(OR(AJ12>0,AC18>15),AJ10,AJ11)","v":"Trifásico"},{"$f":"IF((AJ9=AJ10),\"3#\",\"1#\")","v":"3#"},"Subterraneo","XLPE /EPR/HEPR - 0,6/1kV",5,"GRUPO A",{"$f":"AO9","v":"GRUPO A"},"HORO-SAZONAL VERDE",{"$f":"IF((AR12=0),AR13,(IF((L19=AO9),AQ9,AQ11)))","v":"HORO-SAZONAL VERDE"},null,null,null,{"$f":"C9","v":"Ilum./Tomadas "}]
[null,"Tomadas","Ilum./Tomadas ",60,null,"220V",300,0.92,{"$f":"IF(OR((C10=0),(D10=0)),\"-\",(IF(OR((C10=$AF$16),(C10=$AF$17)),(D10*E10*0.736),((D10*G10)/1000))))","v":18},{"$f":"IF(OR((I10=\"-\"),(H10=0)),\"-\",(I10/H10))","v":19.565217391304348},null,"Fórmula Adotada para a Demanda:",null,{"$f":"VLOOKUP(M6,AH5:AI7,2,FALSE)","v":"DEMANDA (KVA) = ((234,46 x 0,65 = 152,39)) / 0,92"},null,null,null,null,null,null,null,null,null,null,null,null,"SE",{"$f":"IF((AA8=0),\"-\",(CONCATENATE(AB9,AC10)))","v":"3#225"},{"$f":"L13","v":225},null,null,"Aquecimento","380V",{"$f":"AUX!T6","v":"2 - Extração de minérios de ferro"},"Utilizar Fator de Demanda e Fator de Potência Definidos pelo Projetista","Trifásico","3#","Cabo nu - 2AWG","PVC - 0,6/1kV",6,"GRUPO A OPTANTE B",{"$f":"IF((AC10<AB28),AO10,AO9)","v":"GRUPO A"},"HORO-SAZONAL AZUL",{"$f":"IF((AR12=0),AR13,(IF((L19=AO9),AQ10,AQ11)))","v":"HORO-SAZONAL AZUL"},null,null,null,{"$f":"C10","v":"Ilum./Tomadas "}]
[null,"Chuv. Eletrico","Aquecimento",8,null,"220V",4500,1,36,36,null,"SE ADOTADA\n(kVA)","CABEAMENTO DE BAIXA TENSÃO",null,null,null,null,"ELETRODUTO",null,null,null,null,null,null,null,null,"CABO",{"$f":"IF((AA8=0),\"-\",(VLOOKUP($AB$10,AUX!$A$4:$J$16,AC11,FALSE)))","v":"3#240(120)"},{"$f":"IF(OR((M13=\"\"),($AC$9=\"-\")),12,(VLOOKUP(M13,AM9:AN10,2,FALSE)))","v":5},null,null,"Tomadas Especiais",null,{"$f":"AUX!T8","v":"3 - Extração de minérios de metais não ferrosos"},null,"Monofásico",null,"Cabo nu - 1/0AWG",null,null,null,null,"CONVENCIONAL",{"$f":"IF((AR12=0),AR13,(IF((Q19>150),AR10,AQ11)))","v":"CONVENCIONAL"},null,null,null,"Aquecimento"]
[null,"Central de Ar","Refrigeração",2,null,"380V",60000,0.9,120,133.33333333333334,null,null,"ISOLAMENTO",null,null,"CONDUTORES (mm²)",null,"(mm)",null,null,null,null,null,null,null,null,"ELET",{"$f":"IF((AA8=0),\"-\",(VLOOKUP($AB$10,AUX!$A$4:$J$16,AC12,FALSE)))","v":100},{"$f":"IF(OR((M13=\"\"),($AC$9=\"-\")),12,(AC11+2))","v":7},null,null,"Fogão/Forno Elétrico",null,{"$f":"AUX!T9","v":"4 - Extração de minerais para fabricação de adubos fertilizantes e para elaboração de outros produtos químicos"},null,{"$f":"COUNTIF(F9:F33,AG10)","v":3},null,"Cabo Protegido - 50mm²",null,null,null,null,{"$f":"IF(AND(L19=AO9,M19=AQ10),1,0)","v":1},{"$f":"IF((L19=0),0,1)","v":1},null,null,null,"Refrigeração"]
[null,"Exautores","Motriz Monofásica ",12,2,"220V",2208,0.96,17.664000000000001,18.400000000000002,null,225,"XLPE /EPR/HEPR - 0,6/1kV",null,null,{"$f":"AB11","v":"3#240(120)"},null,{"$f":"AB12","v":100},null,null,null,null,null,null,null,null,"POSTE",{"$f":"IF((AA8=0),\"-\",(VLOOKUP($AB$10,AUX!$A$4:$J$16,AC13,FALSE)))","v":1000},{"$f":"IF(($AC$9=\"-\"),12,9)","v":9},null,null,"Refrigeração",null,{"$f":"AUX!T10","v":"5 - Extração de pedras e outros minerais para construção"},null,null,null,"Cabo Protegido - 120mm²",null,null,null,{"$f":"AQ14*AQ15*AQ16","v":1},{"$f":"AQ14*AQ17*AQ18","v":1},"Favor Informar o Grupo Tarifário!!!",null,null,null,"Motriz Monofásica "]
[null,"Bomba ","Motriz Trifásica",4,5,"380V",3680,0.9,14.719999999999999,16.355555555555554,null,"POSTE\n(daN)","DISJUNTOR\n(A)",null,"ELO FUSIVEL",null,"RELAÇÃO DE TC","MEDIDOR",null,null,null,null,null,null,null,null,"DISJUNTOR",{"$f":"IF((AA8=0),\"-\",(VLOOKUP($AB$10,AUX!$A$4:$J$16,AC14,FALSE)))","v":350},{"$f":"IF(($AC$9=\"-\"),12,4)","v":4},null,null,"Raios-X",null,{"$f":"AUX!T11","v":"6 - Extração de pedras e outros minerais não metálicos"},null,null,null,"Cabo Protegido - 185mm²",null,null,null,"A",{"$f":"IF((L19=AO9),1,0)","v":1},null,null,null,null,"Motriz Trifásica"]
[null,"Elevador","Motriz Trifásica",3,10,"380V",7360,0.9,22.08,24.533333333333331,null,null,null,null,null,null,null,null,null,null,null,null,null,null,null,null,"ELO",{"$f":"IF((AA8=0),\"-\",(VLOOKUP($AB$10,AUX!$A$4:$J$16,AC15,FALSE)))","v":"10K"},{"$f":"IF(($AC$9=\"-\"),12,10)","v":10},null,null,"Maq. Solda",null,{"$f":"AUX!T12","v":"7 - Aparelhamento de pedras para construção e execução de trabalhos em mármore, ardósia, granito e outras pedras"},null,null,null,null,null,null,null,"<=2500",{"$f":"IF((Q19<=2500),1,0)","v":1},null,null,null,null,"Motriz Trifásica"]
[null,null,null,null,null,null,null,null,"-","-",null,{"$f":"AB13","v":1000},{"$f":"AB14","v":350},null,{"$f":"AB15","v":"10K"},null,{"$f":"AB16","v":"250:5"},{"$f":"AB17","v":"Medição Trif. Indireta"},null,null,null,null,null,null,null,null,"TC",{"$f":"IF((AA8=0),\"-\",(VLOOKUP($AB$10,AUX!$A$4:$J$16,AC16,FALSE)))","v":"250:5"},{"$f":"IF(($AC$9=\"-\"),12,3)","v":3},null,null,"Motriz Monofásica ",null,{"$f":"AUX!T13","v":"8 - Britamento de pedras"},null,null,null,null,null,null,null,"c<150",{"$f":"IF(AND(M19=AQ11,Q19<150),1,IF((M19<>AQ11),1,0))","v":1},null,null,null,null,0]
[null,null,null,null,null,null,null,null,"-","-",null,"OPÇÃO TARIFÁRIA","MODALIDADE TARIFÁRIA",null,null,null,"DEMANDA CONTRATADA (kW)",null,null,null,null,null,null,null,null,null,"MEDIDOR",{"$f":"IF((AA8=0),\"-\",(VLOOKUP($AB$10,AUX!$A$4:$K$16,AC17,FALSE)))","v":"Medição Trif. Indireta"},{"$f":"IF(($AC$9=\"-\"),12,11)","v":11},null,null,"Motriz Trifásica",null,{"$f":"AUX!T15","v":"9 - Fabricação de cal"},null,null,null,null,null,null,null,"hs azul",{"$f":"IF((M19=AQ10),1,0)","v":1},null,null,null,null,0]
[null,null,null,null,null,null,null,null,"-","-",null,null,null,null,null,null,"FORA PONTA","PONTA",null,null,null,null,null,null,null,null,"CARGA",{"$f":"SUM(I9:I33)","v":234.464},{"$f":"Q9","v":165.64},{"$f":"IF(OR(AB18=0,M6=0),\"-\",(IF((M6=AI9),AE8,((L9*N9)/P9))))","v":152.38999999999999},15.4,null,null,{"$f":"AUX!T16","v":"10 - Fabricação de telhas, tijolos e outros artigos de barro cozido exclusive cerâmica"},null,null,null,null,null,null,null,"<=2500",{"$f":"IF((R19<=2500),1,0)","v":1},null,null,null,null,0]
[null,null,null,null,null,null,null,null,"-","-",null,"GRUPO A","HORO-SAZONAL AZUL",null,null,null,100,180,null,null,null,null,null,null,null,null,"CONTRATADA",{"$f":"Q19/0.92","v":108.69565217391303},{"$f":"R19/0.92","v":195.65217391304347},null,null,null,null,{"$f":"AUX!T18","v":"11 - Fabricação de material cerâmico - exclusive de barro cozido"},null,null,null,null,null,null,null,null,null,null,null,null,null,0]
[null,null,null,null,null,null,null,null,"-","-",null,"NOTAS COMPLEMENTARES:",null,null,null,null,null,null,null,null,null,null,null,null,null,null,"trafo min",{"$f":"IF(($M$7=$AJ$11),(VLOOKUP($AB$18,$AA$21:$AF$24,6,TRUE)),(IF(($M$7=$AJ$10),(VLOOKUP($AC$18,$AA$21:$AB$31,2,TRUE)),$AF$25)))","v":225},"x","SE Incompatível","a",null,null,{"$f":"AUX!T20","v":"12 - Fabricação de cimento"},null,null,null,null,null,null,null,null,null,null,null,null,null,0]
[null,null,null,null,null,null,null,null,"-","-",null,"• O fornecimento será feito através de um só ponto de entrega e não deverá passar sobre área construída e não ser acessível de janelas, sacadas, telhados, escadas, áreas adjacentes, etc., observando as distâncias mínimas regulamentadas nos desenhos 29 e 30 da NDU 002;\n• Os condutores do ramal de entrada deverão possuir identificação no ponto de derivação e no ponto de conexão à medição, onde não serão permitidas emendas nos condutores. Deverão ser de cobre, classe 2 de encordoamento e isolamento do tipo PVC, HEPR, EPR ou XLPE, todos para classe de tensão em 0,6/1,0 kV. Não será permitido o uso de cabos de cobre com encordoamento flexível sem o uso de terminais tubulares, nos condutores do ramal de entrada e de saída do medidor até o centro de distribuição.\n• Deverá ser utilizado eletroduto de aço galvanizado.\n• A localização da subestação será estabelecida de comum acordo entre a Concessionária e o consumidor, preservando sempre critérios técnicos e de segurança. A mesma deverá ser construída em local de livre e fácil acesso, em condições adequadas de iluminação, ventilação e segurança.\n• O dimensionamento do transformador deverá ser tal que a demanda máxima da instalação consumidora não seja superior à potência nominal de transformação instalada\n• As hastes deverão ser cobreadas, e seu comprimento de 2,4m, com distância entre elas de 3 metros. Todas as ligações de condutores deverão ser feitas com conectores tipo solda exotérmica ou tipo terminal cabo-barra (GTDU), sendo obrigatório o uso de massa calafetadora em todas as conexões do aterramento onde o valor da resistência de aterramento apresentada pela malha de terra que não deve ultrapassar 10 (dez) Ohms (medida em qualquer época do ano). O cabo de aterramento deve ser contínuo, nu e sem emendas.\n• A interligação de todo o circuito de aterramento e sua ligação ao neutro deverá ser feita com cabo de cobre nu 50mm².\n• O neutro do sistema secundário é acessível e deve ser diretamente interligado à malha de aterramento da unidade consumidora e ao neutro do transformador.Poderá assumir a mesma seção do condutor Fase.",null,null,null,null,null,null,null,null,null,null,null,null,null,null,0,5,{"$f":"IF(AND($M$7<>\"\",$AB$20<>$AC$20),(IF(($AB$20>AB21),$AB$20,AB21)),$AF$25)","v":225},{"$f":"IF(($AB$20=$AC$20),$AD$20,(IF(($AB$20>AB21),$AB$20,AB21)))","v":225},"b",5,null,{"$f":"AUX!T21","v":"13 - Fabricação de peças, ornatos e estruturas de cimento, gesso e amianto"},null,null,null,null,null,null,null,null,null,null,null,null,null,0]
[null,null,null,null,null,null,null,null,"-","-",null,null,null,null,null,null,null,null,null,null,null,null,null,null,null,null,5.0999999999999996,10,{"$f":"IF(AND($M$7<>\"\",$AB$20<>$AC$20),(IF(($AB$20>AB22),$AB$20,AB22)),$AF$25)","v":225},{"$f":"IF(($AB$20=$AC$20),$AD$20,(IF(($AB$20>AB22),$AB$20,AB22)))","v":225},"c",10,null,{"$f":"AUX!T22","v":"14 - Beneficiamento e preparação de minerais não metálicos, não associados à extração"},null,null,null,null,null,null,null,null,null,null,null,null,null,0]
[null,null,null,null,null,null,null,null,"-","-",null,null,null,null,null,null,null,null,null,null,null,null,null,null,null,null,10.1,15,{"$f":"IF(AND(($M$7<>\"\"),($AB$18>0)),(IF(($AC$18>AB23),AC24,AB23)),\"-\")","v":225},225,"d",15,null,{"$f":"AUX!T23","v":"15 - Indústria metalúrgica"},null,null,null,null,null,null,null,null,null,null,null,null,null,0]
[null,null,null,null,null,null,null,null,"-","-",null,null,null,null,null,null,null,null,null,null,null,null,null,null,null,null,15.1,30,{"$f":"IF(AND(($M$7<>\"\"),($AB$18>0)),(IF(($M$7=$AJ$11),AC23,((IF(($AC$18>AB24),AC25,AB24))))),\"-\")","v":225},{"$f":"IF(($M$7=$AJ$11),$AD$23,(IF(($AB$20=$AC$20),$AD$20,(IF(($AB$20>AB24),$AB$20,AB24)))))","v":225},"e","SE Incompatível",null,{"$f":"AUX!T24","v":"16 - Produção de ferro gusa"},null,null,null,null,null,null,null,null,null,null,null,null,null,0]
[null,null,null,null,null,null,null,null,"-","-",null,null,null,null,null,null,null,null,null,null,null,null,null,null,null,null,30.1,45,225,{"$f":"IF(($M$7=$AJ$11),$AD$23,(IF(($AB$20=$AC$20),$AD$20,(IF(($AB$20>AB25),$AB$20,AB25)))))","v":225},"f","Informe tipo de Ligação",null,{"$f":"AUX!T25","v":"17 - Produção de laminados de aço - inclusive de ferro ligas"},null,null,null,null,null,null,null,null,null,null,null,null,null,0]
[null,null,null,null,null,null,null,null,"-","-",null,null,null,null,null,null,null,null,null,null,null,null,null,null,null,null,45.1,75,225,225,"g",null,null,{"$f":"AUX!T26","v":"18 - Produção de canos e tubos de ferro e aço"},null,null,null,null,null,null,null,null,null,null,null,null,null,0]
[null,null,null,null,null,null,null,null,"-","-",null,null,null,null,null,null,null,null,null,null,null,null,null,null,null,null,75.099999999999994,112.5,225,225,"h",null,null,{"$f":"AUX!T27","v":"19 - Produção de fundidos de ferro e aço"},null,null,null,null,null,null,null,null,null,null,null,null,null,0]
[null,null,null,null,null,null,null,null,"-","-",null,null,null,null,null,null,null,null,null,null,null,null,null,null,null,null,112.6,150,225,225,"i",null,null,{"$f":"AUX!T29","v":"20 - Produção de canos e tubos de metais e de ligas de metais não ferrosos"},null,null,null,null,null,null,null,null,null,null,null,null,null,0]
[null,null,null,null,null,null,null,null,"-","-",null,null,null,null,null,null,null,null,null,null,null,null,null,null,null,null,150.1,225,225,225,"j",null,null,{"$f":"AUX!T30","v":"21 - Fabricação de estruturas metálicas"},null,null,null,null,null,null,null,null,null,null,null,null,null,0]
[null,null,null,null,null,null,null,null,"-","-",null,null,null,null,null,null,null,null,null,null,null,null,null,null,null,null,225.1,300,300,300,"k",null,null,{"$f":"AUX!T31","v":"22 - Fabricação de artefatos de trefilados de ferro e aço e de metais não ferrosos exclusive móveis"},null,null,null,null,null,null,null,null,null,null,null,null,null,0]
[null,null,null,null,null,null,null,null,"-","-",null,null,null,null,null,null,null,null,null,null,null,null,null,null,null,null,300.10000000000002,"Projetar SE Abrigada","Projetar SE Abrigada",null,null,null,null,{"$f":"AUX!T32","v":"23 - Estamparia, funilaria e latoaria"},null,null,null,null,null,null,null,null,null,null,null,null,null,0]
[null,null,null,null,null,null,null,null,"-","-",null,null,null,null,null,null,null,null,null,null,null,null,null,null,null,null,null,null,null,null,null,null,null,{"$f":"AUX!T33","v":"24 - Serralheria, fabricação de tanques, reservatórios e outros recipientes metálicos e de artigos de caldeireiro"},null,null,null,null,null,null,null,null,null,null,null,null,null,0]
[null,null,null,null,null,null,null,null,"-","-",null,null,null,null,null,null,null,null,null,null,null,null,null,null,null,null,null,null,null,null,null,null,null,{"$f":"AUX!T34","v":"25 - Tempera e cementação de aço, recozimento de arames e serviços de galvanotécnica"},null,null,null,null,null,null,null,null,null,null,null,null,null,0]
[null,"TOTAL DE CARGA INSTALADA",null,null,null,null,null,null,{"$f":"IF((AB18>0),(IF((SUM(I9:I33))=0,\"-\",(SUM(I9:I33)))),\"-\")","v":234.464},{"$f":"IF((SUM(J9:J33))=0,\"-\",(SUM(J9:J33)))","v":254.70917874396136},null,null,null,null,null,null,null,null,null,null,null,null,null,null,null,null,{"$f":"DADOS!F14","v":"Proprietário Exemplo"},{"$f":"IF((AA34<>0),AA34,AC34)","v":"Proprietário Exemplo"},"Favor Informar o PROPRIETÁRIO do empreendimento!!!",1,null,null,null,{"$f":"AUX!T35","v":"26 - Indústria mecânica"}]
[null,"TOTAL DE CARGA MOTRIZ",null,null,null,null,null,null,{"$f":"IF(((SUM(E9:E33))=0),\"-\",(IF(((SUM(E9:E33))=0),\"-\",((SUMPRODUCT(($C$9:$C$33=$AF$16)*($D$9:$D$33)*($E$9:$E$33)))+(SUMPRODUCT(($C$9:$C$33=$AF$17)*($D$9:$D$33)*($E$9:$E$33)))))))","v":74},{"$f":"IF((I35=\"SEM\"),\"MOTORES\",\"CV\")","v":"CV"},null,null,null,null,null,null,null,null,null,null,null,null,null,null,null,null,{"$f":"DADOS!F23","v":"Hotel Exemplo"},{"$f":"IF((AA35<>0),AA35,AC35)","v":"Hotel Exemplo"},"Favor Informar a IDENTIFICAÇÃO do referido empreendimento!!!",2,null,null,null,{"$f":"AUX!T36","v":"27 - Fabricação de máquinas motrizes não elétricas e de equipamentos de transmissão para fins industriais, inclusive peças e acessórios"}]
[null,"OBSERVAÇÃO:",null,null,null,null,null,null,null,null,null,"PARECER ENERGISA:",null,null,null,null,null,null,null,null,null,null,null,null,null,null,{"$f":"DADOS!F24","v":"Rua do Hotel Exemplo"},"Rua do Hotel Exemplo","Favor informar o ENDEREÇO do referido empreendimento!!!",3,null,null,null,{"$f":"AUX!T37","v":"28 - Fabricação de máquinas, aparelhos e equipamentos industriais para instalações hidráulicas, térmicas, de ventilação e refrigeração, equipadas ou não com motores elétricos, inclusive peças e acessórios"}]
[null,{"$f":"AC37","v":"DADOS CONFIRMADOS PARA AVALIAÇÃO DA CONCESSIONÁRIA"},null,null,null,null,null,null,null,null,null,null,null,null,null,null,null,null,null,null,null,null,null,null,null,null,0,"OK",{"$f":"VLOOKUP(AD37,AA37:AE59,5,FALSE)","v":"DADOS CONFIRMADOS PARA AVALIAÇÃO DA CONCESSIONÁRIA"},{"$f":"SUM(AD38:AD59)","v":0},"DADOS CONFIRMADOS PARA AVALIAÇÃO DA CONCESSIONÁRIA",null,null,{"$f":"AUX!T38","v":"29 - Fabricação de produtos de padaria, confeitaria e pastelaria (inclusive panificadoras e similares)"}]
[null,null,null,null,null,null,null,null,null,null,null,null,null,null,null,null,null,null,null,null,null,null,null,null,null,null,1,"CADASTRO DA UC",{"$f":"IF((SUM(AA34:AA36)>0),AA38,0)","v":0},{"$f":"IF((AC38>0),AA38,0)","v":0},"FAVOR VERIFICAR OS DADOS CADASTRAIS DA UNIDADE",null,null,{"$f":"AUX!T39","v":"30 - Fabricação de massas alimentícias e biscoitos"}]
[null,"OUTRAS CONSIDERAÇÕES:",null,null,null,null,null,null,null,null,null,null,null,null,null,null,null,null,null,null,null,null,null,null,null,null,2,"DECLARAÇÃO DE CARGA",{"$f":"IF((SUM(G9:G33)=0),AA39,0)","v":0},{"$f":"IF((SUM($AD$38:AD38)>0),0,AC39)","v":0},"FAVOR VERIFICAR A DECLARAÇÃO DA CARGA",null,null,{"$f":"AUX!T40","v":"31 - Refinação e preparação de óleos e gorduras vegetais, produção de manteiga de cacau e de gordura de origem animal, destinadas à alimentação"}]
[null,null,null,null,null,null,null,null,null,null,null,null,null,null,null,null,null,null,null,null,null,null,null,null,null,null,3,"RAMO DE ATIVIDADE",{"$f":"IF((M5=0),AA40,0)","v":0},{"$f":"IF((SUM($AD$38:AD39)>0),0,AC40)","v":0},"FAVOR INFORMAR O RAMO DE ATIVIDADE DA UNIDADE A SER ATENDIDA",null,null,{"$f":"AUX!T41","v":"32 - Fabricação de gelo"}]
[null,null,null,null,null,null,null,null,null,null,null,null,null,null,null,null,null,null,null,null,null,null,null,null,null,null,4,"MÉTODO DE CALCULO",{"$f":"IF((M6=0),AA41,0)","v":0},{"$f":"IF((SUM($AD$38:AD40)>0),0,AC41)","v":0},"FAVOR INFORMAR O MÉTODO DE CÁLCULO DA DEMANDA PARA A REFERIDA UNIDADE",null,null,{"$f":"AUX!T42","v":"33 - Fabricação de rações balanceadas e de alimentos preparados para animais, inclusive farinha de carne, sangue, osso e peixe"}]
[null,null,null,null,null,null,null,null,null,null,null,null,null,null,null,null,null,null,null,null,null,null,null,null,null,null,5,"TIPO DE LIGAÇÃO",{"$f":"IF(AND(AJ12>0,M7<>AJ10),AA42,0)","v":0},{"$f":"IF((SUM($AD$38:AD41)>0),0,AC42)","v":0},"FAVOR INFORMAR O TIPO DE LIGAÇÃO PARA A REFERIDA UNIDADE",null,null,{"$f":"AUX!T43","v":"34 - Indústria de bebidas"}]
[null,null,null,null,null,null,null,null,null,null,null,null,null,null,null,null,null,null,null,null,null,null,null,null,null,null,6,"RAMAL DE LIGAÇÃO",{"$f":"IF((Q7=0),AA43,0)","v":0},{"$f":"IF((SUM($AD$38:AD42)>0),0,AC43)","v":0},"FAVOR INFORMAR O RAMAL DE ENTRADA DA REFERIDA UNIDADE",null,null,{"$f":"AUX!T44","v":"35 - Fabricação de aguardentes, licores e outras bebidas alcoólicas"}]
[null,null,null,null,null,null,null,null,null,null,null,null,null,null,null,null,null,null,null,null,null,null,null,null,null,null,7,"FD",{"$f":"IF(AND(M6=AI10,N9=0),AA44,0)","v":0},{"$f":"IF((SUM($AD$38:AD43)>0),0,AC44)","v":0},"FAVOR INFORMAR O FATOR DE DEMANDA ",null,null,{"$f":"AUX!T45","v":"36 - Fabricação de cervejas, chopes e malte"}]
[null,null,null,null,null,null,null,null,null,null,null,null,null,null,null,null,null,null,null,null,null,null,null,null,null,null,8,"FP",{"$f":"IF(AND(M6=AI10,P9=0),AA45,0)","v":0},{"$f":"IF((SUM($AD$38:AD44)>0),0,AC45)","v":0},"FAVOR INFORMAR O FATOR DE POTENCIA",null,null,{"$f":"AUX!T46","v":"37 - Fabricação de bebidas não alcoólicas"}]
[null,{"$f":"DADOS!C56","v":"ESPAÇO PARA INSERIR LOGOTIPO DA EMPRESA RESPONSAVEL PELA ELABORAÇÃO DO PROJETO"},null,null,null,null,null,null,null,null,null,null,null,null,null,null,null,null,null,null,null,null,null,null,null,null,9,"TRAFO",{"$f":"IF((L13<AC18),AA46,0)","v":0},{"$f":"IF((SUM($AD$38:AD45)>0),0,AC46)","v":0},"POTENCIA DO TRANSFORMADOR NÃO INFORMADA OU INCOMPATIVEL COM A DEMANDA DO PROJETO.",null,null,{"$f":"AUX!T47","v":"38 - Indústria de fumo"}]
[null,null,null,null,null,null,null,null,null,null,null,null,null,null,null,null,null,null,null,null,null,null,null,null,null,null,10,"ISOLAMENTO",{"$f":"IF((M13=0),AA47,0)","v":0},{"$f":"IF((SUM($AD$38:AD46)>0),0,AC47)","v":0},"FAVOR INFORMAR O TIPO DE ISOLAMENTO PARA OS CONDUTORES DE BAIXA TENSÃO",null,null,{"$f":"AUX!T48","v":"39 - Fabricação de cigarros"}]
[null,null,null,null,null,null,null,null,null,null,null,null,null,null,null,null,null,null,null,null,null,null,null,null,null,null,11,"GRUPO",{"$f":"IF((L19=0),AA48,0)","v":0},{"$f":"IF((SUM($AD$38:AD47)>0),0,AC48)","v":0},"FAVOR INFORMAR A OPÇÃO TARIFÁRIA",null,null,{"$f":"AUX!T49","v":"40 - Indústria de utilidade pública, irrigação, água, esgoto e saneamento"}]
[null,null,null,null,null,null,null,null,null,null,null,null,null,null,null,null,null,null,null,null,null,null,null,null,null,null,12,"MODALIDADE",{"$f":"IF(AND(L19=AO10,M19<>AQ11),AA49,0)","v":0},{"$f":"IF((SUM($AD$38:AD48)>0),0,AC49)","v":0},"FAVOR INFORMAR A MODALIDADE TARIFÁRIA / MODALIDADE TARIFÁRIA INFORMADA INCOMPATIVEL COM O GRUPO TARIFÁRIO",null,null,{"$f":"AUX!T50","v":"41 - Distribuição de gás"}]
[null,null,null,null,null,null,null,null,null,null,null,null,null,null,null,null,null,null,null,null,null,null,null,null,null,null,13,"GRUPO B",{"$f":"IF((M19=0),AA50,0)","v":0},{"$f":"IF((SUM($AD$38:AD49)>0),0,AC50)","v":0},"MODALIDADE TARIFÁRIA INCOMPATIVEL COM O GRUPO TARIFÁRIO",null,null,{"$f":"AUX!T51","v":"42 - Tratamento e distribuição de água"}]
[null,null,null,null,null,null,null,null,null,null,null,null,null,null,null,null,null,null,null,null,null,null,null,null,null,null,14,"GRUPO B",{"$f":"IF(AND(L19=AO10,L13>112.5),AA51,0)","v":0},{"$f":"IF((SUM($AD$38:AD50)>0),0,AC51)","v":0},"POTENCIA DO TRANSFORMADOR INCOMPATIVEL PARA OPÇÃO TARIFÁRIA PELO GRUPO B",null,null,{"$f":"AUX!T53","v":"43 - Indústria de construção"}]
[null,null,null,null,null,null,null,null,null,null,null,null,null,null,null,null,null,null,null,null,null,null,null,null,null,null,15,"CONVENCIONAL",{"$f":"IF(AND(M19=AQ11,Q19>150),AA52,0)","v":0},{"$f":"IF((SUM($AD$38:AD51)>0),0,AC52)","v":0},"A OPÇÃO DE MODALIDADE TARIFÁRIA CONVENCIONAL ESTÁ LIMITADA A UMA DEMANDA CONTRATADA INFERIOR A 150kW",null,null,{"$f":"AUX!T54","v":"44 - Construção Civil"}]
[null,null,null,null,null,null,null,null,null,null,null,null,null,null,null,null,null,null,null,null,null,null,null,null,null,null,16,"FORA PONTA",{"$f":"IF(AND(L19=AO9,Q19=0),AA53,0)","v":0},{"$f":"IF((SUM($AD$38:AD52)>0),0,AC53)","v":0},"FAVOR INFORMAR A DEMANDA A SER CONTRATADA NO HORÁRIO FORA DE PONTA / DEMANDA CONTRATADA INFORMADA INCOMPATIVEL COM O GRUPO OU MODALIDADE TARIFÁRIA",null,null,{"$f":"AUX!T56","v":"45 - Pavimentação, terraplenagem e construção de estradas"}]
[null,null,null,null,null,null,null,null,null,null,null,null,null,null,null,null,null,null,null,null,null,null,null,null,null,null,17,"FORA PONTA",{"$f":"IF(AND(L19<>AO9,Q19>0),AA54,0)","v":0},{"$f":"IF((SUM($AD$38:AD53)>0),0,AC54)","v":0},"A CONTRATAÇÃO DE DEMANDA NO HORARIO FORA DE PONTA É EXCLUSIVO PARA CLIENTES TARIFADOS NO GRUPO A",null,null,{"$f":"AUX!T58","v":"46 - Construção de obras de arte (viadutos, mirantes, etc.)"}]
[null,null,null,null,null,null,null,null,null,null,null,null,null,null,null,null,null,null,null,null,null,null,null,null,null,null,18,"FORA PONTA",{"$f":"IF(AND(L19=AO9,Q19<30),AA55,0)","v":0},{"$f":"IF((SUM($AD$38:AD54)>0),0,AC55)","v":0},"A DEMANDA MINIMA A SER CONTRADA DEVERÁ SER DE 30kW",null,null,{"$f":"AUX!T59","v":"47 - Agricultura e criação animal"}]
[null,null,null,null,null,null,null,null,null,null,null,null,null,null,null,null,null,null,null,null,null,null,null,null,null,null,19,"FORA PONTA",{"$f":"IF(OR(AB19>L13,Q19>2500),AA56,0)","v":0},{"$f":"IF((SUM($AD$38:AD55)>0),0,AC56)","v":0},"A DEMANDA CONTRATADA PARA HORARIO FORA DE PONTA MAIOR QUE A POTENCIA DO TRANSFORMADOR OU QUE O LIMITE DE 2.500kW",null,null,{"$f":"AUX!T60","v":"48 - Agricultura"}]
[null,null,null,null,null,null,null,null,null,null,null,null,null,null,null,null,null,null,null,null,null,null,null,null,null,null,20,"PONTA",{"$f":"IF(AND(M19<>AQ10,R19<>0),AA57,0)","v":0},{"$f":"IF((SUM($AD$38:AD56)>0),0,AC57)","v":0},"A CONTRATAÇÃO DE DEMANDA NO HORARIO DE PONTA É EXCLUSIVO PARA CLIENTES TARIFADOS NO GRUPO A NA MODALIDADE HS-AZUL",null,null,{"$f":"AUX!T61","v":"49 - Agricultura (irrigação)"}]
[null,null,null,null,null,null,null,null,null,null,null,null,null,null,null,null,null,null,null,null,null,null,null,null,null,null,21,"PONTA",{"$f":"IF(AND(M19=AQ10,R19=0),AA58,0)","v":0},{"$f":"IF((SUM($AD$38:AD57)>0),0,AC58)","v":0},"FAVOR INFORMAR A DEMANDA NO HORARIO DE PONTA / DEMANDA CONTRATADA INCOMPATIVEL COM GRUPO OU MODALIDADE TARIFARIA",null,null,{"$f":"AUX!T62","v":"50 - Criação animal exclusive bovinocultura (índices baseados na avicultura)"}]
[null,null,null,null,null,null,null,null,null,null,null,null,null,null,null,null,null,null,null,null,null,null,null,null,null,null,22,"PONTA",{"$f":"IF(OR(AC19>L13,R19>2500),AA59,0)","v":0},{"$f":"IF((SUM($AD$38:AD58)>0),0,AC59)","v":0},"A DEMANDA CONTRATADA PARA HORARIO DE PONTA MAIOR QUE A POTENCIA DO TRANSFORMADOR OU QUE O LIMITE DE 2.500kW",null,null,{"$f":"AUX!T63","v":"51 - Criação animal - suinocultura"}]
[null,null,null,null,null,null,null,null,null,null,null,null,null,null,null,null,null,null,null,null,null,null,null,null,null,null,null,null,null,null,null,null,null,{"$f":"AUX!T64","v":"52 - Bovinocultura"}]
[null,null,null,null,null,null,null,null,null,null,null,null,null,null,null,null,null,null,null,null,null,null,null,null,null,null,null,null,null,null,null,null,null,{"$f":"AUX!T65","v":"53 - Florestamento e reflorestamento"}]
[null,null,null,null,null,null,null,null,null,null,null,null,null,null,null,null,null,null,null,null,null,null,null,null,null,null,null,null,null,null,null,null,null,{"$f":"AUX!T66","v":"54 - Serviços de transporte"}]
[null,null,null,null,null,null,null,null,null,null,null,null,null,null,null,null,null,null,null,null,null,null,null,null,null,null,null,null,null,null,null,null,null,{"$f":"AUX!T67","v":"55 - Transportes ferroviários"}]
[null,null,null,null,null,null,null,null,null,null,null,null,null,null,null,null,null,null,null,null,null,null,null,null,null,null,null,null,null,null,null,null,null,{"$f":"AUX!T68","v":"56 - Transportes rodoviários de carga"}]
[null,null,null,null,null,null,null,null,null,null,null,null,null,null,null,null,null,null,null,null,null,null,null,null,null,null,null,null,null,null,null,null,null,{"$f":"AUX!T69","v":"57 - Transportes urbanos de passageiros - inclusive metroviários"}]
[null,null,null,null,null,null,null,null,null,null,null,null,null,null,null,null,null,null,null,null,null,null,null,null,null,null,null,null,null,null,null,null,null,{"$f":"AUX!T70","v":"58 - Serviços de comunicação"}]
[null,null,null,null,null,null,null,null,null,null,null,null,null,null,null,null,null,null,null,null,null,null,null,null,null,null,null,null,null,null,null,null,null,{"$f":"AUX!T71","v":"59 - Telegrafia, telefone e correios"}]
[null,null,null,null,null,null,null,null,null,null,null,null,null,null,null,null,null,null,null,null,null,null,null,null,null,null,null,null,null,null,null,null,null,{"$f":"AUX!T73","v":"60 - Radiodifusão e televisão"}]
[null,null,null,null,null,null,null,null,null,null,null,null,null,null,null,null,null,null,null,null,null,null,null,null,null,null,null,null,null,null,null,null,null,{"$f":"AUX!T74","v":"61 - Serviços de alojamento e alimentação"}]
[null,null,null,null,null,null,null,null,null,null,null,null,null,null,null,null,null,null,null,null,null,null,null,null,null,null,null,null,null,null,null,null,null,{"$f":"AUX!T75","v":"62 - Hotéis e motéis"}]
[null,null,null,null,null,null,null,null,null,null,null,null,null,null,null,null,null,null,null,null,null,null,null,null,null,null,null,null,null,null,null,null,null,{"$f":"AUX!T76","v":"63 - Restaurantes e lanchonetes"}]
[null,null,null,null,null,null,null,null,null,null,null,null,null,null,null,null,null,null,null,null,null,null,null,null,null,null,null,null,null,null,null,null,null,{"$f":"AUX!T77","v":"64 - Fabricação de máquinas, ferramentas, máquinas operatrizes e aparelhos industriais acoplados ou não a motores elétricos"}]
[null,null,null,null,null,null,null,null,null,null,null,null,null,null,null,null,null,null,null,null,null,null,null,null,null,null,null,null,null,null,null,null,null,{"$f":"AUX!T78","v":"65 - Fabricação de peças, acessórios, utensílios e ferramentas para máquinas industriais"}]
[null,null,null,null,null,null,null,null,null,null,null,null,null,null,null,null,null,null,null,null,null,null,null,null,null,null,null,null,null,null,null,null,null,{"$f":"AUX!T79","v":"66 - Fabricação de máquinas, aparelhos e materiais para agricultura, avicultura, apicultura, criação de outros pequenos animais e obtenção de produtos de origem animal, e para beneficiamento ou preparação de produtos agrícolas - peças e acessórios"}]
[null,null,null,null,null,null,null,null,null,null,null,null,null,null,null,null,null,null,null,null,null,null,null,null,null,null,null,null,null,null,null,null,null,{"$f":"AUX!T80","v":"67 - Fabricação de cronômetros e relógios, elétricos ou não - inclusive a fabricação de peças"}]
[null,null,null,null,null,null,null,null,null,null,null,null,null,null,null,null,null,null,null,null,null,null,null,null,null,null,null,null,null,null,null,null,null,{"$f":"AUX!T81","v":"68 - Reparação ou manutenção de máquinas, aparelhos e equipa- mentos industriais, agrícolas e de máquinas de terraplenagem"}]
[null,null,null,null,null,null,null,null,null,null,null,null,null,null,null,null,null,null,null,null,null,null,null,null,null,null,null,null,null,null,null,null,null,{"$f":"AUX!T82","v":"69 - Indústria de material elétrico e de comunicações fabricação de aparelhos e utensílios elétricos para fins industriais e comerciais, inclusive peças e acessórios"}]
[null,null,null,null,null,null,null,null,null,null,null,null,null,null,null,null,null,null,null,null,null,null,null,null,null,null,null,null,null,null,null,null,null,{"$f":"AUX!T83","v":"70 - Indústria de material de transporte"}]
[null,null,null,null,null,null,null,null,null,null,null,null,null,null,null,null,null,null,null,null,null,null,null,null,null,null,null,null,null,null,null,null,null,{"$f":"AUX!T84","v":"71 - Reparação de veículos ferroviários"}]
[null,null,null,null,null,null,null,null,null,null,null,null,null,null,null,null,null,null,null,null,null,null,null,null,null,null,null,null,null,null,null,null,null,{"$f":"AUX!T85","v":"72 - Fabricação de carrocerias para veículos automotores-exclusive chassis"}]
[null,null,null,null,null,null,null,null,null,null,null,null,null,null,null,null,null,null,null,null,null,null,null,null,null,null,null,null,null,null,null,null,null,{"$f":"AUX!T86","v":"73 - Indústria de madeira"}]
[null,null,null,null,null,null,null,null,null,null,null,null,null,null,null,null,null,null,null,null,null,null,null,null,null,null,null,null,null,null,null,null,null,{"$f":"AUX!T87","v":"74 - Desdobramento da madeira"}]
[null,null,null,null,null,null,null,null,null,null,null,null,null,null,null,null,null,null,null,null,null,null,null,null,null,null,null,null,null,null,null,null,null,{"$f":"AUX!T88","v":"75 - Fabricação de chapas e placas de madeira, aglomerada ou prensada e de madeira compensada, revestida ou não com material plástico"}]
[null,null,null,null,null,null,null,null,null,null,null,null,null,null,null,null,null,null,null,null,null,null,null,null,null,null,null,null,null,null,null,null,null,{"$f":"AUX!T89","v":"76 - Indústria de mobiliário, fabricação de móveis de madeira, vime e junco"}]
[null,null,null,null,null,null,null,null,null,null,null,null,null,null,null,null,null,null,null,null,null,null,null,null,null,null,null,null,null,null,null,null,null,{"$f":"AUX!T90","v":"77 - Indústria de celulose, papel e papelão fabricação de papel, papelão, cartolina e cartão"}]
[null,null,null,null,null,null,null,null,null,null,null,null,null,null,null,null,null,null,null,null,null,null,null,null,null,null,null,null,null,null,null,null,null,{"$f":"AUX!T91","v":"78 - Indústria de borracha recondicionamento de pneumáticos"}]
[null,null,null,null,null,null,null,null,null,null,null,null,null,null,null,null,null,null,null,null,null,null,null,null,null,null,null,null,null,null,null,null,null,{"$f":"AUX!T92","v":"79 - Indústria de couros, peles e produtos similares curtimento e outras preparações de couros e peles - inclusive subprodutos"}]
[null,null,null,null,null,null,null,null,null,null,null,null,null,null,null,null,null,null,null,null,null,null,null,null,null,null,null,null,null,null,null,null,null,{"$f":"AUX!T93","v":"80 - Indústria química"}]
[null,null,null,null,null,null,null,null,null,null,null,null,null,null,null,null,null,null,null,null,null,null,null,null,null,null,null,null,null,null,null,null,null,{"$f":"AUX!T94","v":"81 - Produção de elementos Químicos e de produtos químicos inorgânicos, orgânicos, orgânicos inorgânicos, exclusive produtos derivados do processamento do petróleo, da rochas oleígenas, de carvão-de-pedra e de madeira"}]
[null,null,null,null,null,null,null,null,null,null,null,null,null,null,null,null,null,null,null,null,null,null,null,null,null,null,null,null,null,null,null,null,null,{"$f":"AUX!T95","v":"82 - Fabricação de asfalto"}]
[null,null,null,null,null,null,null,null,null,null,null,null,null,null,null,null,null,null,null,null,null,null,null,null,null,null,null,null,null,null,null,null,null,{"$f":"AUX!T96","v":"83 - Fabricação de resinas de fibras e de fios artificiais e sintéticos e de borracha e látex sintéticos"}]
[null,null,null,null,null,null,null,null,null,null,null,null,null,null,null,null,null,null,null,null,null,null,null,null,null,null,null,null,null,null,null,null,null,{"$f":"AUX!T97","v":"84 - Produção de óleos, gorduras e ceras vegetais e animais, em banho de óleos, essenciais vegetais e outros produtos da destilação da madeira - exclusive refinação de produtos alimentares (destilaria de álcool proveniente de madeira)"}]
[null,null,null,null,null,null,null,null,null,null,null,null,null,null,null,null,null,null,null,null,null,null,null,null,null,null,null,null,null,null,null,null,null,{"$f":"AUX!T98","v":"85 - Fabricação de concentrados aromáticos naturais, artificiais e sintéticos, inclusive mesclas"}]
[null,null,null,null,null,null,null,null,null,null,null,null,null,null,null,null,null,null,null,null,null,null,null,null,null,null,null,null,null,null,null,null,null,{"$f":"AUX!T99","v":"86 - Fabricação de preparados para limpeza e polimento, desinfetantes, inseticidas, germicidas e fungicidas"}]
[null,null,null,null,null,null,null,null,null,null,null,null,null,null,null,null,null,null,null,null,null,null,null,null,null,null,null,null,null,null,null,null,null,{"$f":"AUX!T100","v":"87 - Fabricação de adubos e fertilizantes e corretivos de solo"}]
[null,null,null,null,null,null,null,null,null,null,null,null,null,null,null,null,null,null,null,null,null,null,null,null,null,null,null,null,null,null,null,null,null,{"$f":"AUX!T101","v":"88 - Indústria de produtos farmacêuticos e veterinários"}]
[null,null,null,null,null,null,null,null,null,null,null,null,null,null,null,null,null,null,null,null,null,null,null,null,null,null,null,null,null,null,null,null,null,{"$f":"AUX!T102","v":"89 - Indústria de perfumaria, sabões e velas fabricação de sabões, detergentes e glicerinas"}]
[null,null,null,null,null,null,null,null,null,null,null,null,null,null,null,null,null,null,null,null,null,null,null,null,null,null,null,null,null,null,null,null,null,{"$f":"AUX!T103","v":"90 - Indústria de produtos de matérias plásticas"}]
[null,null,null,null,null,null,null,null,null,null,null,null,null,null,null,null,null,null,null,null,null,null,null,null,null,null,null,null,null,null,null,null,null,{"$f":"AUX!T104","v":"91 - Fabricação de artigos de material plástico para usos - exclusive embalagem e acondicionamento"}]
[null,null,null,null,null,null,null,null,null,null,null,null,null,null,null,null,null,null,null,null,null,null,null,null,null,null,null,null,null,null,null,null,null,{"$f":"AUX!T105","v":"92 - Indústria têxtil"}]
[null,null,null,null,null,null,null,null,null,null,null,null,null,null,null,null,null,null,null,null,null,null,null,null,null,null,null,null,null,null,null,null,null,{"$f":"AUX!T106","v":"93 - Beneficiamento de fibras têxteis vegetais, artificiais e de materiais têxteis de origem animal, fabricação de estopa de materiais para estofados e recuperação de resíduos têxteis"}]
[null,null,null,null,null,null,null,null,null,null,null,null,null,null,null,null,null,null,null,null,null,null,null,null,null,null,null,null,null,null,null,null,null,{"$f":"AUX!T107","v":"94 - Fiação e Tecelagem"}]
[null,null,null,null,null,null,null,null,null,null,null,null,null,null,null,null,null,null,null,null,null,null,null,null,null,null,null,null,null,null,null,null,null,{"$f":"AUX!T108","v":"95 - Malharia e fabricação de tecidos elásticos"}]
[null,null,null,null,null,null,null,null,null,null,null,null,null,null,null,null,null,null,null,null,null,null,null,null,null,null,null,null,null,null,null,null,null,{"$f":"AUX!T109","v":"96 - Indústria de vestuário, calçados e artefatos de tecidos"}]
[null,null,null,null,null,null,null,null,null,null,null,null,null,null,null,null,null,null,null,null,null,null,null,null,null,null,null,null,null,null,null,null,null,{"$f":"AUX!T110","v":"97 - Confecções de roupas e agasalhos"}]
[null,null,null,null,null,null,null,null,null,null,null,null,null,null,null,null,null,null,null,null,null,null,null,null,null,null,null,null,null,null,null,null,null,{"$f":"AUX!T111","v":"98 - Fabricação de calçados"}]
[null,null,null,null,null,null,null,null,null,null,null,null,null,null,null,null,null,null,null,null,null,null,null,null,null,null,null,null,null,null,null,null,null,{"$f":"AUX!T112","v":"99 - Indústria de produtos alimentares"}]
[null,null,null,null,null,null,null,null,null,null,null,null,null,null,null,null,null,null,null,null,null,null,null,null,null,null,null,null,null,null,null,null,null,{"$f":"AUX!T113","v":"100 - Beneficiamento de café, cereais e produtos afins"}]
[null,null,null,null,null,null,null,null,null,null,null,null,null,null,null,null,null,null,null,null,null,null,null,null,null,null,null,null,null,null,null,null,null,{"$f":"AUX!T115","v":"101 - Moagem de trigo"}]
[null,null,null,null,null,null,null,null,null,null,null,null,null,null,null,null,null,null,null,null,null,null,null,null,null,null,null,null,null,null,null,null,null,{"$f":"AUX!T116","v":"102 - Torrefação e moagem de café"}]
[null,null,null,null,null,null,null,null,null,null,null,null,null,null,null,null,null,null,null,null,null,null,null,null,null,null,null,null,null,null,null,null,null,{"$f":"AUX!T117","v":"103 - Fabricação de produtos de milho, exclusive óleos"}]
[null,null,null,null,null,null,null,null,null,null,null,null,null,null,null,null,null,null,null,null,null,null,null,null,null,null,null,null,null,null,null,null,null,{"$f":"AUX!T118","v":"104 - Beneficiamento, moagem, torrefação e fabricação de produtos alimentares diversos de origem vegetal, não especificados ou não classificados"}]
[null,null,null,null,null,null,null,null,null,null,null,null,null,null,null,null,null,null,null,null,null,null,null,null,null,null,null,null,null,null,null,null,null,{"$f":"AUX!T119","v":"105 - Refeições conservadas, conservas de frutas, legumes e outros vegetais, preparação de especiarias e condimentos e fabricação de doces, exclusive de confeitaria"}]
[null,null,null,null,null,null,null,null,null,null,null,null,null,null,null,null,null,null,null,null,null,null,null,null,null,null,null,null,null,null,null,null,null,{"$f":"AUX!T120","v":"106 - Abate de animais"}]
[null,null,null,null,null,null,null,null,null,null,null,null,null,null,null,null,null,null,null,null,null,null,null,null,null,null,null,null,null,null,null,null,null,{"$f":"AUX!T122","v":"107 - Preparação de conservas de carne - inclusive subprodutos - processados em matadouros e frigoríficos"}]
[null,null,null,null,null,null,null,null,null,null,null,null,null,null,null,null,null,null,null,null,null,null,null,null,null,null,null,null,null,null,null,null,null,{"$f":"AUX!T124","v":"108 - Preparação de conservas de carne e produtos de salsicharia, não processados em matadouros e frigoríficos"}]
[null,null,null,null,null,null,null,null,null,null,null,null,null,null,null,null,null,null,null,null,null,null,null,null,null,null,null,null,null,null,null,null,null,{"$f":"AUX!T125","v":"109 - Preparação de leite e fabricação de produtos de laticínios"}]
[null,null,null,null,null,null,null,null,null,null,null,null,null,null,null,null,null,null,null,null,null,null,null,null,null,null,null,null,null,null,null,null,null,{"$f":"AUX!T128","v":"110 - Fabricação de açúcar"}]
[null,null,null,null,null,null,null,null,null,null,null,null,null,null,null,null,null,null,null,null,null,null,null,null,null,null,null,null,null,null,null,null,null,{"$f":"AUX!T129","v":"111 - Fabricação de balas, caramelos, pastilhas, drops, bombons, chocolates, etc. - inclusive goma de mascar"}]
[null,null,null,null,null,null,null,null,null,null,null,null,null,null,null,null,null,null,null,null,null,null,null,null,null,null,null,null,null,null,null,null,null,{"$f":"AUX!T130","v":"112 - Serviços de reparação, manutenção e conservação"}]
[null,null,null,null,null,null,null,null,null,null,null,null,null,null,null,null,null,null,null,null,null,null,null,null,null,null,null,null,null,null,null,null,null,{"$f":"AUX!T131","v":"113 - Reparação, manutenção e conservação de máquinas e de uso doméstico - exclusive máquinas de costura"}]
[null,null,null,null,null,null,null,null,null,null,null,null,null,null,null,null,null,null,null,null,null,null,null,null,null,null,null,null,null,null,null,null,null,{"$f":"AUX!T132","v":"114 - Reparação de veículos - exclusive embarcações, aeronaves e veículos ferroviários"}]
[null,null,null,null,null,null,null,null,null,null,null,null,null,null,null,null,null,null,null,null,null,null,null,null,null,null,null,null,null,null,null,null,null,{"$f":"AUX!T133","v":"115 - Manutenção e conservação de veículos em geral"}]
[null,null,null,null,null,null,null,null,null,null,null,null,null,null,null,null,null,null,null,null,null,null,null,null,null,null,null,null,null,null,null,null,null,{"$f":"AUX!T134","v":"116 - Serviços pessoais"}]
[null,null,null,null,null,null,null,null,null,null,null,null,null,null,null,null,null,null,null,null,null,null,null,null,null,null,null,null,null,null,null,null,null,{"$f":"AUX!T135","v":"117 - Serviços de higiene - barbearias, saunas, lavanderias, etc."}]
[null,null,null,null,null,null,null,null,null,null,null,null,null,null,null,null,null,null,null,null,null,null,null,null,null,null,null,null,null,null,null,null,null,{"$f":"AUX!T136","v":"118 - Hospitais e casas de saúde"}]
[null,null,null,null,null,null,null,null,null,null,null,null,null,null,null,null,null,null,null,null,null,null,null,null,null,null,null,null,null,null,null,null,null,{"$f":"AUX!T138","v":"119 - Estabelecimentos de ensino tradicional (1º e 2° graus)"}]
[null,null,null,null,null,null,null,null,null,null,null,null,null,null,null,null,null,null,null,null,null,null,null,null,null,null,null,null,null,null,null,null,null,{"$f":"AUX!T139","v":"120 - Estabelecimentos de ensino superior - Faculdade"}]
[null,null,null,null,null,null,null,null,null,null,null,null,null,null,null,null,null,null,null,null,null,null,null,null,null,null,null,null,null,null,null,null,null,{"$f":"AUX!T140","v":"121 - Estabelecimentos de ensino integrado - unidades integradas"}]
[null,null,null,null,null,null,null,null,null,null,null,null,null,null,null,null,null,null,null,null,null,null,null,null,null,null,null,null,null,null,null,null,null,{"$f":"AUX!T141","v":"122 - Serviços comerciais"}]
[null,null,null,null,null,null,null,null,null,null,null,null,null,null,null,null,null,null,null,null,null,null,null,null,null,null,null,null,null,null,null,null,null,{"$f":"AUX!T142","v":"123 - Serviços auxiliares do comércio de mercadorias, inclusive de distribuição"}]
[null,null,null,null,null,null,null,null,null,null,null,null,null,null,null,null,null,null,null,null,null,null,null,null,null,null,null,null,null,null,null,null,null,{"$f":"AUX!T143","v":"124 - Armazéns gerais e trapiches"}]
[null,null,null,null,null,null,null,null,null,null,null,null,null,null,null,null,null,null,null,null,null,null,null,null,null,null,null,null,null,null,null,null,null,{"$f":"AUX!T144","v":"125 - Serviço de processamento de dados"}]
[null,null,null,null,null,null,null,null,null,null,null,null,null,null,null,null,null,null,null,null,null,null,null,null,null,null,null,null,null,null,null,null,null,{"$f":"AUX!T145","v":"126 - Serviços de contabilidade e despachante"}]
[null,null,null,null,null,null,null,null,null,null,null,null,null,null,null,null,null,null,null,null,null,null,null,null,null,null,null,null,null,null,null,null,null,{"$f":"AUX!T146","v":"127 - Serviços de diversões"}]
[null,null,null,null,null,null,null,null,null,null,null,null,null,null,null,null,null,null,null,null,null,null,null,null,null,null,null,null,null,null,null,null,null,{"$f":"AUX!T147","v":"128 - Entidades financeiras"}]
[null,null,null,null,null,null,null,null,null,null,null,null,null,null,null,null,null,null,null,null,null,null,null,null,null,null,null,null,null,null,null,null,null,{"$f":"AUX!T148","v":"129 - Bancos comerciais e caixas econômicas"}]
[null,null,null,null,null,null,null,null,null,null,null,null,null,null,null,null,null,null,null,null,null,null,null,null,null,null,null,null,null,null,null,null,null,{"$f":"AUX!T149","v":"130 - Comércio atacadista"}]
[null,null,null,null,null,null,null,null,null,null,null,null,null,null,null,null,null,null,null,null,null,null,null,null,null,null,null,null,null,null,null,null,null,{"$f":"AUX!T150","v":"131 - Comércio atacadista de ferragens e produtos metalúrgicos"}]
[null,null,null,null,null,null,null,null,null,null,null,null,null,null,null,null,null,null,null,null,null,null,null,null,null,null,null,null,null,null,null,null,null,{"$f":"AUX!T151","v":"132 - Comércio atacadista de combustíveis e lubrificantes (terminal)"}]
[null,null,null,null,null,null,null,null,null,null,null,null,null,null,null,null,null,null,null,null,null,null,null,null,null,null,null,null,null,null,null,null,null,{"$f":"AUX!T152","v":"133 - Comércio atacadista de cereais e farinhas"}]
[null,null,null,null,null,null,null,null,null,null,null,null,null,null,null,null,null,null,null,null,null,null,null,null,null,null,null,null,null,null,null,null,null,{"$f":"AUX!T153","v":"134 - Comércio atacadista de produtos alimentícios diversos"}]
[null,null,null,null,null,null,null,null,null,null,null,null,null,null,null,null,null,null,null,null,null,null,null,null,null,null,null,null,null,null,null,null,null,{"$f":"AUX!T154","v":"135 - Comércio atacadista de mercadorias em geral com produtos alimentícios"}]
[null,null,null,null,null,null,null,null,null,null,null,null,null,null,null,null,null,null,null,null,null,null,null,null,null,null,null,null,null,null,null,null,null,{"$f":"AUX!T155","v":"136 - Comércio varejista"}]
[null,null,null,null,null,null,null,null,null,null,null,null,null,null,null,null,null,null,null,null,null,null,null,null,null,null,null,null,null,null,null,null,null,{"$f":"AUX!T156","v":"137 - Comércio varejista de veículos"}]
[null,null,null,null,null,null,null,null,null,null,null,null,null,null,null,null,null,null,null,null,null,null,null,null,null,null,null,null,null,null,null,null,null,{"$f":"AUX!T157","v":"138 - Comércio varejista de veículos e acessórios"}]
[null,null,null,null,null,null,null,null,null,null,null,null,null,null,null,null,null,null,null,null,null,null,null,null,null,null,null,null,null,null,null,null,null,{"$f":"AUX!T158","v":"139 - Comércio varejista de móveis, artigos de habitação e de utilidade doméstica"}]
[null,null,null,null,null,null,null,null,null,null,null,null,null,null,null,null,null,null,null,null,null,null,null,null,null,null,null,null,null,null,null,null,null,{"$f":"AUX!T159","v":"140 - Comércio varejista de combustíveis e lubrificantes, exclusive gás liquefeito de petróleo"}]
[null,null,null,null,null,null,null,null,null,null,null,null,null,null,null,null,null,null,null,null,null,null,null,null,null,null,null,null,null,null,null,null,null,{"$f":"AUX!T160","v":"141 - Supermercados"}]
[null,null,null,null,null,null,null,null,null,null,null,null,null,null,null,null,null,null,null,null,null,null,null,null,null,null,null,null,null,null,null,null,null,{"$f":"AUX!T161","v":"142 - Cooperativas"}]
[null,null,null,null,null,null,null,null,null,null,null,null,null,null,null,null,null,null,null,null,null,null,null,null,null,null,null,null,null,null,null,null,null,{"$f":"AUX!T162","v":"143 - Cooperativas de beneficiamento, industrialização e comercialização"}]
[null,null,null,null,null,null,null,null,null,null,null,null,null,null,null,null,null,null,null,null,null,null,null,null,null,null,null,null,null,null,null,null,null,{"$f":"AUX!T163","v":"144 - Cooperativas de consumo de bens e serviços"}]
[null,null,null,null,null,null,null,null,null,null,null,null,null,null,null,null,null,null,null,null,null,null,null,null,null,null,null,null,null,null,null,null,null,{"$f":"AUX!T164","v":"145 - Fundações, entidades e associações de fins não lucrativos"}]
[null,null,null,null,null,null,null,null,null,null,null,null,null,null,null,null,null,null,null,null,null,null,null,null,null,null,null,null,null,null,null,null,null,{"$f":"AUX!T165","v":"146 - Fundações beneficentes, religiosas e assistenciais"}]
[null,null,null,null,null,null,null,null,null,null,null,null,null,null,null,null,null,null,null,null,null,null,null,null,null,null,null,null,null,null,null,null,null,{"$f":"AUX!T166","v":"147 - Fundações culturais, científicas e educacionais"}]
[null,null,null,null,null,null,null,null,null,null,null,null,null,null,null,null,null,null,null,null,null,null,null,null,null,null,null,null,null,null,null,null,null,{"$f":"AUX!T167","v":"148 - Associações beneficentes, religiosas e assistenciais"}]
[null,null,null,null,null,null,null,null,null,null,null,null,null,null,null,null,null,null,null,null,null,null,null,null,null,null,null,null,null,null,null,null,null,{"$f":"AUX!T168","v":"149 - Associações esportivas e recreativas"}]
[null,null,null,null,null,null,null,null,null,null,null,null,null,null,null,null,null,null,null,null,null,null,null,null,null,null,null,null,null,null,null,null,null,{"$f":"AUX!T169","v":"150 - Administração pública direta ou Autárquica"}]

{"sheet":"TAB","index":2,"n_rows":301,"n_cols":45,"rows_kept":301,"cut":false,"hidden":true,"merged":[[37,4,38,4]]}
[null,null,null,null,null,null,null,null,null,null,null,null,null,null,null,null,null,null,null,null,null,null,null,null,null,null,null,null,null,null,null,null,null,null,null,null,null,"ÁREA ÚTIL\n(m²)","DEMANDA (kW)","ÁREA ÚTIL\n(m²)",null,0,null,"Nº Apto","F.\nMult."]
[null,null,null,null,null,null,null,null,null,null,null,null,null,null,null,null,null,null,null,null,null,null,null,null,null,null,null,null,null,null,null,null,null,null,null,null,null,0,15,0.39,null,null,null,1,"*"]
[null,null,null,null,null,null,null,null,null,null,null,null,null,null,null,null,null,null,null,null,null,null,null,null,null,null,null,null,null,null,null,null,null,null,null,null,null,16,20,0.51,null,null,null,2,"*"]
[null,"CONFIRMAR?","ATIVIDADE","TIPO DE CARGA","TENSÃO","LIGAÇÃO","CLASSE","lista resid","lista n-resid","CALCULO DA DEMANDA","MENSAGEM","ISOLAMENTO","CATEGORIA DE MEDIÇÃO","CABO XLPE","DJ","PE",null,null,null,null,null,null,null,null,null,null,null,null,"NP","NP","PE","DJ","DJ",null,"PE","Nº F",null,21,25,0.62,null,null,null,3,"*"]
["/ 220","SIM","Residencia","Ilum./Tomadas ","  220V","MONOFÁSICA","Residencial","Apartamento","Cant. de Obras","CALCULAR UTILIZANDO FATOR DE DEMANDA E FATOR DE POTENCIA CONFORME NDU 001","PREENCHA TODOS OS CAMPOS: CLASSE DE ATENDIMENTO; TIPO DE UC E RAMO DE ATIVIDADE.","XLPE /EPR/HEPR","M1","1#6(6)-XLPE/EPR/HEPR OU 1#6(6)-PVC","30/32",6,null,null,null,null,null,null,null,null,null,null,null,null,6,6,6,32,30,0.22,6,1,25,26,30,0.73,null,null,null,4,3.88]
["/ (380 * √3)","NÃO","Hospitais e Similares","Aquecimento","  380V","TRIFÁSICA","Não Residencial","Casa","Condominio","CALCULAR UTILIZANDO FATOR DE DEMANDA E FATOR DE POTENCIA DEFINIDOS PELO PROJETISTA","AGUARDANDO  A DECLARAÇÃO DAS CARGAS ","PVC","M2","1#10(10)-XLPE/EPR/HEPR OU 1#10(10)-PVC",50,10,null,null,null,null,null,null,null,null,null,null,null,null,10,10,10,50,40,0.22,10,1,25,31,35,0.84,null,null,null,5,4.84]
[null,null,"Hóteis e Similares","Tomadas Especiais",null,null,"Irrigante","Quitinete","Loja",null,"CARGA INSTALADA SUPERIOR A 75kW - O ATENDIMENTO DEVERÁ SER FEITO EM MT COM TRANSFORMADOR PARTICULAR",null,"M3","1#16(16)-XLPE/EPR/HEPR OU 1#16(16)-PVC",70,10,null,null,null,null,null,null,null,null,null,null,null,null,16,16,10,70,63,0.22,16,1,25,36,40,0.95,null,null,null,6,5.8]
[null,null,"Escritorio","Fogão/Forno Elétrico",null,null,null,"Flat","Sala Comercial",null,"DEMANDA SUPERIOR A 75kW - NECESSITA TRANSFORMADOR PARTICULAR .",null,"T1","3#6(6)-XLPE/EPR/HEPR OU 3#10(10)-PVC",40,6,null,null,null,null,null,null,null,null,null,null,null,null,10,10,6,40,30,0.65800000000000003,25,3,50,41,45,1.05,null,null,null,7,6.76]
[null,null,"Escolas e Similares","Refrigeração",null,null,null,"Outros","Outros",null,"CARGA MOTRIZ SUPERIOR A 30 CV E CARGA INSTALADA SUPERIOR A 50kW - O ATENDIMENTO DEVERÁ SER FEITO EM MT COM TRANSFORMADOR PARTICULAR",null,"T2","3#10(10)-XLPE/EPR/HEPR OU 3#10(10)-PVC",50,10,null,null,null,null,null,null,null,null,null,null,null,null,10,10,10,50,40,0.65800000000000003,35,3,32,46,50,1.1599999999999999,null,null,null,8,7.72]
[null,null,"Quarteis e Semelhantes","Raios-X",null,null,null,null,"Irrigação",null,"UC DENTRO DOS LIMITES PARA ATENDIMENTO EM BT. ",null,"T3","3#16(16)-XLPE/EPR/HEPR OU 3#16(16)-PVC",70,10,null,null,null,null,null,null,null,null,null,null,null,null,25,25,10,70,63,0.65800000000000003,50,3,40,51,55,1.26,null,null,null,9,8.68]
[null,null,"Outros","Maq. Solda",null,null,null,null,null,null,"A LIGAÇÃO DESTA UC DEVERÁ SER TRIFÁSICA.",null,"T4","3#25(25)-XLPE/EPR/HEPR OU 3#25(25)-PVC",100,16,null,null,null,null,null,null,null,null,null,null,null,null,35,35,16,100,100,0.65800000000000003,70,3,50,56,60,1.36,null,null,null,10,9.64]
[null,null,null,"Motriz Monofásica ",null,null,null,null,null,{"$f":"IF(OR((#REF!<>$K$10),(#REF!<>$K$11),(#REF!<>$K$12)),1,0)","v":{"$error":"#REF!"}},"PARA A LIGAÇÃO DA REFERIDA UC FICA A OPÇÃO POR SER MONOFÁSICA OU TRIFÁSICA.",null,"T5","3#50(35)-XLPE/EPR/HEPR OU 3#50(35)-PVC",125,25,null,null,null,null,null,null,null,null,null,null,null,null,35,70,25,125,125,0.65800000000000003,95,3,65,61,65,1.47,null,null,null,11,10.42]
[null,null,null,"Motriz Trifásica",null,null,null,null,null,null,"Informe a Classe",null,">75kW","3#70(35)-XLPE/EPR/HEPR OU 3#70(35)-PVC",175,50,null,null,null,null,null,null,null,null,null,null,null,null,"-","-","-","-","-","-","-",3,null,66,70,1.57,null,null,null,12,11.2]
[null,null,null,null,null,null,null,null,null,null,"Informe Tipo de UC",null,null,null,null,null,null,null,null,null,null,null,null,null,null,null,null,null,11,12,13,14,15,16,17,18,null,71,75,1.67,null,null,null,13,11.98]
[null,null,null,null,null,null,null,null,null,null," - 1F + 1N",null,null,null,null,null,null,null,null,null,null,null,null,null,null,null,null,null,null,null,null,null,null,null,null,null,null,76,80,1.76,null,null,null,14,12.76]
[null,null,null,null,null,"ELETROD.",null,null,null,null," - 3F + 1N",null,null,null,null,null,null,null,null,null,null,null,null,null,null,null,null,null,null,null,null,null,null,null,null,null,null,81,85,1.86,null,null,null,15,13.54]
[null,null,null,null,null,"PVC",null,null,null,null,"UNIDADES NÃO INFORMADAS",null,null,null,null,null,null,null,null,null,null,null,null,null,null,null,null,null,null,null,null,null,null,null,null,null,null,86,90,1.96,null,null,null,16,14.32]
[null,null,null,null,null,"Aço Galv.",null,null,null,null,"ERRO!!!",null,null,null,null,null,null,null,null,null,null,null,null,null,null,null,null,null,null,null,null,null,null,null,null,null,null,91,95,2.06,null,null,null,17,15.1]
[null,null,null,null,null,"A definir",null,null,null,null,"FAVOR CONFIRMAR OU NÃO OS DIMENSIONAMENTOS SUGERIDOS",null,null,null,null,null,null,null,null,null,null,null,null,null,null,null,null,null,null,null,null,null,null,null,null,null,null,96,100,2.16,null,null,null,18,15.88]
[null,null,null,null,null,null,null,null,null,{"$f":"IF((#REF!=$K$21),1,0)","v":{"$error":"#REF!"}},"FAVOR INFORMAR O(S) NOVO(S) DIMENSIONAMENTO(S)",null,null,null,null,null,null,null,null,null,null,null,null,null,null,null,null,null,null,null,null,null,null,null,null,null,null,101,110,2.35,null,null,null,19,16.66]
[null,null,null,null,null,null,null,null,null,null,"TODOS OS DIMENSIONAMENTOS FORAM CONFIRMADOS",null,null,null,null,null,null,null,null,null,null,null,null,null,null,null,null,null,null,null,null,null,null,null,null,null,null,111,120,2.54,null,null,null,20,17.440000000000001]
[null,null,null,null,null,null,null,null,null,null,"TIPO DE LIGAÇÃO INCOMPATIVEL COM A DEMANDA",null,null,null,null,null,null,null,null,null,null,null,null,null,null,null,null,null,null,null,null,null,null,null,null,null,null,121,130,2.73,null,null,null,21,18.04]
[null,null,null,null,null,null,null,null,null,null,"#",null,null,null,null,null,null,null,null,null,null,null,null,null,null,null,null,null,null,null,null,null,null,null,null,null,null,131,140,2.91,null,null,null,22,18.649999999999999]
[null,null,null,null,null,null,null,null,null,null,"(",null,null,null,null,null,null,null,null,null,null,null,null,null,null,null,null,null,null,null,null,null,null,null,null,null,null,141,150,3.1,null,null,null,23,19.25]
[null,null,null,null,null,null,null,null,null,null,")mm² -0,6/1kV-",null,null,null,null,null,null,null,null,null,null,null,null,null,null,null,null,null,null,null,null,null,null,null,null,null,null,151,160,3.28,null,null,null,24,19.86]
[null,null,null,null,null,null,null,null,null,null," - 0,6/1kV - ",null,null,null,null,null,null,null,null,null,null,null,null,null,null,null,null,null,null,null,null,null,null,null,null,null,null,161,170,3.47,null,null,null,25,20.46]
[null,null,null,null,null,null,null,null,null,null,"INFORME OS DADOS REFERENTE AOS CONDUTORES",null,null,null,null,null,null,null,null,null,null,null,null,null,null,null,null,null,null,null,null,null,null,null,null,null,null,171,180,3.65,null,null,null,26,21.06]
[null,null,null,null,null,null,null,null,null,null,"INFORME O DISJUNTOR ADOTADO",null,null,null,null,null,null,null,null,null,null,null,null,null,null,null,null,null,null,null,null,null,null,null,null,null,null,181,190,3.83,null,null,null,27,21.67]
[null,null,null,null,null,null,null,null,null,null,"INFORME A SEÇÃO DO ATERRAMENTO",null,null,null,null,null,null,null,null,null,null,null,null,null,null,null,null,null,null,null,null,null,null,null,null,null,null,191,200,4.01,null,null,null,28,22.27]
[null,null,null,null,null,null,null,null,null,null,"CABO DE COBRE NU - #",null,null,null,null,null,null,null,null,null,null,null,null,null,null,null,null,null,null,null,null,null,null,null,null,null,null,201,220,4.3600000000000003,null,null,null,29,22.88]
[null,null,null,null,null,null,null,null,null,null,"FAVOR DECLARAR AS CARGAS DO CONJUNTO ANTERIOR DE UCs!!!",null,null,null,null,null,null,null,null,null,null,null,null,null,null,null,null,null,null,null,null,null,null,null,null,null,null,221,240,4.72,null,null,null,30,23.48]
[null,null,null,null,null,null,null,null,null,null,"PARA QUE ESTAS CARGAS SEJAM ACEITAS, FAVOR DECLARAR AS CARGAS DO CONJUNTO ANTERIOR DE UCs!!!",null,null,null,null,null,null,null,null,null,null,null,null,null,null,null,null,null,null,null,null,null,null,null,null,null,null,241,260,5.07,null,null,null,31,24.08]
[null,null,null,null,null,null,null,null,null,null,"-",null,null,null,null,null,null,null,null,null,null,null,null,null,null,null,null,null,null,null,null,null,null,null,null,null,null,261,280,5.42,null,null,null,32,24.69]
[null,null,null,null,null,null,null,null,null,null,")mm²",null,null,null,null,null,null,null,null,null,null,null,null,null,null,null,null,null,null,null,null,null,null,null,null,null,null,281,300,5.76,null,null,null,33,25.29]
[null,null,null,null,null,null,null,null,null,null,null,null,null,null,null,null,null,null,null,null,null,null,null,null,null,null,null,null,null,null,null,null,null,null,null,null,null,301,350,6.61,null,null,null,34,25.9]
[null,null,null,null,null,null,null,null,null,null,null,null,null,null,null,null,null,null,null,null,null,null,null,null,null,null,null,null,null,null,null,null,null,null,null,null,null,351,400,7.45,null,null,null,35,26.5]
[null,null,null,null,null,null,null,null,null,null,null,null,null,null,null,null,null,null,null,null,null,null,null,null,null,null,null,null,null,null,null,null,null,null,null,null,null,401,450,8.2799999999999994,null,null,null,36,27.1]
[null,null,"Tensão","Ramal de Entrada","Isolamento","Aterramento","Nº de","Eletroduto","Disjuntor",null,null,null,null,null,null,null,null,null,null,null,null,null,null,null,null,null,null,null,null,null,null,null,null,null,null,null,null,451,500,9.1,null,null,null,37,27.71]
[null,null,"(V)","(mm²)",null,"(mm²)","Hastes","(mm)","(A)",null,null,null,null,null,null,null,null,null,null,null,null,null,null,null,null,null,null,null,null,null,null,null,null,null,null,null,null,501,550,9.91,null,null,null,38,28.31]
[null,null," 380/220","3#16(16)","XLPE",10,3,"1x40",70,null,null,null,null,null,null,null,null,null,null,null,null,null,null,null,null,null,null,null,null,null,null,null,null,null,null,null,null,551,600,10.71,null,null,null,39,28.92]
[null,null,null,null,null,null,null,null,null,null,null,null,null,null,null,null,null,null,null,null,null,null,null,null,null,null,null,null,null,null,null,null,null,null,null,null,null,601,650,11.51,null,null,null,40,29.52]
[null,null,null,null,null,null,null,null,null,null,null,null,null,null,null,null,null,null,null,null,null,null,null,null,null,null,null,null,null,null,null,null,null,null,null,null,null,651,700,12.3,null,null,null,41,30.12]
[null,null,null,null,null,null,null,null,null,null,null,null,null,null,null,null,null,null,null,null,null,null,null,null,null,null,null,null,null,null,null,null,null,null,null,null,null,701,800,13.86,null,null,null,42,30.73]
[null,null,null,null,null,null,null,null,null,null,null,null,null,null,null,null,null,null,null,null,null,null,null,null,null,null,null,null,null,null,null,null,null,null,null,null,null,801,900,15.4,null,null,null,43,31.33]
[null,null,null,null,null,null,null,null,null,null,null,null,null,null,null,null,null,null,null,null,null,null,null,null,null,null,null,null,null,null,null,null,null,null,null,null,null,901,1000,16.93,null,null,null,44,31.94]
[null,null,null,null,null,null,null,null,null,null,null,null,null,null,null,null,null,null,null,null,null,null,null,null,null,null,null,null,null,null,null,null,null,null,null,null,null,null,null,null,null,null,null,45,32.54]
[null,null,null,null,null,null,null,null,null,null,null,null,null,null,null,null,null,null,null,null,null,null,null,null,null,null,null,null,null,null,null,null,null,null,null,null,null,null,null,null,null,null,null,46,33.1]
[null,null,null,null,null,null,null,null,null,null,null,null,null,null,null,null,null,null,null,null,null,null,null,null,null,null,null,null,null,null,null,null,null,null,null,null,null,null,null,null,null,null,null,47,33.659999999999997]
[null,null,null,null,null,null,null,null,null,null,null,null,null,null,null,null,null,null,null,null,null,null,null,null,null,null,null,null,null,null,null,null,null,null,null,null,null,null,null,null,null,null,null,48,34.22]
[null,null,null,null,null,null,null,null,null,null,null,null,null,null,null,null,null,null,null,null,null,null,null,null,null,null,null,null,null,null,null,null,null,null,null,null,null,null,null,null,null,null,null,49,34.78]
[null,null,null,null,null,null,null,null,null,null,null,null,null,null,null,null,null,null,null,null,null,null,null,null,null,null,null,null,null,null,null,null,null,null,null,null,null,null,null,null,null,null,null,50,35.340000000000003]
[null,null,null,null,null,null,null,null,null,null,null,null,null,null,null,null,null,null,null,null,null,null,null,null,null,null,null,null,null,null,null,null,null,null,null,null,null,null,null,null,null,null,null,51,35.9]
[null,null,null,null,null,null,null,null,null,null,null,null,null,null,null,null,null,null,null,null,null,null,null,null,null,null,null,null,null,null,null,null,null,null,null,null,null,null,null,null,null,null,null,52,36.46]
[null,null,null,null,null,null,null,null,null,null,null,null,null,null,null,null,null,null,null,null,null,null,null,null,null,null,null,null,null,null,null,null,null,null,null,null,null,null,null,null,null,null,null,53,37.020000000000003]
[null,null,null,null,null,null,null,null,null,null,null,null,null,null,null,null,null,null,null,null,null,null,null,null,null,null,null,null,null,null,null,null,null,null,null,null,null,null,null,null,null,null,null,54,37.58]
[null,null,null,null,null,null,null,null,null,null,null,null,null,null,null,null,null,null,null,null,null,null,null,null,null,null,null,null,null,null,null,null,null,null,null,null,null,null,null,null,null,null,null,55,38.14]
[null,null,null,null,null,null,null,null,null,null,null,null,null,null,null,null,null,null,null,null,null,null,null,null,null,null,null,null,null,null,null,null,null,null,null,null,null,null,null,null,null,null,null,56,38.700000000000003]
[null,null,null,null,null,null,null,null,null,null,null,null,null,null,null,null,null,null,null,null,null,null,null,null,null,null,null,null,null,null,null,null,null,null,null,null,null,null,null,null,null,null,null,57,39.26]
[null,null,null,null,null,null,null,null,null,null,null,null,null,null,null,null,null,null,null,null,null,null,null,null,null,null,null,null,null,null,null,null,null,null,null,null,null,null,null,null,null,null,null,58,39.82]
[null,null,null,null,null,null,null,null,null,null,null,null,null,null,null,null,null,null,null,null,null,null,null,null,null,null,null,null,null,null,null,null,null,null,null,null,null,null,null,null,null,null,null,59,40.380000000000003]
[null,null,null,null,null,null,null,null,null,null,null,null,null,null,null,null,null,null,null,null,null,null,null,null,null,null,null,null,null,null,null,null,null,null,null,null,null,null,null,null,null,null,null,60,40.94]
[null,null,null,null,null,null,null,null,null,null,null,null,null,null,null,null,null,null,null,null,null,null,null,null,null,null,null,null,null,null,null,null,null,null,null,null,null,null,null,null,null,null,null,61,41.5]
[null,null,null,null,null,null,null,null,null,null,null,null,null,null,null,null,null,null,null,null,null,null,null,null,null,null,null,null,null,null,null,null,null,null,null,null,null,null,null,null,null,null,null,62,42.06]
[null,null,null,null,null,null,null,null,null,null,null,null,null,null,null,null,null,null,null,null,null,null,null,null,null,null,null,null,null,null,null,null,null,null,null,null,null,null,null,null,null,null,null,63,42.62]
[null,null,null,null,null,null,null,null,null,null,null,null,null,null,null,null,null,null,null,null,null,null,null,null,null,null,null,null,null,null,null,null,null,null,null,null,null,null,null,null,null,null,null,64,43.18]
[null,null,null,null,null,null,null,null,null,null,null,null,null,null,null,null,null,null,null,null,null,null,null,null,null,null,null,null,null,null,null,null,null,null,null,null,null,null,null,null,null,null,null,65,43.74]
[null,null,null,null,null,null,null,null,null,null,null,null,null,null,null,null,null,null,null,null,null,null,null,null,null,null,null,null,null,null,null,null,null,null,null,null,null,null,null,null,null,null,null,66,44.3]
[null,null,null,null,null,null,null,null,null,null,null,null,null,null,null,null,null,null,null,null,null,null,null,null,null,null,null,null,null,null,null,null,null,null,null,null,null,null,null,null,null,null,null,67,44.86]
[null,null,null,null,null,null,null,null,null,null,null,null,null,null,null,null,null,null,null,null,null,null,null,null,null,null,null,null,null,null,null,null,null,null,null,null,null,null,null,null,null,null,null,68,45.42]
[null,null,null,null,null,null,null,null,null,null,null,null,null,null,null,null,null,null,null,null,null,null,null,null,null,null,null,null,null,null,null,null,null,null,null,null,null,null,null,null,null,null,null,69,45.98]
[null,null,null,null,null,null,null,null,null,null,null,null,null,null,null,null,null,null,null,null,null,null,null,null,null,null,null,null,null,null,null,null,null,null,null,null,null,null,null,null,null,null,null,70,46.54]
[null,null,null,null,null,null,null,null,null,null,null,null,null,null,null,null,null,null,null,null,null,null,null,null,null,null,null,null,null,null,null,null,null,null,null,null,null,null,null,null,null,null,null,71,47.1]
[null,null,null,null,null,null,null,null,null,null,null,null,null,null,null,null,null,null,null,null,null,null,null,null,null,null,null,null,null,null,null,null,null,null,null,null,null,null,null,null,null,null,null,72,47.66]
[null,null,null,null,null,null,null,null,null,null,null,null,null,null,null,null,null,null,null,null,null,null,null,null,null,null,null,null,null,null,null,null,null,null,null,null,null,null,null,null,null,null,null,73,48.22]
[null,null,null,null,null,null,null,null,null,null,null,null,null,null,null,null,null,null,null,null,null,null,null,null,null,null,null,null,null,null,null,null,null,null,null,null,null,null,null,null,null,null,null,74,48.78]
[null,null,null,null,null,null,null,null,null,null,null,null,null,null,null,null,null,null,null,null,null,null,null,null,null,null,null,null,null,null,null,null,null,null,null,null,null,null,null,null,null,null,null,75,49.34]
[null,null,null,null,null,null,null,null,null,null,null,null,null,null,null,null,null,null,null,null,null,null,null,null,null,null,null,null,null,null,null,null,null,null,null,null,null,null,null,null,null,null,null,76,49.9]
[null,null,null,null,null,null,null,null,null,null,null,null,null,null,null,null,null,null,null,null,null,null,null,null,null,null,null,null,null,null,null,null,null,null,null,null,null,null,null,null,null,null,null,77,50.46]
[null,null,null,null,null,null,null,null,null,null,null,null,null,null,null,null,null,null,null,null,null,null,null,null,null,null,null,null,null,null,null,null,null,null,null,null,null,null,null,null,null,null,null,78,51.58]
[null,null,null,null,null,null,null,null,null,null,null,null,null,null,null,null,null,null,null,null,null,null,null,null,null,null,null,null,null,null,null,null,null,null,null,null,null,null,null,null,null,null,null,79,51.58]
[null,null,null,null,null,null,null,null,null,null,null,null,null,null,null,null,null,null,null,null,null,null,null,null,null,null,null,null,null,null,null,null,null,null,null,null,null,null,null,null,null,null,null,80,52.14]
[null,null,null,null,null,null,null,null,null,null,null,null,null,null,null,null,null,null,null,null,null,null,null,null,null,null,null,null,null,null,null,null,null,null,null,null,null,null,null,null,null,null,null,81,52.7]
[null,null,null,null,null,null,null,null,null,null,null,null,null,null,null,null,null,null,null,null,null,null,null,null,null,null,null,null,null,null,null,null,null,null,null,null,null,null,null,null,null,null,null,82,53.26]
[null,null,null,null,null,null,null,null,null,null,null,null,null,null,null,null,null,null,null,null,null,null,null,null,null,null,null,null,null,null,null,null,null,null,null,null,null,null,null,null,null,null,null,83,53.82]
[null,null,null,null,null,null,null,null,null,null,null,null,null,null,null,null,null,null,null,null,null,null,null,null,null,null,null,null,null,null,null,null,null,null,null,null,null,null,null,null,null,null,null,84,54.38]
[null,null,null,null,null,null,null,null,null,null,null,null,null,null,null,null,null,null,null,null,null,null,null,null,null,null,null,null,null,null,null,null,null,null,null,null,null,null,null,null,null,null,null,85,54.94]
[null,null,null,null,null,null,null,null,null,null,null,null,null,null,null,null,null,null,null,null,null,null,null,null,null,null,null,null,null,null,null,null,null,null,null,null,null,null,null,null,null,null,null,86,55.5]
[null,null,null,null,null,null,null,null,null,null,null,null,null,null,null,null,null,null,null,null,null,null,null,null,null,null,null,null,null,null,null,null,null,null,null,null,null,null,null,null,null,null,null,87,56.06]
[null,null,null,null,null,null,null,null,null,null,null,null,null,null,null,null,null,null,null,null,null,null,null,null,null,null,null,null,null,null,null,null,null,null,null,null,null,null,null,null,null,null,null,88,56.62]
[null,null,null,null,null,null,null,null,null,null,null,null,null,null,null,null,null,null,null,null,null,null,null,null,null,null,null,null,null,null,null,null,null,null,null,null,null,null,null,null,null,null,null,89,57.18]
[null,null,null,null,null,null,null,null,null,null,null,null,null,null,null,null,null,null,null,null,null,null,null,null,null,null,null,null,null,null,null,null,null,null,null,null,null,null,null,null,null,null,null,90,57.74]
[null,null,null,null,null,null,null,null,null,null,null,null,null,null,null,null,null,null,null,null,null,null,null,null,null,null,null,null,null,null,null,null,null,null,null,null,null,null,null,null,null,null,null,91,58.3]
[null,null,null,null,null,null,null,null,null,null,null,null,null,null,null,null,null,null,null,null,null,null,null,null,null,null,null,null,null,null,null,null,null,null,null,null,null,null,null,null,null,null,null,92,58.86]
[null,null,null,null,null,null,null,null,null,null,null,null,null,null,null,null,null,null,null,null,null,null,null,null,null,null,null,null,null,null,null,null,null,null,null,null,null,null,null,null,null,null,null,93,59.42]
[null,null,null,null,null,null,null,null,null,null,null,null,null,null,null,null,null,null,null,null,null,null,null,null,null,null,null,null,null,null,null,null,null,null,null,null,null,null,null,null,null,null,null,94,59.98]
[null,null,null,null,null,null,null,null,null,null,null,null,null,null,null,null,null,null,null,null,null,null,null,null,null,null,null,null,null,null,null,null,null,null,null,null,null,null,null,null,null,null,null,95,60.54]
[null,null,null,null,null,null,null,null,null,null,null,null,null,null,null,null,null,null,null,null,null,null,null,null,null,null,null,null,null,null,null,null,null,null,null,null,null,null,null,null,null,null,null,96,61.1]
[null,null,null,null,null,null,null,null,null,null,null,null,null,null,null,null,null,null,null,null,null,null,null,null,null,null,null,null,null,null,null,null,null,null,null,null,null,null,null,null,null,null,null,97,61.66]
[null,null,null,null,null,null,null,null,null,null,null,null,null,null,null,null,null,null,null,null,null,null,null,null,null,null,null,null,null,null,null,null,null,null,null,null,null,null,null,null,null,null,null,98,62.22]
[null,null,null,null,null,null,null,null,null,null,null,null,null,null,null,null,null,null,null,null,null,null,null,null,null,null,null,null,null,null,null,null,null,null,null,null,null,null,null,null,null,null,null,99,62.78]
[null,null,null,null,null,null,null,null,null,null,null,null,null,null,null,null,null,null,null,null,null,null,null,null,null,null,null,null,null,null,null,null,null,null,null,null,null,null,null,null,null,null,null,100,63.34]
[null,null,null,null,null,null,null,null,null,null,null,null,null,null,null,null,null,null,null,null,null,null,null,null,null,null,null,null,null,null,null,null,null,null,null,null,null,null,null,null,null,null,null,101,63.59]
[null,null,null,null,null,null,null,null,null,null,null,null,null,null,null,null,null,null,null,null,null,null,null,null,null,null,null,null,null,null,null,null,null,null,null,null,null,null,null,null,null,null,null,102,63.84]
[null,null,null,null,null,null,null,null,null,null,null,null,null,null,null,null,null,null,null,null,null,null,null,null,null,null,null,null,null,null,null,null,null,null,null,null,null,null,null,null,null,null,null,103,64.09]
[null,null,null,null,null,null,null,null,null,null,null,null,null,null,null,null,null,null,null,null,null,null,null,null,null,null,null,null,null,null,null,null,null,null,null,null,null,null,null,null,null,null,null,104,64.34]
[null,null,null,null,null,null,null,null,null,null,null,null,null,null,null,null,null,null,null,null,null,null,null,null,null,null,null,null,null,null,null,null,null,null,null,null,null,null,null,null,null,null,null,105,64.59]
[null,null,null,null,null,null,null,null,null,null,null,null,null,null,null,null,null,null,null,null,null,null,null,null,null,null,null,null,null,null,null,null,null,null,null,null,null,null,null,null,null,null,null,106,64.84]
[null,null,null,null,null,null,null,null,null,null,null,null,null,null,null,null,null,null,null,null,null,null,null,null,null,null,null,null,null,null,null,null,null,null,null,null,null,null,null,null,null,null,null,107,65.09]
[null,null,null,null,null,null,null,null,null,null,null,null,null,null,null,null,null,null,null,null,null,null,null,null,null,null,null,null,null,null,null,null,null,null,null,null,null,null,null,null,null,null,null,108,65.34]
[null,null,null,null,null,null,null,null,null,null,null,null,null,null,null,null,null,null,null,null,null,null,null,null,null,null,null,null,null,null,null,null,null,null,null,null,null,null,null,null,null,null,null,109,65.59]
[null,null,null,null,null,null,null,null,null,null,null,null,null,null,null,null,null,null,null,null,null,null,null,null,null,null,null,null,null,null,null,null,null,null,null,null,null,null,null,null,null,null,null,110,65.84]
[null,null,null,null,null,null,null,null,null,null,null,null,null,null,null,null,null,null,null,null,null,null,null,null,null,null,null,null,null,null,null,null,null,null,null,null,null,null,null,null,null,null,null,111,66.09]
[null,null,null,null,null,null,null,null,null,null,null,null,null,null,null,null,null,null,null,null,null,null,null,null,null,null,null,null,null,null,null,null,null,null,null,null,null,null,null,null,null,null,null,112,66.34]
[null,null,null,null,null,null,null,null,null,null,null,null,null,null,null,null,null,null,null,null,null,null,null,null,null,null,null,null,null,null,null,null,null,null,null,null,null,null,null,null,null,null,null,113,66.59]
[null,null,null,null,null,null,null,null,null,null,null,null,null,null,null,null,null,null,null,null,null,null,null,null,null,null,null,null,null,null,null,null,null,null,null,null,null,null,null,null,null,null,null,114,66.84]
[null,null,null,null,null,null,null,null,null,null,null,null,null,null,null,null,null,null,null,null,null,null,null,null,null,null,null,null,null,null,null,null,null,null,null,null,null,null,null,null,null,null,null,115,67.09]
[null,null,null,null,null,null,null,null,null,null,null,null,null,null,null,null,null,null,null,null,null,null,null,null,null,null,null,null,null,null,null,null,null,null,null,null,null,null,null,null,null,null,null,116,67.34]
[null,null,null,null,null,null,null,null,null,null,null,null,null,null,null,null,null,null,null,null,null,null,null,null,null,null,null,null,null,null,null,null,null,null,null,null,null,null,null,null,null,null,null,117,67.59]
[null,null,null,null,null,null,null,null,null,null,null,null,null,null,null,null,null,null,null,null,null,null,null,null,null,null,null,null,null,null,null,null,null,null,null,null,null,null,null,null,null,null,null,118,67.84]
[null,null,null,null,null,null,null,null,null,null,null,null,null,null,null,null,null,null,null,null,null,null,null,null,null,null,null,null,null,null,null,null,null,null,null,null,null,null,null,null,null,null,null,119,68.09]
[null,null,null,null,null,null,null,null,null,null,null,null,null,null,null,null,null,null,null,null,null,null,null,null,null,null,null,null,null,null,null,null,null,null,null,null,null,null,null,null,null,null,null,120,68.34]
[null,null,null,null,null,null,null,null,null,null,null,null,null,null,null,null,null,null,null,null,null,null,null,null,null,null,null,null,null,null,null,null,null,null,null,null,null,null,null,null,null,null,null,121,68.540000000000006]
[null,null,null,null,null,null,null,null,null,null,null,null,null,null,null,null,null,null,null,null,null,null,null,null,null,null,null,null,null,null,null,null,null,null,null,null,null,null,null,null,null,null,null,122,68.84]
[null,null,null,null,null,null,null,null,null,null,null,null,null,null,null,null,null,null,null,null,null,null,null,null,null,null,null,null,null,null,null,null,null,null,null,null,null,null,null,null,null,null,null,123,69.09]
[null,null,null,null,null,null,null,null,null,null,null,null,null,null,null,null,null,null,null,null,null,null,null,null,null,null,null,null,null,null,null,null,null,null,null,null,null,null,null,null,null,null,null,124,69.34]
[null,null,null,null,null,null,null,null,null,null,null,null,null,null,null,null,null,null,null,null,null,null,null,null,null,null,null,null,null,null,null,null,null,null,null,null,null,null,null,null,null,null,null,125,69.59]
[null,null,null,null,null,null,null,null,null,null,null,null,null,null,null,null,null,null,null,null,null,null,null,null,null,null,null,null,null,null,null,null,null,null,null,null,null,null,null,null,null,null,null,126,69.790000000000006]
[null,null,null,null,null,null,null,null,null,null,null,null,null,null,null,null,null,null,null,null,null,null,null,null,null,null,null,null,null,null,null,null,null,null,null,null,null,null,null,null,null,null,null,127,69.989999999999995]
[null,null,null,null,null,null,null,null,null,null,null,null,null,null,null,null,null,null,null,null,null,null,null,null,null,null,null,null,null,null,null,null,null,null,null,null,null,null,null,null,null,null,null,128,70.19]
[null,null,null,null,null,null,null,null,null,null,null,null,null,null,null,null,null,null,null,null,null,null,null,null,null,null,null,null,null,null,null,null,null,null,null,null,null,null,null,null,null,null,null,129,70.39]
[null,null,null,null,null,null,null,null,null,null,null,null,null,null,null,null,null,null,null,null,null,null,null,null,null,null,null,null,null,null,null,null,null,null,null,null,null,null,null,null,null,null,null,130,70.59]
[null,null,null,null,null,null,null,null,null,null,null,null,null,null,null,null,null,null,null,null,null,null,null,null,null,null,null,null,null,null,null,null,null,null,null,null,null,null,null,null,null,null,null,131,70.790000000000006]
[null,null,null,null,null,null,null,null,null,null,null,null,null,null,null,null,null,null,null,null,null,null,null,null,null,null,null,null,null,null,null,null,null,null,null,null,null,null,null,null,null,null,null,132,70.989999999999995]
[null,null,null,null,null,null,null,null,null,null,null,null,null,null,null,null,null,null,null,null,null,null,null,null,null,null,null,null,null,null,null,null,null,null,null,null,null,null,null,null,null,null,null,133,71.19]
[null,null,null,null,null,null,null,null,null,null,null,null,null,null,null,null,null,null,null,null,null,null,null,null,null,null,null,null,null,null,null,null,null,null,null,null,null,null,null,null,null,null,null,134,71.39]
[null,null,null,null,null,null,null,null,null,null,null,null,null,null,null,null,null,null,null,null,null,null,null,null,null,null,null,null,null,null,null,null,null,null,null,null,null,null,null,null,null,null,null,135,71.59]
[null,null,null,null,null,null,null,null,null,null,null,null,null,null,null,null,null,null,null,null,null,null,null,null,null,null,null,null,null,null,null,null,null,null,null,null,null,null,null,null,null,null,null,136,71.790000000000006]
[null,null,null,null,null,null,null,null,null,null,null,null,null,null,null,null,null,null,null,null,null,null,null,null,null,null,null,null,null,null,null,null,null,null,null,null,null,null,null,null,null,null,null,137,71.989999999999995]
[null,null,null,null,null,null,null,null,null,null,null,null,null,null,null,null,null,null,null,null,null,null,null,null,null,null,null,null,null,null,null,null,null,null,null,null,null,null,null,null,null,null,null,138,72.19]
[null,null,null,null,null,null,null,null,null,null,null,null,null,null,null,null,null,null,null,null,null,null,null,null,null,null,null,null,null,null,null,null,null,null,null,null,null,null,null,null,null,null,null,139,72.39]
[null,null,null,null,null,null,null,null,null,null,null,null,null,null,null,null,null,null,null,null,null,null,null,null,null,null,null,null,null,null,null,null,null,null,null,null,null,null,null,null,null,null,null,140,72.59]
[null,null,null,null,null,null,null,null,null,null,null,null,null,null,null,null,null,null,null,null,null,null,null,null,null,null,null,null,null,null,null,null,null,null,null,null,null,null,null,null,null,null,null,141,72.790000000000006]
[null,null,null,null,null,null,null,null,null,null,null,null,null,null,null,null,null,null,null,null,null,null,null,null,null,null,null,null,null,null,null,null,null,null,null,null,null,null,null,null,null,null,null,142,72.989999999999995]
[null,null,null,null,null,null,null,null,null,null,null,null,null,null,null,null,null,null,null,null,null,null,null,null,null,null,null,null,null,null,null,null,null,null,null,null,null,null,null,null,null,null,null,143,73.19]
[null,null,null,null,null,null,null,null,null,null,null,null,null,null,null,null,null,null,null,null,null,null,null,null,null,null,null,null,null,null,null,null,null,null,null,null,null,null,null,null,null,null,null,144,73.39]
[null,null,null,null,null,null,null,null,null,null,null,null,null,null,null,null,null,null,null,null,null,null,null,null,null,null,null,null,null,null,null,null,null,null,null,null,null,null,null,null,null,null,null,145,73.59]
[null,null,null,null,null,null,null,null,null,null,null,null,null,null,null,null,null,null,null,null,null,null,null,null,null,null,null,null,null,null,null,null,null,null,null,null,null,null,null,null,null,null,null,146,73.790000000000006]
[null,null,null,null,null,null,null,null,null,null,null,null,null,null,null,null,null,null,null,null,null,null,null,null,null,null,null,null,null,null,null,null,null,null,null,null,null,null,null,null,null,null,null,147,73.989999999999995]
[null,null,null,null,null,null,null,null,null,null,null,null,null,null,null,null,null,null,null,null,null,null,null,null,null,null,null,null,null,null,null,null,null,null,null,null,null,null,null,null,null,null,null,148,74.19]
[null,null,null,null,null,null,null,null,null,null,null,null,null,null,null,null,null,null,null,null,null,null,null,null,null,null,null,null,null,null,null,null,null,null,null,null,null,null,null,null,null,null,null,149,74.39]
[null,null,null,null,null,null,null,null,null,null,null,null,null,null,null,null,null,null,null,null,null,null,null,null,null,null,null,null,null,null,null,null,null,null,null,null,null,null,null,null,null,null,null,150,74.59]
[null,null,null,null,null,null,null,null,null,null,null,null,null,null,null,null,null,null,null,null,null,null,null,null,null,null,null,null,null,null,null,null,null,null,null,null,null,null,null,null,null,null,null,151,74.739999999999995]
[null,null,null,null,null,null,null,null,null,null,null,null,null,null,null,null,null,null,null,null,null,null,null,null,null,null,null,null,null,null,null,null,null,null,null,null,null,null,null,null,null,null,null,152,74.89]
[null,null,null,null,null,null,null,null,null,null,null,null,null,null,null,null,null,null,null,null,null,null,null,null,null,null,null,null,null,null,null,null,null,null,null,null,null,null,null,null,null,null,null,153,75.040000000000006]
[null,null,null,null,null,null,null,null,null,null,null,null,null,null,null,null,null,null,null,null,null,null,null,null,null,null,null,null,null,null,null,null,null,null,null,null,null,null,null,null,null,null,null,154,75.19]
[null,null,null,null,null,null,null,null,null,null,null,null,null,null,null,null,null,null,null,null,null,null,null,null,null,null,null,null,null,null,null,null,null,null,null,null,null,null,null,null,null,null,null,155,75.34]
[null,null,null,null,null,null,null,null,null,null,null,null,null,null,null,null,null,null,null,null,null,null,null,null,null,null,null,null,null,null,null,null,null,null,null,null,null,null,null,null,null,null,null,156,75.489999999999995]
[null,null,null,null,null,null,null,null,null,null,null,null,null,null,null,null,null,null,null,null,null,null,null,null,null,null,null,null,null,null,null,null,null,null,null,null,null,null,null,null,null,null,null,157,75.64]
[null,null,null,null,null,null,null,null,null,null,null,null,null,null,null,null,null,null,null,null,null,null,null,null,null,null,null,null,null,null,null,null,null,null,null,null,null,null,null,null,null,null,null,158,75.790000000000006]
[null,null,null,null,null,null,null,null,null,null,null,null,null,null,null,null,null,null,null,null,null,null,null,null,null,null,null,null,null,null,null,null,null,null,null,null,null,null,null,null,null,null,null,159,75.94]
[null,null,null,null,null,null,null,null,null,null,null,null,null,null,null,null,null,null,null,null,null,null,null,null,null,null,null,null,null,null,null,null,null,null,null,null,null,null,null,null,null,null,null,160,76.09]
[null,null,null,null,null,null,null,null,null,null,null,null,null,null,null,null,null,null,null,null,null,null,null,null,null,null,null,null,null,null,null,null,null,null,null,null,null,null,null,null,null,null,null,161,76.239999999999995]
[null,null,null,null,null,null,null,null,null,null,null,null,null,null,null,null,null,null,null,null,null,null,null,null,null,null,null,null,null,null,null,null,null,null,null,null,null,null,null,null,null,null,null,162,76.39]
[null,null,null,null,null,null,null,null,null,null,null,null,null,null,null,null,null,null,null,null,null,null,null,null,null,null,null,null,null,null,null,null,null,null,null,null,null,null,null,null,null,null,null,163,76.540000000000006]
[null,null,null,null,null,null,null,null,null,null,null,null,null,null,null,null,null,null,null,null,null,null,null,null,null,null,null,null,null,null,null,null,null,null,null,null,null,null,null,null,null,null,null,164,76.69]
[null,null,null,null,null,null,null,null,null,null,null,null,null,null,null,null,null,null,null,null,null,null,null,null,null,null,null,null,null,null,null,null,null,null,null,null,null,null,null,null,null,null,null,165,76.84]
[null,null,null,null,null,null,null,null,null,null,null,null,null,null,null,null,null,null,null,null,null,null,null,null,null,null,null,null,null,null,null,null,null,null,null,null,null,null,null,null,null,null,null,166,76.989999999999995]
[null,null,null,null,null,null,null,null,null,null,null,null,null,null,null,null,null,null,null,null,null,null,null,null,null,null,null,null,null,null,null,null,null,null,null,null,null,null,null,null,null,null,null,167,77.14]
[null,null,null,null,null,null,null,null,null,null,null,null,null,null,null,null,null,null,null,null,null,null,null,null,null,null,null,null,null,null,null,null,null,null,null,null,null,null,null,null,null,null,null,168,77.290000000000006]
[null,null,null,null,null,null,null,null,null,null,null,null,null,null,null,null,null,null,null,null,null,null,null,null,null,null,null,null,null,null,null,null,null,null,null,null,null,null,null,null,null,null,null,169,77.44]
[null,null,null,null,null,null,null,null,null,null,null,null,null,null,null,null,null,null,null,null,null,null,null,null,null,null,null,null,null,null,null,null,null,null,null,null,null,null,null,null,null,null,null,170,77.59]
[null,null,null,null,null,null,null,null,null,null,null,null,null,null,null,null,null,null,null,null,null,null,null,null,null,null,null,null,null,null,null,null,null,null,null,null,null,null,null,null,null,null,null,171,77.739999999999995]
[null,null,null,null,null,null,null,null,null,null,null,null,null,null,null,null,null,null,null,null,null,null,null,null,null,null,null,null,null,null,null,null,null,null,null,null,null,null,null,null,null,null,null,172,77.84]
[null,null,null,null,null,null,null,null,null,null,null,null,null,null,null,null,null,null,null,null,null,null,null,null,null,null,null,null,null,null,null,null,null,null,null,null,null,null,null,null,null,null,null,173,78.040000000000006]
[null,null,null,null,null,null,null,null,null,null,null,null,null,null,null,null,null,null,null,null,null,null,null,null,null,null,null,null,null,null,null,null,null,null,null,null,null,null,null,null,null,null,null,174,78.19]
[null,null,null,null,null,null,null,null,null,null,null,null,null,null,null,null,null,null,null,null,null,null,null,null,null,null,null,null,null,null,null,null,null,null,null,null,null,null,null,null,null,null,null,175,78.34]
[null,null,null,null,null,null,null,null,null,null,null,null,null,null,null,null,null,null,null,null,null,null,null,null,null,null,null,null,null,null,null,null,null,null,null,null,null,null,null,null,null,null,null,176,78.44]
[null,null,null,null,null,null,null,null,null,null,null,null,null,null,null,null,null,null,null,null,null,null,null,null,null,null,null,null,null,null,null,null,null,null,null,null,null,null,null,null,null,null,null,177,78.540000000000006]
[null,null,null,null,null,null,null,null,null,null,null,null,null,null,null,null,null,null,null,null,null,null,null,null,null,null,null,null,null,null,null,null,null,null,null,null,null,null,null,null,null,null,null,178,78.64]
[null,null,null,null,null,null,null,null,null,null,null,null,null,null,null,null,null,null,null,null,null,null,null,null,null,null,null,null,null,null,null,null,null,null,null,null,null,null,null,null,null,null,null,179,78.739999999999995]
[null,null,null,null,null,null,null,null,null,null,null,null,null,null,null,null,null,null,null,null,null,null,null,null,null,null,null,null,null,null,null,null,null,null,null,null,null,null,null,null,null,null,null,180,78.84]
[null,null,null,null,null,null,null,null,null,null,null,null,null,null,null,null,null,null,null,null,null,null,null,null,null,null,null,null,null,null,null,null,null,null,null,null,null,null,null,null,null,null,null,181,78.94]
[null,null,null,null,null,null,null,null,null,null,null,null,null,null,null,null,null,null,null,null,null,null,null,null,null,null,null,null,null,null,null,null,null,null,null,null,null,null,null,null,null,null,null,182,79.040000000000006]
[null,null,null,null,null,null,null,null,null,null,null,null,null,null,null,null,null,null,null,null,null,null,null,null,null,null,null,null,null,null,null,null,null,null,null,null,null,null,null,null,null,null,null,183,79.14]
[null,null,null,null,null,null,null,null,null,null,null,null,null,null,null,null,null,null,null,null,null,null,null,null,null,null,null,null,null,null,null,null,null,null,null,null,null,null,null,null,null,null,null,184,79.239999999999995]
[null,null,null,null,null,null,null,null,null,null,null,null,null,null,null,null,null,null,null,null,null,null,null,null,null,null,null,null,null,null,null,null,null,null,null,null,null,null,null,null,null,null,null,185,79.34]
[null,null,null,null,null,null,null,null,null,null,null,null,null,null,null,null,null,null,null,null,null,null,null,null,null,null,null,null,null,null,null,null,null,null,null,null,null,null,null,null,null,null,null,186,79.44]
[null,null,null,null,null,null,null,null,null,null,null,null,null,null,null,null,null,null,null,null,null,null,null,null,null,null,null,null,null,null,null,null,null,null,null,null,null,null,null,null,null,null,null,187,79.540000000000006]
[null,null,null,null,null,null,null,null,null,null,null,null,null,null,null,null,null,null,null,null,null,null,null,null,null,null,null,null,null,null,null,null,null,null,null,null,null,null,null,null,null,null,null,188,79.64]
[null,null,null,null,null,null,null,null,null,null,null,null,null,null,null,null,null,null,null,null,null,null,null,null,null,null,null,null,null,null,null,null,null,null,null,null,null,null,null,null,null,null,null,189,79.739999999999995]
[null,null,null,null,null,null,null,null,null,null,null,null,null,null,null,null,null,null,null,null,null,null,null,null,null,null,null,null,null,null,null,null,null,null,null,null,null,null,null,null,null,null,null,190,79.84]
[null,null,null,null,null,null,null,null,null,null,null,null,null,null,null,null,null,null,null,null,null,null,null,null,null,null,null,null,null,null,null,null,null,null,null,null,null,null,null,null,null,null,null,191,79.94]
[null,null,null,null,null,null,null,null,null,null,null,null,null,null,null,null,null,null,null,null,null,null,null,null,null,null,null,null,null,null,null,null,null,null,null,null,null,null,null,null,null,null,null,192,80.040000000000006]
[null,null,null,null,null,null,null,null,null,null,null,null,null,null,null,null,null,null,null,null,null,null,null,null,null,null,null,null,null,null,null,null,null,null,null,null,null,null,null,null,null,null,null,193,80.14]
[null,null,null,null,null,null,null,null,null,null,null,null,null,null,null,null,null,null,null,null,null,null,null,null,null,null,null,null,null,null,null,null,null,null,null,null,null,null,null,null,null,null,null,194,80.239999999999995]
[null,null,null,null,null,null,null,null,null,null,null,null,null,null,null,null,null,null,null,null,null,null,null,null,null,null,null,null,null,null,null,null,null,null,null,null,null,null,null,null,null,null,null,195,80.34]
[null,null,null,null,null,null,null,null,null,null,null,null,null,null,null,null,null,null,null,null,null,null,null,null,null,null,null,null,null,null,null,null,null,null,null,null,null,null,null,null,null,null,null,196,80.44]
[null,null,null,null,null,null,null,null,null,null,null,null,null,null,null,null,null,null,null,null,null,null,null,null,null,null,null,null,null,null,null,null,null,null,null,null,null,null,null,null,null,null,null,197,80.540000000000006]
[null,null,null,null,null,null,null,null,null,null,null,null,null,null,null,null,null,null,null,null,null,null,null,null,null,null,null,null,null,null,null,null,null,null,null,null,null,null,null,null,null,null,null,198,80.64]
[null,null,null,null,null,null,null,null,null,null,null,null,null,null,null,null,null,null,null,null,null,null,null,null,null,null,null,null,null,null,null,null,null,null,null,null,null,null,null,null,null,null,null,199,80.739999999999995]
[null,null,null,null,null,null,null,null,null,null,null,null,null,null,null,null,null,null,null,null,null,null,null,null,null,null,null,null,null,null,null,null,null,null,null,null,null,null,null,null,null,null,null,200,80.84]
[null,null,null,null,null,null,null,null,null,null,null,null,null,null,null,null,null,null,null,null,null,null,null,null,null,null,null,null,null,null,null,null,null,null,null,null,null,null,null,null,null,null,null,201,80.89]
[null,null,null,null,null,null,null,null,null,null,null,null,null,null,null,null,null,null,null,null,null,null,null,null,null,null,null,null,null,null,null,null,null,null,null,null,null,null,null,null,null,null,null,202,80.94]
[null,null,null,null,null,null,null,null,null,null,null,null,null,null,null,null,null,null,null,null,null,null,null,null,null,null,null,null,null,null,null,null,null,null,null,null,null,null,null,null,null,null,null,203,80.989999999999995]
[null,null,null,null,null,null,null,null,null,null,null,null,null,null,null,null,null,null,null,null,null,null,null,null,null,null,null,null,null,null,null,null,null,null,null,null,null,null,null,null,null,null,null,204,81.040000000000006]
[null,null,null,null,null,null,null,null,null,null,null,null,null,null,null,null,null,null,null,null,null,null,null,null,null,null,null,null,null,null,null,null,null,null,null,null,null,null,null,null,null,null,null,205,81.09]
[null,null,null,null,null,null,null,null,null,null,null,null,null,null,null,null,null,null,null,null,null,null,null,null,null,null,null,null,null,null,null,null,null,null,null,null,null,null,null,null,null,null,null,206,81.14]
[null,null,null,null,null,null,null,null,null,null,null,null,null,null,null,null,null,null,null,null,null,null,null,null,null,null,null,null,null,null,null,null,null,null,null,null,null,null,null,null,null,null,null,207,81.19]
[null,null,null,null,null,null,null,null,null,null,null,null,null,null,null,null,null,null,null,null,null,null,null,null,null,null,null,null,null,null,null,null,null,null,null,null,null,null,null,null,null,null,null,208,81.239999999999995]
[null,null,null,null,null,null,null,null,null,null,null,null,null,null,null,null,null,null,null,null,null,null,null,null,null,null,null,null,null,null,null,null,null,null,null,null,null,null,null,null,null,null,null,209,81.290000000000006]
[null,null,null,null,null,null,null,null,null,null,null,null,null,null,null,null,null,null,null,null,null,null,null,null,null,null,null,null,null,null,null,null,null,null,null,null,null,null,null,null,null,null,null,210,81.34]
[null,null,null,null,null,null,null,null,null,null,null,null,null,null,null,null,null,null,null,null,null,null,null,null,null,null,null,null,null,null,null,null,null,null,null,null,null,null,null,null,null,null,null,211,81.39]
[null,null,null,null,null,null,null,null,null,null,null,null,null,null,null,null,null,null,null,null,null,null,null,null,null,null,null,null,null,null,null,null,null,null,null,null,null,null,null,null,null,null,null,212,81.44]
[null,null,null,null,null,null,null,null,null,null,null,null,null,null,null,null,null,null,null,null,null,null,null,null,null,null,null,null,null,null,null,null,null,null,null,null,null,null,null,null,null,null,null,213,81.489999999999995]
[null,null,null,null,null,null,null,null,null,null,null,null,null,null,null,null,null,null,null,null,null,null,null,null,null,null,null,null,null,null,null,null,null,null,null,null,null,null,null,null,null,null,null,214,81.540000000000006]
[null,null,null,null,null,null,null,null,null,null,null,null,null,null,null,null,null,null,null,null,null,null,null,null,null,null,null,null,null,null,null,null,null,null,null,null,null,null,null,null,null,null,null,215,81.59]
[null,null,null,null,null,null,null,null,null,null,null,null,null,null,null,null,null,null,null,null,null,null,null,null,null,null,null,null,null,null,null,null,null,null,null,null,null,null,null,null,null,null,null,216,81.64]
[null,null,null,null,null,null,null,null,null,null,null,null,null,null,null,null,null,null,null,null,null,null,null,null,null,null,null,null,null,null,null,null,null,null,null,null,null,null,null,null,null,null,null,217,81.69]
[null,null,null,null,null,null,null,null,null,null,null,null,null,null,null,null,null,null,null,null,null,null,null,null,null,null,null,null,null,null,null,null,null,null,null,null,null,null,null,null,null,null,null,218,81.739999999999995]
[null,null,null,null,null,null,null,null,null,null,null,null,null,null,null,null,null,null,null,null,null,null,null,null,null,null,null,null,null,null,null,null,null,null,null,null,null,null,null,null,null,null,null,219,81.790000000000006]
[null,null,null,null,null,null,null,null,null,null,null,null,null,null,null,null,null,null,null,null,null,null,null,null,null,null,null,null,null,null,null,null,null,null,null,null,null,null,null,null,null,null,null,220,81.84]
[null,null,null,null,null,null,null,null,null,null,null,null,null,null,null,null,null,null,null,null,null,null,null,null,null,null,null,null,null,null,null,null,null,null,null,null,null,null,null,null,null,null,null,221,81.89]
[null,null,null,null,null,null,null,null,null,null,null,null,null,null,null,null,null,null,null,null,null,null,null,null,null,null,null,null,null,null,null,null,null,null,null,null,null,null,null,null,null,null,null,222,81.94]
[null,null,null,null,null,null,null,null,null,null,null,null,null,null,null,null,null,null,null,null,null,null,null,null,null,null,null,null,null,null,null,null,null,null,null,null,null,null,null,null,null,null,null,223,81.99]
[null,null,null,null,null,null,null,null,null,null,null,null,null,null,null,null,null,null,null,null,null,null,null,null,null,null,null,null,null,null,null,null,null,null,null,null,null,null,null,null,null,null,null,224,82.04]
[null,null,null,null,null,null,null,null,null,null,null,null,null,null,null,null,null,null,null,null,null,null,null,null,null,null,null,null,null,null,null,null,null,null,null,null,null,null,null,null,null,null,null,225,82.09]
[null,null,null,null,null,null,null,null,null,null,null,null,null,null,null,null,null,null,null,null,null,null,null,null,null,null,null,null,null,null,null,null,null,null,null,null,null,null,null,null,null,null,null,226,82.12]
[null,null,null,null,null,null,null,null,null,null,null,null,null,null,null,null,null,null,null,null,null,null,null,null,null,null,null,null,null,null,null,null,null,null,null,null,null,null,null,null,null,null,null,227,82.14]
[null,null,null,null,null,null,null,null,null,null,null,null,null,null,null,null,null,null,null,null,null,null,null,null,null,null,null,null,null,null,null,null,null,null,null,null,null,null,null,null,null,null,null,228,82.17]
[null,null,null,null,null,null,null,null,null,null,null,null,null,null,null,null,null,null,null,null,null,null,null,null,null,null,null,null,null,null,null,null,null,null,null,null,null,null,null,null,null,null,null,229,82.19]
[null,null,null,null,null,null,null,null,null,null,null,null,null,null,null,null,null,null,null,null,null,null,null,null,null,null,null,null,null,null,null,null,null,null,null,null,null,null,null,null,null,null,null,230,82.22]
[null,null,null,null,null,null,null,null,null,null,null,null,null,null,null,null,null,null,null,null,null,null,null,null,null,null,null,null,null,null,null,null,null,null,null,null,null,null,null,null,null,null,null,231,82.24]
[null,null,null,null,null,null,null,null,null,null,null,null,null,null,null,null,null,null,null,null,null,null,null,null,null,null,null,null,null,null,null,null,null,null,null,null,null,null,null,null,null,null,null,232,82.27]
[null,null,null,null,null,null,null,null,null,null,null,null,null,null,null,null,null,null,null,null,null,null,null,null,null,null,null,null,null,null,null,null,null,null,null,null,null,null,null,null,null,null,null,233,82.29]
[null,null,null,null,null,null,null,null,null,null,null,null,null,null,null,null,null,null,null,null,null,null,null,null,null,null,null,null,null,null,null,null,null,null,null,null,null,null,null,null,null,null,null,234,82.32]
[null,null,null,null,null,null,null,null,null,null,null,null,null,null,null,null,null,null,null,null,null,null,null,null,null,null,null,null,null,null,null,null,null,null,null,null,null,null,null,null,null,null,null,235,82.34]
[null,null,null,null,null,null,null,null,null,null,null,null,null,null,null,null,null,null,null,null,null,null,null,null,null,null,null,null,null,null,null,null,null,null,null,null,null,null,null,null,null,null,null,236,82.37]
[null,null,null,null,null,null,null,null,null,null,null,null,null,null,null,null,null,null,null,null,null,null,null,null,null,null,null,null,null,null,null,null,null,null,null,null,null,null,null,null,null,null,null,237,82.39]
[null,null,null,null,null,null,null,null,null,null,null,null,null,null,null,null,null,null,null,null,null,null,null,null,null,null,null,null,null,null,null,null,null,null,null,null,null,null,null,null,null,null,null,238,82.42]
[null,null,null,null,null,null,null,null,null,null,null,null,null,null,null,null,null,null,null,null,null,null,null,null,null,null,null,null,null,null,null,null,null,null,null,null,null,null,null,null,null,null,null,239,82.44]
[null,null,null,null,null,null,null,null,null,null,null,null,null,null,null,null,null,null,null,null,null,null,null,null,null,null,null,null,null,null,null,null,null,null,null,null,null,null,null,null,null,null,null,240,82.47]
[null,null,null,null,null,null,null,null,null,null,null,null,null,null,null,null,null,null,null,null,null,null,null,null,null,null,null,null,null,null,null,null,null,null,null,null,null,null,null,null,null,null,null,241,82.49]
[null,null,null,null,null,null,null,null,null,null,null,null,null,null,null,null,null,null,null,null,null,null,null,null,null,null,null,null,null,null,null,null,null,null,null,null,null,null,null,null,null,null,null,242,82.52]
[null,null,null,null,null,null,null,null,null,null,null,null,null,null,null,null,null,null,null,null,null,null,null,null,null,null,null,null,null,null,null,null,null,null,null,null,null,null,null,null,null,null,null,243,82.54]
[null,null,null,null,null,null,null,null,null,null,null,null,null,null,null,null,null,null,null,null,null,null,null,null,null,null,null,null,null,null,null,null,null,null,null,null,null,null,null,null,null,null,null,244,82.57]
[null,null,null,null,null,null,null,null,null,null,null,null,null,null,null,null,null,null,null,null,null,null,null,null,null,null,null,null,null,null,null,null,null,null,null,null,null,null,null,null,null,null,null,245,82.59]
[null,null,null,null,null,null,null,null,null,null,null,null,null,null,null,null,null,null,null,null,null,null,null,null,null,null,null,null,null,null,null,null,null,null,null,null,null,null,null,null,null,null,null,246,82.62]
[null,null,null,null,null,null,null,null,null,null,null,null,null,null,null,null,null,null,null,null,null,null,null,null,null,null,null,null,null,null,null,null,null,null,null,null,null,null,null,null,null,null,null,247,82.64]
[null,null,null,null,null,null,null,null,null,null,null,null,null,null,null,null,null,null,null,null,null,null,null,null,null,null,null,null,null,null,null,null,null,null,null,null,null,null,null,null,null,null,null,248,82.67]
[null,null,null,null,null,null,null,null,null,null,null,null,null,null,null,null,null,null,null,null,null,null,null,null,null,null,null,null,null,null,null,null,null,null,null,null,null,null,null,null,null,null,null,249,82.69]
[null,null,null,null,null,null,null,null,null,null,null,null,null,null,null,null,null,null,null,null,null,null,null,null,null,null,null,null,null,null,null,null,null,null,null,null,null,null,null,null,null,null,null,250,82.72]
[null,null,null,null,null,null,null,null,null,null,null,null,null,null,null,null,null,null,null,null,null,null,null,null,null,null,null,null,null,null,null,null,null,null,null,null,null,null,null,null,null,null,null,251,82.73]
[null,null,null,null,null,null,null,null,null,null,null,null,null,null,null,null,null,null,null,null,null,null,null,null,null,null,null,null,null,null,null,null,null,null,null,null,null,null,null,null,null,null,null,252,82.74]
[null,null,null,null,null,null,null,null,null,null,null,null,null,null,null,null,null,null,null,null,null,null,null,null,null,null,null,null,null,null,null,null,null,null,null,null,null,null,null,null,null,null,null,253,82.75]
[null,null,null,null,null,null,null,null,null,null,null,null,null,null,null,null,null,null,null,null,null,null,null,null,null,null,null,null,null,null,null,null,null,null,null,null,null,null,null,null,null,null,null,254,82.76]
[null,null,null,null,null,null,null,null,null,null,null,null,null,null,null,null,null,null,null,null,null,null,null,null,null,null,null,null,null,null,null,null,null,null,null,null,null,null,null,null,null,null,null,255,82.77]
[null,null,null,null,null,null,null,null,null,null,null,null,null,null,null,null,null,null,null,null,null,null,null,null,null,null,null,null,null,null,null,null,null,null,null,null,null,null,null,null,null,null,null,256,82.74]
[null,null,null,null,null,null,null,null,null,null,null,null,null,null,null,null,null,null,null,null,null,null,null,null,null,null,null,null,null,null,null,null,null,null,null,null,null,null,null,null,null,null,null,257,82.79]
[null,null,null,null,null,null,null,null,null,null,null,null,null,null,null,null,null,null,null,null,null,null,null,null,null,null,null,null,null,null,null,null,null,null,null,null,null,null,null,null,null,null,null,258,82.8]
[null,null,null,null,null,null,null,null,null,null,null,null,null,null,null,null,null,null,null,null,null,null,null,null,null,null,null,null,null,null,null,null,null,null,null,null,null,null,null,null,null,null,null,259,82.81]
[null,null,null,null,null,null,null,null,null,null,null,null,null,null,null,null,null,null,null,null,null,null,null,null,null,null,null,null,null,null,null,null,null,null,null,null,null,null,null,null,null,null,null,260,82.82]
[null,null,null,null,null,null,null,null,null,null,null,null,null,null,null,null,null,null,null,null,null,null,null,null,null,null,null,null,null,null,null,null,null,null,null,null,null,null,null,null,null,null,null,261,82.83]
[null,null,null,null,null,null,null,null,null,null,null,null,null,null,null,null,null,null,null,null,null,null,null,null,null,null,null,null,null,null,null,null,null,null,null,null,null,null,null,null,null,null,null,262,82.84]
[null,null,null,null,null,null,null,null,null,null,null,null,null,null,null,null,null,null,null,null,null,null,null,null,null,null,null,null,null,null,null,null,null,null,null,null,null,null,null,null,null,null,null,263,82.85]
[null,null,null,null,null,null,null,null,null,null,null,null,null,null,null,null,null,null,null,null,null,null,null,null,null,null,null,null,null,null,null,null,null,null,null,null,null,null,null,null,null,null,null,264,82.86]
[null,null,null,null,null,null,null,null,null,null,null,null,null,null,null,null,null,null,null,null,null,null,null,null,null,null,null,null,null,null,null,null,null,null,null,null,null,null,null,null,null,null,null,265,82.87]
[null,null,null,null,null,null,null,null,null,null,null,null,null,null,null,null,null,null,null,null,null,null,null,null,null,null,null,null,null,null,null,null,null,null,null,null,null,null,null,null,null,null,null,266,82.88]
[null,null,null,null,null,null,null,null,null,null,null,null,null,null,null,null,null,null,null,null,null,null,null,null,null,null,null,null,null,null,null,null,null,null,null,null,null,null,null,null,null,null,null,267,82.89]
[null,null,null,null,null,null,null,null,null,null,null,null,null,null,null,null,null,null,null,null,null,null,null,null,null,null,null,null,null,null,null,null,null,null,null,null,null,null,null,null,null,null,null,268,82.9]
[null,null,null,null,null,null,null,null,null,null,null,null,null,null,null,null,null,null,null,null,null,null,null,null,null,null,null,null,null,null,null,null,null,null,null,null,null,null,null,null,null,null,null,269,82.91]
[null,null,null,null,null,null,null,null,null,null,null,null,null,null,null,null,null,null,null,null,null,null,null,null,null,null,null,null,null,null,null,null,null,null,null,null,null,null,null,null,null,null,null,270,82.92]
[null,null,null,null,null,null,null,null,null,null,null,null,null,null,null,null,null,null,null,null,null,null,null,null,null,null,null,null,null,null,null,null,null,null,null,null,null,null,null,null,null,null,null,271,82.93]
[null,null,null,null,null,null,null,null,null,null,null,null,null,null,null,null,null,null,null,null,null,null,null,null,null,null,null,null,null,null,null,null,null,null,null,null,null,null,null,null,null,null,null,272,82.94]
[null,null,null,null,null,null,null,null,null,null,null,null,null,null,null,null,null,null,null,null,null,null,null,null,null,null,null,null,null,null,null,null,null,null,null,null,null,null,null,null,null,null,null,273,82.95]
[null,null,null,null,null,null,null,null,null,null,null,null,null,null,null,null,null,null,null,null,null,null,null,null,null,null,null,null,null,null,null,null,null,null,null,null,null,null,null,null,null,null,null,274,82.96]
[null,null,null,null,null,null,null,null,null,null,null,null,null,null,null,null,null,null,null,null,null,null,null,null,null,null,null,null,null,null,null,null,null,null,null,null,null,null,null,null,null,null,null,275,82.97]
[null,null,null,null,null,null,null,null,null,null,null,null,null,null,null,null,null,null,null,null,null,null,null,null,null,null,null,null,null,null,null,null,null,null,null,null,null,null,null,null,null,null,null,276,83]
[null,null,null,null,null,null,null,null,null,null,null,null,null,null,null,null,null,null,null,null,null,null,null,null,null,null,null,null,null,null,null,null,null,null,null,null,null,null,null,null,null,null,null,277,83]
[null,null,null,null,null,null,null,null,null,null,null,null,null,null,null,null,null,null,null,null,null,null,null,null,null,null,null,null,null,null,null,null,null,null,null,null,null,null,null,null,null,null,null,278,83]
[null,null,null,null,null,null,null,null,null,null,null,null,null,null,null,null,null,null,null,null,null,null,null,null,null,null,null,null,null,null,null,null,null,null,null,null,null,null,null,null,null,null,null,279,83]
[null,null,null,null,null,null,null,null,null,null,null,null,null,null,null,null,null,null,null,null,null,null,null,null,null,null,null,null,null,null,null,null,null,null,null,null,null,null,null,null,null,null,null,280,83]
[null,null,null,null,null,null,null,null,null,null,null,null,null,null,null,null,null,null,null,null,null,null,null,null,null,null,null,null,null,null,null,null,null,null,null,null,null,null,null,null,null,null,null,281,83]
[null,null,null,null,null,null,null,null,null,null,null,null,null,null,null,null,null,null,null,null,null,null,null,null,null,null,null,null,null,null,null,null,null,null,null,null,null,null,null,null,null,null,null,282,83]
[null,null,null,null,null,null,null,null,null,null,null,null,null,null,null,null,null,null,null,null,null,null,null,null,null,null,null,null,null,null,null,null,null,null,null,null,null,null,null,null,null,null,null,283,83]
[null,null,null,null,null,null,null,null,null,null,null,null,null,null,null,null,null,null,null,null,null,null,null,null,null,null,null,null,null,null,null,null,null,null,null,null,null,null,null,null,null,null,null,284,83]
[null,null,null,null,null,null,null,null,null,null,null,null,null,null,null,null,null,null,null,null,null,null,null,null,null,null,null,null,null,null,null,null,null,null,null,null,null,null,null,null,null,null,null,285,83]
[null,null,null,null,null,null,null,null,null,null,null,null,null,null,null,null,null,null,null,null,null,null,null,null,null,null,null,null,null,null,null,null,null,null,null,null,null,null,null,null,null,null,null,286,83]
[null,null,null,null,null,null,null,null,null,null,null,null,null,null,null,null,null,null,null,null,null,null,null,null,null,null,null,null,null,null,null,null,null,null,null,null,null,null,null,null,null,null,null,287,83]
[null,null,null,null,null,null,null,null,null,null,null,null,null,null,null,null,null,null,null,null,null,null,null,null,null,null,null,null,null,null,null,null,null,null,null,null,null,null,null,null,null,null,null,288,83]
[null,null,null,null,null,null,null,null,null,null,null,null,null,null,null,null,null,null,null,null,null,null,null,null,null,null,null,null,null,null,null,null,null,null,null,null,null,null,null,null,null,null,null,289,83]
[null,null,null,null,null,null,null,null,null,null,null,null,null,null,null,null,null,null,null,null,null,null,null,null,null,null,null,null,null,null,null,null,null,null,null,null,null,null,null,null,null,null,null,290,83]
[null,null,null,null,null,null,null,null,null,null,null,null,null,null,null,null,null,null,null,null,null,null,null,null,null,null,null,null,null,null,null,null,null,null,null,null,null,null,null,null,null,null,null,291,83]
[null,null,null,null,null,null,null,null,null,null,null,null,null,null,null,null,null,null,null,null,null,null,null,null,null,null,null,null,null,null,null,null,null,null,null,null,null,null,null,null,null,null,null,292,83]
[null,null,null,null,null,null,null,null,null,null,null,null,null,null,null,null,null,null,null,null,null,null,null,null,null,null,null,null,null,null,null,null,null,null,null,null,null,null,null,null,null,null,null,293,83]
[null,null,null,null,null,null,null,null,null,null,null,null,null,null,null,null,null,null,null,null,null,null,null,null,null,null,null,null,null,null,null,null,null,null,null,null,null,null,null,null,null,null,null,294,83]
[null,null,null,null,null,null,null,null,null,null,null,null,null,null,null,null,null,null,null,null,null,null,null,null,null,null,null,null,null,null,null,null,null,null,null,null,null,null,null,null,null,null,null,295,83]
[null,null,null,null,null,null,null,null,null,null,null,null,null,null,null,null,null,null,null,null,null,null,null,null,null,null,null,null,null,null,null,null,null,null,null,null,null,null,null,null,null,null,null,296,83]
[null,null,null,null,null,null,null,null,null,null,null,null,null,null,null,null,null,null,null,null,null,null,null,null,null,null,null,null,null,null,null,null,null,null,null,null,null,null,null,null,null,null,null,297,83]
[null,null,null,null,null,null,null,null,null,null,null,null,null,null,null,null,null,null,null,null,null,null,null,null,null,null,null,null,null,null,null,null,null,null,null,null,null,null,null,null,null,null,null,298,83]
[null,null,null,null,null,null,null,null,null,null,null,null,null,null,null,null,null,null,null,null,null,null,null,null,null,null,null,null,null,null,null,null,null,null,null,null,null,null,null,null,null,null,null,299,83]
[null,null,null,null,null,null,null,null,null,null,null,null,null,null,null,null,null,null,null,null,null,null,null,null,null,null,null,null,null,null,null,null,null,null,null,null,null,null,null,null,null,null,null,300,83]

{"sheet":"AUX","index":3,"n_rows":169,"n_cols":27,"rows_kept":169,"cut":false,"hidden":true,"merged":[]}
[]
[null,null,null,null,null,null,null,null,null,null,null,null,null,null,null,null,null,null,null,1,2,3,4,5,6,7]
[null,null,"TC","DISJUNTOR","XLPE","PVC","ELET","ELET","POSTE","ELO","MEDIDOR",12,null,"COD.","Ramo de Atividade","Intervalo Carga Instalada","FD\nMáx","FD\nTípico","FCTípico",null,1,2,3,1,2,3]
["1#5",5,"-","30/32","1#6(6)","1#6(6)",25,25,300,"0,5H","Monofásico","-",null,null,null,"(kW)","(%)","(%)","(%)"]
["1#10",10,"-",50,"1#10(10)","1#10(10)",25,25,300,"1H","Monofásico","-",null,1,"Indústria de extração e tratamento de minerais",null,70,43,26,{"$f":"CONCATENATE(N5,\" - \",O5)","v":"1 - Indústria de extração e tratamento de minerais"},{"$f":"Q5","v":70},{"$f":"IF((N6=N5),Q6,0)","v":0},{"$f":"IF((N5=N7),Q5,0)","v":0},{"$f":"IF((U5=0),0,(IF((P5=0),DEMANDA!$AB$18,(VALUE((RIGHT(P5,3)))))))","v":234.464},{"$f":"IF(OR(V5=0,DEMANDA!$AB$18<=X5),0,(DEMANDA!$AB$18-X5))","v":0},0,{"$f":"VALUE(X6)","v":500}]
["1#15",15,"-",70,"1#16(16)","1#16(16)",25,25,300,"2H","Monofásico","-",null,2,"Extração de minérios de ferro","≤500",54,36,34,"2 - Extração de minérios de ferro",{"$f":"Q6","v":54},{"$f":"IF((N7=N6),Q7,0)","v":67},{"$f":"IF((N6=N8),Q6,0)","v":0},{"$f":"IF((U6=0),0,(IF((P6=0),DEMANDA!$AB$18,(VALUE((RIGHT(P6,3)))))))","v":500},{"$f":"IF(OR(V6=0,DEMANDA!$AB$18<=X6),0,(DEMANDA!$AB$18-X6))","v":0},0]
["3#5",5,"-",40,"3#6(6)","3#6(6)",32,32,300,"0,5H","Trifásico 120A","-",null,{"$f":"N6","v":2},null,">500",67,49,35,"2 - ",67,0,0,{"$f":"IF((U7=0),0,(IF((P7=0),DEMANDA!$AB$18,(VALUE((RIGHT(P7,3)))))))","v":500},{"$f":"IF(OR(V7=0,DEMANDA!$AB$18<=X7),0,(DEMANDA!$AB$18-X7))","v":0},0]
["3#10",10,"-",40,"3#6(6)","3#6(6)",32,32,300,"1H","Trifásico 120A","-",null,3,"Extração de minérios de metais não ferrosos",null,85,78,76,"3 - Extração de minérios de metais não ferrosos",85,0,0,{"$f":"IF((U8=0),0,(IF((P8=0),DEMANDA!$AB$18,(VALUE((RIGHT(P8,3)))))))","v":234.464},{"$f":"IF(OR(V8=0,DEMANDA!$AB$18<=X8),0,(DEMANDA!$AB$18-X8))","v":0},0]
["3#15",15,"-",40,"3#6(6)","3#6(6)",32,32,300,"1H","Trifásico 120A","-",null,4,"Extração de minerais para fabricação de adubos fertilizantes e para elaboração de outros produtos químicos",null,54,37,29,"4 - Extração de minerais para fabricação de adubos fertilizantes e para elaboração de outros produtos químicos",54,0,0,{"$f":"IF((U9=0),0,(IF((P9=0),DEMANDA!$AB$18,(VALUE((RIGHT(P9,3)))))))","v":234.464},{"$f":"IF(OR(V9=0,DEMANDA!$AB$18<=X9),0,(DEMANDA!$AB$18-X9))","v":0},0]
["3#30",30,"-",50,"3#10(10)","3#10(10)",32,32,300,"2H","Trifásico 120A","-",null,5,"Extração de pedras e outros minerais para construção",null,67,49,16,"5 - Extração de pedras e outros minerais para construção",67,0,0,{"$f":"IF((U10=0),0,(IF((P10=0),DEMANDA!$AB$18,(VALUE((RIGHT(P10,3)))))))","v":234.464},{"$f":"IF(OR(V10=0,DEMANDA!$AB$18<=X10),0,(DEMANDA!$AB$18-X10))","v":0},0]
["3#45",45,"-",70,"3#16(16)","3#25(25)",40,40,300,"3H","Trifásico 120A","-",null,6,"Extração de pedras e outros minerais não metálicos",null,86,43,14,"6 - Extração de pedras e outros minerais não metálicos",86,0,0,{"$f":"IF((U11=0),0,(IF((P11=0),DEMANDA!$AB$18,(VALUE((RIGHT(P11,3)))))))","v":234.464},{"$f":"IF(OR(V11=0,DEMANDA!$AB$18<=X11),0,(DEMANDA!$AB$18-X11))","v":0},0]
["3#75",75,"-",125,"3#50(25)","3#70(35)",65,80,300,"5H","Trifásico 200A","-",null,7,"Aparelhamento de pedras para construção e execução de trabalhos em mármore, ardósia, granito e outras pedras",null,63,55,30,"7 - Aparelhamento de pedras para construção e execução de trabalhos em mármore, ardósia, granito e outras pedras",63,0,0,{"$f":"IF((U12=0),0,(IF((P12=0),DEMANDA!$AB$18,(VALUE((RIGHT(P12,3)))))))","v":234.464},{"$f":"IF(OR(V12=0,DEMANDA!$AB$18<=X12),0,(DEMANDA!$AB$18-X12))","v":0},0]
["3#112,5",112.5,"-",175,"3#70(35)","3#95(50)",80,80,300,"6K","Trifásico 200A","-",null,8,"Britamento de pedras","≤130",57,39,11,"8 - Britamento de pedras",57,78,0,{"$f":"IF((U13=0),0,(IF((P13=0),DEMANDA!$AB$18,(VALUE((RIGHT(P13,3)))))))","v":130},{"$f":"IF(OR(V13=0,DEMANDA!$AB$18<=X13),0,(DEMANDA!$AB$18-X13))","v":104.464},0]
["3#150",150,"200:5",225,"3#120(70)","3#150(95)",100,100,1000,"8K","Medição Trif. Indireta","-",null,{"$f":"N13","v":8},null,">130",78,54,17,"8 - ",78,0,0,{"$f":"IF((U14=0),0,(IF((P14=0),DEMANDA!$AB$18,(VALUE((RIGHT(P14,3)))))))","v":130},{"$f":"IF(OR(V14=0,DEMANDA!$AB$18<=X14),0,(DEMANDA!$AB$18-X14))","v":0},0]
["3#225",225,"250:5",350,"3#240(120)","2x{3#120(70) }",100,"2 x 100",1000,"10K","Medição Trif. Indireta","-",null,9,"Fabricação de cal",null,91,52,18,"9 - Fabricação de cal",91,0,0,{"$f":"IF((U15=0),0,(IF((P15=0),DEMANDA!$AB$18,(VALUE((RIGHT(P15,3)))))))","v":234.464},{"$f":"IF(OR(V15=0,DEMANDA!$AB$18<=X15),0,(DEMANDA!$AB$18-X15))","v":0},0]
["3#300",300,"400:5",450,"2x{3#120(70) }","2x{3#150(95) }","2 x 100","2 x 100",1000,"15K","Medição Trif. Indireta","-",null,10,"Fabricação de telhas, tijolos e outros artigos de barro cozido exclusive cerâmica","≤160",97,71,13,"10 - Fabricação de telhas, tijolos e outros artigos de barro cozido exclusive cerâmica",97,91,0,{"$f":"IF((U16=0),0,(IF((P16=0),DEMANDA!$AB$18,(VALUE((RIGHT(P16,3)))))))","v":160},{"$f":"IF(OR(V16=0,DEMANDA!$AB$18<=X16),0,(DEMANDA!$AB$18-X16))","v":74.463999999999999},0]
[null,null,null,null,null,null,null,null,null,null,null,null,null,{"$f":"N16","v":10},null,">160",91,60,30,"10 - ",91,0,0,{"$f":"IF((U17=0),0,(IF((P17=0),DEMANDA!$AB$18,(VALUE((RIGHT(P17,3)))))))","v":160},{"$f":"IF(OR(V17=0,DEMANDA!$AB$18<=X17),0,(DEMANDA!$AB$18-X17))","v":0},0]
[null,null,null,null,null,null,null,null,null,null,null,null,null,11,"Fabricação de material cerâmico - exclusive de barro cozido","≤100",96,76,10,"11 - Fabricação de material cerâmico - exclusive de barro cozido",96,93,0,{"$f":"IF((U18=0),0,(IF((P18=0),DEMANDA!$AB$18,(VALUE((RIGHT(P18,3)))))))","v":100},{"$f":"IF(OR(V18=0,DEMANDA!$AB$18<=X18),0,(DEMANDA!$AB$18-X18))","v":134.464},0]
[null,"2AWG","Cabo nu",{"$f":"CONCATENATE(C19,\" - \",B19)","v":"Cabo nu - 2AWG"},"Potência [kVA]","Tensão [kV]","Corrente [A]",null,"Elo fusível",null,null,null,null,{"$f":"N18","v":11},null,">100",93,66,39,"11 - ",93,0,0,{"$f":"IF((U19=0),0,(IF((P19=0),DEMANDA!$AB$18,(VALUE((RIGHT(P19,3)))))))","v":100},{"$f":"IF(OR(V19=0,DEMANDA!$AB$18<=X19),0,(DEMANDA!$AB$18-X19))","v":0},0]
[null,"1/0AWG","Cabo nu",{"$f":"CONCATENATE(C20,\" - \",B20)","v":"Cabo nu - 1/0AWG"},5,7.97,0.63,null,"0,5H",null,null,null,null,12,"Fabricação de cimento",null,66,64,54,"12 - Fabricação de cimento",66,0,0,{"$f":"IF((U20=0),0,(IF((P20=0),DEMANDA!$AB$18,(VALUE((RIGHT(P20,3)))))))","v":234.464},{"$f":"IF(OR(V20=0,DEMANDA!$AB$18<=X20),0,(DEMANDA!$AB$18-X20))","v":0},0]
[null,50,"Cabo Protegido","Cabo Protegido - 50",10,7.97,1.25,null,"1H",null,null,null,null,13,"Fabricação de peças, ornatos e estruturas de cimento, gesso e amianto",null,37,23,26,"13 - Fabricação de peças, ornatos e estruturas de cimento, gesso e amianto",37,0,0,{"$f":"IF((U21=0),0,(IF((P21=0),DEMANDA!$AB$18,(VALUE((RIGHT(P21,3)))))))","v":234.464},{"$f":"IF(OR(V21=0,DEMANDA!$AB$18<=X21),0,(DEMANDA!$AB$18-X21))","v":0},0]
[null,120,"Cabo Protegido","Cabo Protegido - 120",15,7.97,1.88,null,"2H",null,null,null,null,14,"Beneficiamento e preparação de minerais não metálicos, não associados à extração",null,78,46,51,"14 - Beneficiamento e preparação de minerais não metálicos, não associados à extração",78,0,0,{"$f":"IF((U22=0),0,(IF((P22=0),DEMANDA!$AB$18,(VALUE((RIGHT(P22,3)))))))","v":234.464},{"$f":"IF(OR(V22=0,DEMANDA!$AB$18<=X22),0,(DEMANDA!$AB$18-X22))","v":0},0]
[null,185,"Cabo Protegido","Cabo Protegido - 185",25,7.97,3.14,null,"3H",null,null,null,null,15,"Indústria metalúrgica",null,65,43,30,"15 - Indústria metalúrgica",65,0,0,{"$f":"IF((U23=0),0,(IF((P23=0),DEMANDA!$AB$18,(VALUE((RIGHT(P23,3)))))))","v":234.464},{"$f":"IF(OR(V23=0,DEMANDA!$AB$18<=X23),0,(DEMANDA!$AB$18-X23))","v":0},0]
[null,null,null,null,5,13.8,0.21,null,"0,5H",null,null,null,null,16,"Produção de ferro gusa",null,83,67,79,"16 - Produção de ferro gusa",83,0,0,{"$f":"IF((U24=0),0,(IF((P24=0),DEMANDA!$AB$18,(VALUE((RIGHT(P24,3)))))))","v":234.464},{"$f":"IF(OR(V24=0,DEMANDA!$AB$18<=X24),0,(DEMANDA!$AB$18-X24))","v":0},0]
[null,null,null,null,10,13.8,0.42,null,"1H",null,null,null,null,17,"Produção de laminados de aço - inclusive de ferro ligas",null,75,46,24,"17 - Produção de laminados de aço - inclusive de ferro ligas",75,0,0,{"$f":"IF((U25=0),0,(IF((P25=0),DEMANDA!$AB$18,(VALUE((RIGHT(P25,3)))))))","v":234.464},{"$f":"IF(OR(V25=0,DEMANDA!$AB$18<=X25),0,(DEMANDA!$AB$18-X25))","v":0},0]
[null,null,null,null,15,13.8,0.63,null,"1H",null,null,null,null,18,"Produção de canos e tubos de ferro e aço",null,37,30,40,"18 - Produção de canos e tubos de ferro e aço",37,0,0,{"$f":"IF((U26=0),0,(IF((P26=0),DEMANDA!$AB$18,(VALUE((RIGHT(P26,3)))))))","v":234.464},{"$f":"IF(OR(V26=0,DEMANDA!$AB$18<=X26),0,(DEMANDA!$AB$18-X26))","v":0},0]
[null,null,null,null,30,13.8,1.26,null,"2H",null,null,null,null,19,"Produção de fundidos de ferro e aço","≤150",50,33,19,"19 - Produção de fundidos de ferro e aço",50,80,0,{"$f":"IF((U27=0),0,(IF((P27=0),DEMANDA!$AB$18,(VALUE((RIGHT(P27,3)))))))","v":150},{"$f":"IF(OR(V27=0,DEMANDA!$AB$18<=X27),0,(DEMANDA!$AB$18-X27))","v":84.463999999999999},0,{"$f":"IF((X27>DEMANDA!$AB$18),1,0)","v":0}]
[null,null,null,null,45,13.8,1.88,null,"3H",null,null,null,null,{"$f":"N27","v":19},null,">150",80,55,33,"19 - ",80,0,0,{"$f":"IF((U28=0),0,(IF((P28=0),DEMANDA!$AB$18,(VALUE((RIGHT(P28,3)))))))","v":150},{"$f":"IF(OR(V28=0,DEMANDA!$AB$18<=X28),0,(DEMANDA!$AB$18-X28))","v":0},0]
[null,null,null,null,75,13.8,3.14,null,"5H",null,null,null,null,20,"Produção de canos e tubos de metais e de ligas de metais não ferrosos",null,54,45,33,"20 - Produção de canos e tubos de metais e de ligas de metais não ferrosos",54,0,0,{"$f":"IF((U29=0),0,(IF((P29=0),DEMANDA!$AB$18,(VALUE((RIGHT(P29,3)))))))","v":234.464},{"$f":"IF(OR(V29=0,DEMANDA!$AB$18<=X29),0,(DEMANDA!$AB$18-X29))","v":0},0]
[null,null,null,null,112.5,13.8,4.71,null,"6K",null,null,null,null,21,"Fabricação de estruturas metálicas",null,74,39,13,"21 - Fabricação de estruturas metálicas",74,0,0,{"$f":"IF((U30=0),0,(IF((P30=0),DEMANDA!$AB$18,(VALUE((RIGHT(P30,3)))))))","v":234.464},{"$f":"IF(OR(V30=0,DEMANDA!$AB$18<=X30),0,(DEMANDA!$AB$18-X30))","v":0},0]
[null,null,null,null,150,13.8,6.28,null,"8K",null,null,null,null,22,"Fabricação de artefatos de trefilados de ferro e aço e de metais não ferrosos exclusive móveis",null,68,53,19,"22 - Fabricação de artefatos de trefilados de ferro e aço e de metais não ferrosos exclusive móveis",68,0,0,{"$f":"IF((U31=0),0,(IF((P31=0),DEMANDA!$AB$18,(VALUE((RIGHT(P31,3)))))))","v":234.464},{"$f":"IF(OR(V31=0,DEMANDA!$AB$18<=X31),0,(DEMANDA!$AB$18-X31))","v":0},0]
[null,null,null,null,225,13.8,9.41,null,"10K",null,null,null,null,23,"Estamparia, funilaria e latoaria",null,65,26,22,"23 - Estamparia, funilaria e latoaria",65,0,0,{"$f":"IF((U32=0),0,(IF((P32=0),DEMANDA!$AB$18,(VALUE((RIGHT(P32,3)))))))","v":234.464},{"$f":"IF(OR(V32=0,DEMANDA!$AB$18<=X32),0,(DEMANDA!$AB$18-X32))","v":0},0]
[null,null,null,null,250,13.8,10.46,null,"10K",null,null,null,null,24,"Serralheria, fabricação de tanques, reservatórios e outros recipientes metálicos e de artigos de caldeireiro",null,48,27,23,"24 - Serralheria, fabricação de tanques, reservatórios e outros recipientes metálicos e de artigos de caldeireiro",48,0,0,{"$f":"IF((U33=0),0,(IF((P33=0),DEMANDA!$AB$18,(VALUE((RIGHT(P33,3)))))))","v":234.464},{"$f":"IF(OR(V33=0,DEMANDA!$AB$18<=X33),0,(DEMANDA!$AB$18-X33))","v":0},0]
[null,null,null,null,300,13.8,12.55,null,"15K",null,null,null,null,25,"Tempera e cementação de aço, recozimento de arames e serviços de galvanotécnica",null,83,52,29,"25 - Tempera e cementação de aço, recozimento de arames e serviços de galvanotécnica",83,0,0,{"$f":"IF((U34=0),0,(IF((P34=0),DEMANDA!$AB$18,(VALUE((RIGHT(P34,3)))))))","v":234.464},{"$f":"IF(OR(V34=0,DEMANDA!$AB$18<=X34),0,(DEMANDA!$AB$18-X34))","v":0},0]
[null,null,null,null,400,13.8,16.73,null,"15K",null,null,null,null,26,"Indústria mecânica",null,47,29,31,"26 - Indústria mecânica",47,0,0,{"$f":"IF((U35=0),0,(IF((P35=0),DEMANDA!$AB$18,(VALUE((RIGHT(P35,3)))))))","v":234.464},{"$f":"IF(OR(V35=0,DEMANDA!$AB$18<=X35),0,(DEMANDA!$AB$18-X35))","v":0},0]
[null,null,null,null,500,13.8,20.92,null,"25K",null,null,null,null,27,"Fabricação de máquinas motrizes não elétricas e de equipamentos de transmissão para fins industriais, inclusive peças e acessórios",null,20,17,50,"27 - Fabricação de máquinas motrizes não elétricas e de equipamentos de transmissão para fins industriais, inclusive peças e acessórios",20,0,0,{"$f":"IF((U36=0),0,(IF((P36=0),DEMANDA!$AB$18,(VALUE((RIGHT(P36,3)))))))","v":234.464},{"$f":"IF(OR(V36=0,DEMANDA!$AB$18<=X36),0,(DEMANDA!$AB$18-X36))","v":0},0]
[null,null,null,null,750,13.8,31.38,null,"40K",null,null,null,null,28,"Fabricação de máquinas, aparelhos e equipamentos industriais para instalações hidráulicas, térmicas, de ventilação e refrigeração, equipadas ou não com motores elétricos, inclusive peças e acessórios",null,31,27,22,{"$f":"CONCATENATE(N37,\" - \",O37)","v":"28 - Fabricação de máquinas, aparelhos e equipamentos industriais para instalações hidráulicas, térmicas, de ventilação e refrigeração, equipadas ou não com motores elétricos, inclusive peças e acessórios"},31,0,0,{"$f":"IF((U37=0),0,(IF((P37=0),DEMANDA!$AB$18,(VALUE((RIGHT(P37,3)))))))","v":234.464},{"$f":"IF(OR(V37=0,DEMANDA!$AB$18<=X37),0,(DEMANDA!$AB$18-X37))","v":0},0]
[null,null,null,null,1000,13.8,41.84,null,"50K",null,null,null,null,29,"Fabricação de produtos de padaria, confeitaria e pastelaria (inclusive panificadoras e similares)",null,82,74,28,"29 - Fabricação de produtos de padaria, confeitaria e pastelaria (inclusive panificadoras e similares)",82,0,0,{"$f":"IF((U38=0),0,(IF((P38=0),DEMANDA!$AB$18,(VALUE((RIGHT(P38,3)))))))","v":234.464},{"$f":"IF(OR(V38=0,DEMANDA!$AB$18<=X38),0,(DEMANDA!$AB$18-X38))","v":0},0]
[null,null,null,null,"--","--","--",null,"--",null,null,null,null,30,"Fabricação de massas alimentícias e biscoitos",null,61,54,57,"30 - Fabricação de massas alimentícias e biscoitos",61,0,0,{"$f":"IF((U39=0),0,(IF((P39=0),DEMANDA!$AB$18,(VALUE((RIGHT(P39,3)))))))","v":234.464},{"$f":"IF(OR(V39=0,DEMANDA!$AB$18<=X39),0,(DEMANDA!$AB$18-X39))","v":0},0]
[null,null,null,null,null,null,null,null,null,null,null,null,null,31,"Refinação e preparação de óleos e gorduras vegetais, produção de manteiga de cacau e de gordura de origem animal, destinadas à alimentação",null,89,38,39,"31 - Refinação e preparação de óleos e gorduras vegetais, produção de manteiga de cacau e de gordura de origem animal, destinadas à alimentação",89,0,0,{"$f":"IF((U40=0),0,(IF((P40=0),DEMANDA!$AB$18,(VALUE((RIGHT(P40,3)))))))","v":234.464},{"$f":"IF(OR(V40=0,DEMANDA!$AB$18<=X40),0,(DEMANDA!$AB$18-X40))","v":0},0]
[null,null,null,null,null,null,null,null,null,null,null,null,null,32,"Fabricação de gelo",null,91,75,41,"32 - Fabricação de gelo",91,0,0,{"$f":"IF((U41=0),0,(IF((P41=0),DEMANDA!$AB$18,(VALUE((RIGHT(P41,3)))))))","v":234.464},{"$f":"IF(OR(V41=0,DEMANDA!$AB$18<=X41),0,(DEMANDA!$AB$18-X41))","v":0},0]
[null,null,null,null,null,null,null,null,null,null,null,null,null,33,"Fabricação de rações balanceadas e de alimentos preparados para animais, inclusive farinha de carne, sangue, osso e peixe",null,85,45,29,"33 - Fabricação de rações balanceadas e de alimentos preparados para animais, inclusive farinha de carne, sangue, osso e peixe",85,0,0,{"$f":"IF((U42=0),0,(IF((P42=0),DEMANDA!$AB$18,(VALUE((RIGHT(P42,3)))))))","v":234.464},{"$f":"IF(OR(V42=0,DEMANDA!$AB$18<=X42),0,(DEMANDA!$AB$18-X42))","v":0},0]
[null,null,null,null,null,null,null,null,null,null,null,null,null,34,"Indústria de bebidas",null,62,41,20,"34 - Indústria de bebidas",62,0,0,{"$f":"IF((U43=0),0,(IF((P43=0),DEMANDA!$AB$18,(VALUE((RIGHT(P43,3)))))))","v":234.464},{"$f":"IF(OR(V43=0,DEMANDA!$AB$18<=X43),0,(DEMANDA!$AB$18-X43))","v":0},0]
[null,null,null,null,null,null,null,null,null,null,null,null,null,35,"Fabricação de aguardentes, licores e outras bebidas alcoólicas",null,68,49,43,"35 - Fabricação de aguardentes, licores e outras bebidas alcoólicas",68,0,0,{"$f":"IF((U44=0),0,(IF((P44=0),DEMANDA!$AB$18,(VALUE((RIGHT(P44,3)))))))","v":234.464},{"$f":"IF(OR(V44=0,DEMANDA!$AB$18<=X44),0,(DEMANDA!$AB$18-X44))","v":0},0]
[null,null,null,null,null,null,null,null,null,null,null,null,null,36,"Fabricação de cervejas, chopes e malte",null,50,27,27,"36 - Fabricação de cervejas, chopes e malte",50,0,0,{"$f":"IF((U45=0),0,(IF((P45=0),DEMANDA!$AB$18,(VALUE((RIGHT(P45,3)))))))","v":234.464},{"$f":"IF(OR(V45=0,DEMANDA!$AB$18<=X45),0,(DEMANDA!$AB$18-X45))","v":0},0]
[null,null,null,null,null,null,null,null,null,null,null,null,null,37,"Fabricação de bebidas não alcoólicas",null,57,47,69,"37 - Fabricação de bebidas não alcoólicas",57,0,0,{"$f":"IF((U46=0),0,(IF((P46=0),DEMANDA!$AB$18,(VALUE((RIGHT(P46,3)))))))","v":234.464},{"$f":"IF(OR(V46=0,DEMANDA!$AB$18<=X46),0,(DEMANDA!$AB$18-X46))","v":0},0]
[null,null,null,null,null,null,null,null,null,null,null,null,null,38,"Indústria de fumo",null,96,72,32,"38 - Indústria de fumo",96,0,0,{"$f":"IF((U47=0),0,(IF((P47=0),DEMANDA!$AB$18,(VALUE((RIGHT(P47,3)))))))","v":234.464},{"$f":"IF(OR(V47=0,DEMANDA!$AB$18<=X47),0,(DEMANDA!$AB$18-X47))","v":0},0]
[null,null,null,null,null,null,null,null,null,null,null,null,null,39,"Fabricação de cigarros",null,43,39,59,"39 - Fabricação de cigarros",43,0,0,{"$f":"IF((U48=0),0,(IF((P48=0),DEMANDA!$AB$18,(VALUE((RIGHT(P48,3)))))))","v":234.464},{"$f":"IF(OR(V48=0,DEMANDA!$AB$18<=X48),0,(DEMANDA!$AB$18-X48))","v":0},0]
[null,null,null,null,null,null,null,null,null,null,null,null,null,40,"Indústria de utilidade pública, irrigação, água, esgoto e saneamento",null,95,84,51,"40 - Indústria de utilidade pública, irrigação, água, esgoto e saneamento",95,0,0,{"$f":"IF((U49=0),0,(IF((P49=0),DEMANDA!$AB$18,(VALUE((RIGHT(P49,3)))))))","v":234.464},{"$f":"IF(OR(V49=0,DEMANDA!$AB$18<=X49),0,(DEMANDA!$AB$18-X49))","v":0},0]
[null,null,null,null,null,null,null,null,null,null,null,null,null,41,"Distribuição de gás",null,57,51,40,"41 - Distribuição de gás",57,0,0,{"$f":"IF((U50=0),0,(IF((P50=0),DEMANDA!$AB$18,(VALUE((RIGHT(P50,3)))))))","v":234.464},{"$f":"IF(OR(V50=0,DEMANDA!$AB$18<=X50),0,(DEMANDA!$AB$18-X50))","v":0},0]
[null,null,null,null,null,null,null,null,null,null,null,null,null,42,"Tratamento e distribuição de água","≤100",100,92,30,"42 - Tratamento e distribuição de água",100,95,0,{"$f":"IF((U51=0),0,(IF((P51=0),DEMANDA!$AB$18,(VALUE((RIGHT(P51,3)))))))","v":100},{"$f":"IF(OR(V51=0,DEMANDA!$AB$18<=X51),0,(DEMANDA!$AB$18-X51))","v":134.464},0]
[null,null,null,null,null,null,null,null,null,null,null,null,null,{"$f":"N51","v":42},null,">100",95,75,72,"42 - ",95,0,0,{"$f":"IF((U52=0),0,(IF((P52=0),DEMANDA!$AB$18,(VALUE((RIGHT(P52,3)))))))","v":100},{"$f":"IF(OR(V52=0,DEMANDA!$AB$18<=X52),0,(DEMANDA!$AB$18-X52))","v":0},0]
[null,null,null,null,null,null,null,null,null,null,null,null,null,43,"Indústria de construção",null,59,36,32,"43 - Indústria de construção",59,0,0,{"$f":"IF((U53=0),0,(IF((P53=0),DEMANDA!$AB$18,(VALUE((RIGHT(P53,3)))))))","v":234.464},{"$f":"IF(OR(V53=0,DEMANDA!$AB$18<=X53),0,(DEMANDA!$AB$18-X53))","v":0},0]
[null,null,null,null,null,null,null,null,null,null,null,null,null,44,"Construção Civil","≤190",80,39,31,"44 - Construção Civil",80,30,0,{"$f":"IF((U54=0),0,(IF((P54=0),DEMANDA!$AB$18,(VALUE((RIGHT(P54,3)))))))","v":190},{"$f":"IF(OR(V54=0,DEMANDA!$AB$18<=X54),0,(DEMANDA!$AB$18-X54))","v":44.463999999999999},0]
[null,null,null,null,null,null,null,null,null,null,null,null,null,{"$f":"N54","v":44},null,">190",30,14,33,"44 - ",30,0,0,{"$f":"IF((U55=0),0,(IF((P55=0),DEMANDA!$AB$18,(VALUE((RIGHT(P55,3)))))))","v":190},{"$f":"IF(OR(V55=0,DEMANDA!$AB$18<=X55),0,(DEMANDA!$AB$18-X55))","v":0},0]
[null,null,null,null,null,null,null,null,null,null,null,null,null,45,"Pavimentação, terraplenagem e construção de estradas","≤200",90,65,21,"45 - Pavimentação, terraplenagem e construção de estradas",90,79,0,{"$f":"IF((U56=0),0,(IF((P56=0),DEMANDA!$AB$18,(VALUE((RIGHT(P56,3)))))))","v":200},{"$f":"IF(OR(V56=0,DEMANDA!$AB$18<=X56),0,(DEMANDA!$AB$18-X56))","v":34.463999999999999},0]
[null,null,null,null,null,null,null,null,null,null,null,null,null,{"$f":"N56","v":45},null,">200",79,52,41,"45 - ",79,0,0,{"$f":"IF((U57=0),0,(IF((P57=0),DEMANDA!$AB$18,(VALUE((RIGHT(P57,3)))))))","v":200},{"$f":"IF(OR(V57=0,DEMANDA!$AB$18<=X57),0,(DEMANDA!$AB$18-X57))","v":0},0]
[null,null,null,null,null,null,null,null,null,null,null,null,null,46,"Construção de obras de arte (viadutos, mirantes, etc.)",null,14,11,32,"46 - Construção de obras de arte (viadutos, mirantes, etc.)",14,0,0,{"$f":"IF((U58=0),0,(IF((P58=0),DEMANDA!$AB$18,(VALUE((RIGHT(P58,3)))))))","v":234.464},{"$f":"IF(OR(V58=0,DEMANDA!$AB$18<=X58),0,(DEMANDA!$AB$18-X58))","v":0},0]
[null,null,null,null,null,null,null,null,null,null,null,null,null,47,"Agricultura e criação animal",null,77,43,33,"47 - Agricultura e criação animal",77,0,0,{"$f":"IF((U59=0),0,(IF((P59=0),DEMANDA!$AB$18,(VALUE((RIGHT(P59,3)))))))","v":234.464},{"$f":"IF(OR(V59=0,DEMANDA!$AB$18<=X59),0,(DEMANDA!$AB$18-X59))","v":0},0]
[null,null,null,null,null,null,null,null,null,null,null,null,null,48,"Agricultura",null,91,44,30,"48 - Agricultura",91,0,0,{"$f":"IF((U60=0),0,(IF((P60=0),DEMANDA!$AB$18,(VALUE((RIGHT(P60,3)))))))","v":234.464},{"$f":"IF(OR(V60=0,DEMANDA!$AB$18<=X60),0,(DEMANDA!$AB$18-X60))","v":0},0]
[null,null,null,null,null,null,null,null,null,null,null,null,null,49,"Agricultura (irrigação)",null,97,54,19,"49 - Agricultura (irrigação)",97,0,0,{"$f":"IF((U61=0),0,(IF((P61=0),DEMANDA!$AB$18,(VALUE((RIGHT(P61,3)))))))","v":234.464},{"$f":"IF(OR(V61=0,DEMANDA!$AB$18<=X61),0,(DEMANDA!$AB$18-X61))","v":0},0]
[null,null,null,null,null,null,null,null,null,null,null,null,null,50,"Criação animal exclusive bovinocultura (índices baseados na avicultura)",null,99,61,70,"50 - Criação animal exclusive bovinocultura (índices baseados na avicultura)",99,0,0,{"$f":"IF((U62=0),0,(IF((P62=0),DEMANDA!$AB$18,(VALUE((RIGHT(P62,3)))))))","v":234.464},{"$f":"IF(OR(V62=0,DEMANDA!$AB$18<=X62),0,(DEMANDA!$AB$18-X62))","v":0},0]
[null,null,null,null,null,null,null,null,null,null,null,null,null,51,"Criação animal - suinocultura",null,91,52,24,"51 - Criação animal - suinocultura",91,0,0,{"$f":"IF((U63=0),0,(IF((P63=0),DEMANDA!$AB$18,(VALUE((RIGHT(P63,3)))))))","v":234.464},{"$f":"IF(OR(V63=0,DEMANDA!$AB$18<=X63),0,(DEMANDA!$AB$18-X63))","v":0},0]
[null,null,null,null,null,null,null,null,null,null,null,null,null,52,"Bovinocultura",null,39,22,31,"52 - Bovinocultura",39,0,0,{"$f":"IF((U64=0),0,(IF((P64=0),DEMANDA!$AB$18,(VALUE((RIGHT(P64,3)))))))","v":234.464},{"$f":"IF(OR(V64=0,DEMANDA!$AB$18<=X64),0,(DEMANDA!$AB$18-X64))","v":0},0]
[null,null,null,null,null,null,null,null,null,null,null,null,null,53,"Florestamento e reflorestamento",null,63,32,26,"53 - Florestamento e reflorestamento",63,0,0,{"$f":"IF((U65=0),0,(IF((P65=0),DEMANDA!$AB$18,(VALUE((RIGHT(P65,3)))))))","v":234.464},{"$f":"IF(OR(V65=0,DEMANDA!$AB$18<=X65),0,(DEMANDA!$AB$18-X65))","v":0},0]
[null,null,null,null,null,null,null,null,null,null,null,null,null,54,"Serviços de transporte",null,56,28,41,"54 - Serviços de transporte",56,0,0,{"$f":"IF((U66=0),0,(IF((P66=0),DEMANDA!$AB$18,(VALUE((RIGHT(P66,3)))))))","v":234.464},{"$f":"IF(OR(V66=0,DEMANDA!$AB$18<=X66),0,(DEMANDA!$AB$18-X66))","v":0},0]
[null,null,null,null,null,null,null,null,null,null,null,null,null,55,"Transportes ferroviários",null,66,42,49,"55 - Transportes ferroviários",66,0,0,{"$f":"IF((U67=0),0,(IF((P67=0),DEMANDA!$AB$18,(VALUE((RIGHT(P67,3)))))))","v":234.464},{"$f":"IF(OR(V67=0,DEMANDA!$AB$18<=X67),0,(DEMANDA!$AB$18-X67))","v":0},0]
[null,null,null,null,null,null,null,null,null,null,null,null,null,56,"Transportes rodoviários de carga",null,24,16,34,"56 - Transportes rodoviários de carga",24,0,0,{"$f":"IF((U68=0),0,(IF((P68=0),DEMANDA!$AB$18,(VALUE((RIGHT(P68,3)))))))","v":234.464},{"$f":"IF(OR(V68=0,DEMANDA!$AB$18<=X68),0,(DEMANDA!$AB$18-X68))","v":0},0]
[null,null,null,null,null,null,null,null,null,null,null,null,null,57,"Transportes urbanos de passageiros - inclusive metroviários",null,78,26,41,{"$f":"CONCATENATE(N69,\" - \",O69)","v":"57 - Transportes urbanos de passageiros - inclusive metroviários"},78,0,0,{"$f":"IF((U69=0),0,(IF((P69=0),DEMANDA!$AB$18,(VALUE((RIGHT(P69,3)))))))","v":234.464},{"$f":"IF(OR(V69=0,DEMANDA!$AB$18<=X69),0,(DEMANDA!$AB$18-X69))","v":0},0]
[null,null,null,null,null,null,null,null,null,null,null,null,null,58,"Serviços de comunicação",null,81,43,46,"58 - Serviços de comunicação",{"$f":"Q70","v":81},{"$f":"IF((N71=N70),Q71,0)","v":0},{"$f":"IF((N70=N72),Q70,0)","v":0},{"$f":"IF((U70=0),0,(IF((P70=0),DEMANDA!$AB$18,(VALUE((RIGHT(P70,3)))))))","v":234.464},{"$f":"IF(OR(V70=0,DEMANDA!$AB$18<=X70),0,(DEMANDA!$AB$18-X70))","v":0},0]
[null,null,null,null,null,null,null,null,null,null,null,null,null,59,"Telegrafia, telefone e correios","<150",78,40,45,"59 - Telegrafia, telefone e correios",78,92,0,{"$f":"IF((U71=0),0,(IF((P71=0),DEMANDA!$AB$18,(VALUE((RIGHT(P71,3)))))))","v":150},{"$f":"IF(OR(V71=0,DEMANDA!$AB$18<=X71),0,(DEMANDA!$AB$18-X71))","v":84.463999999999999},0]
[null,null,null,null,null,null,null,null,null,null,null,null,null,{"$f":"N71","v":59},null,">150",92,44,55,"59 - ",92,0,0,{"$f":"IF((U72=0),0,(IF((P72=0),DEMANDA!$AB$18,(VALUE((RIGHT(P72,3)))))))","v":150},{"$f":"IF(OR(V72=0,DEMANDA!$AB$18<=X72),0,(DEMANDA!$AB$18-X72))","v":0},0]
[null,null,null,null,null,null,null,null,null,null,null,null,null,60,"Radiodifusão e televisão",null,73,44,37,"60 - Radiodifusão e televisão",73,0,0,{"$f":"IF((U73=0),0,(IF((P73=0),DEMANDA!$AB$18,(VALUE((RIGHT(P73,3)))))))","v":234.464},{"$f":"IF(OR(V73=0,DEMANDA!$AB$18<=X73),0,(DEMANDA!$AB$18-X73))","v":0},0]
[null,null,null,null,null,null,null,null,null,null,null,null,null,61,"Serviços de alojamento e alimentação",null,81,48,46,"61 - Serviços de alojamento e alimentação",81,0,0,{"$f":"IF((U74=0),0,(IF((P74=0),DEMANDA!$AB$18,(VALUE((RIGHT(P74,3)))))))","v":234.464},{"$f":"IF(OR(V74=0,DEMANDA!$AB$18<=X74),0,(DEMANDA!$AB$18-X74))","v":0},0]
[null,null,null,null,null,null,null,null,null,null,null,null,null,62,"Hotéis e motéis",null,74,35,40,"62 - Hotéis e motéis",74,0,0,{"$f":"IF((U75=0),0,(IF((P75=0),DEMANDA!$AB$18,(VALUE((RIGHT(P75,3)))))))","v":234.464},{"$f":"IF(OR(V75=0,DEMANDA!$AB$18<=X75),0,(DEMANDA!$AB$18-X75))","v":0},0]
[null,null,null,null,null,null,null,null,null,null,null,null,null,63,"Restaurantes e lanchonetes",null,88,60,52,"63 - Restaurantes e lanchonetes",88,0,0,{"$f":"IF((U76=0),0,(IF((P76=0),DEMANDA!$AB$18,(VALUE((RIGHT(P76,3)))))))","v":234.464},{"$f":"IF(OR(V76=0,DEMANDA!$AB$18<=X76),0,(DEMANDA!$AB$18-X76))","v":0},0]
[null,null,null,null,null,null,null,null,null,null,null,null,null,64,"Fabricação de máquinas, ferramentas, máquinas operatrizes e aparelhos industriais acoplados ou não a motores elétricos",null,76,30,30,"64 - Fabricação de máquinas, ferramentas, máquinas operatrizes e aparelhos industriais acoplados ou não a motores elétricos",76,0,0,{"$f":"IF((U77=0),0,(IF((P77=0),DEMANDA!$AB$18,(VALUE((RIGHT(P77,3)))))))","v":234.464},{"$f":"IF(OR(V77=0,DEMANDA!$AB$18<=X77),0,(DEMANDA!$AB$18-X77))","v":0},0]
[null,null,null,null,null,null,null,null,null,null,null,null,null,65,"Fabricação de peças, acessórios, utensílios e ferramentas para máquinas industriais",null,63,38,19,"65 - Fabricação de peças, acessórios, utensílios e ferramentas para máquinas industriais",63,0,0,{"$f":"IF((U78=0),0,(IF((P78=0),DEMANDA!$AB$18,(VALUE((RIGHT(P78,3)))))))","v":234.464},{"$f":"IF(OR(V78=0,DEMANDA!$AB$18<=X78),0,(DEMANDA!$AB$18-X78))","v":0},0]
[null,null,null,null,null,null,null,null,null,null,null,null,null,66,"Fabricação de máquinas, aparelhos e materiais para agricultura, avicultura, apicultura, criação de outros pequenos animais e obtenção de produtos de origem animal, e para beneficiamento ou preparação de produtos agrícolas - peças e acessórios",null,48,28,30,"66 - Fabricação de máquinas, aparelhos e materiais para agricultura, avicultura, apicultura, criação de outros pequenos animais e obtenção de produtos de origem animal, e para beneficiamento ou preparação de produtos agrícolas - peças e acessórios",48,0,0,{"$f":"IF((U79=0),0,(IF((P79=0),DEMANDA!$AB$18,(VALUE((RIGHT(P79,3)))))))","v":234.464},{"$f":"IF(OR(V79=0,DEMANDA!$AB$18<=X79),0,(DEMANDA!$AB$18-X79))","v":0},0]
[null,null,null,null,null,null,null,null,null,null,null,null,null,67,"Fabricação de cronômetros e relógios, elétricos ou não - inclusive a fabricação de peças",null,47,33,38,"67 - Fabricação de cronômetros e relógios, elétricos ou não - inclusive a fabricação de peças",47,0,0,{"$f":"IF((U80=0),0,(IF((P80=0),DEMANDA!$AB$18,(VALUE((RIGHT(P80,3)))))))","v":234.464},{"$f":"IF(OR(V80=0,DEMANDA!$AB$18<=X80),0,(DEMANDA!$AB$18-X80))","v":0},0]
[null,null,null,null,null,null,null,null,null,null,null,null,null,68,"Reparação ou manutenção de máquinas, aparelhos e equipa- mentos industriais, agrícolas e de máquinas de terraplenagem",null,43,29,27,"68 - Reparação ou manutenção de máquinas, aparelhos e equipa- mentos industriais, agrícolas e de máquinas de terraplenagem",43,0,0,{"$f":"IF((U81=0),0,(IF((P81=0),DEMANDA!$AB$18,(VALUE((RIGHT(P81,3)))))))","v":234.464},{"$f":"IF(OR(V81=0,DEMANDA!$AB$18<=X81),0,(DEMANDA!$AB$18-X81))","v":0},0]
[null,null,null,null,null,null,null,null,null,null,null,null,null,69,"Indústria de material elétrico e de comunicações fabricação de aparelhos e utensílios elétricos para fins industriais e comerciais, inclusive peças e acessórios",null,84,70,32,"69 - Indústria de material elétrico e de comunicações fabricação de aparelhos e utensílios elétricos para fins industriais e comerciais, inclusive peças e acessórios",84,0,0,{"$f":"IF((U82=0),0,(IF((P82=0),DEMANDA!$AB$18,(VALUE((RIGHT(P82,3)))))))","v":234.464},{"$f":"IF(OR(V82=0,DEMANDA!$AB$18<=X82),0,(DEMANDA!$AB$18-X82))","v":0},0]
[null,null,null,null,null,null,null,null,null,null,null,null,null,70,"Indústria de material de transporte",null,45,37,36,"70 - Indústria de material de transporte",45,0,0,{"$f":"IF((U83=0),0,(IF((P83=0),DEMANDA!$AB$18,(VALUE((RIGHT(P83,3)))))))","v":234.464},{"$f":"IF(OR(V83=0,DEMANDA!$AB$18<=X83),0,(DEMANDA!$AB$18-X83))","v":0},0]
[null,null,null,null,null,null,null,null,null,null,null,null,null,71,"Reparação de veículos ferroviários",null,38,35,40,"71 - Reparação de veículos ferroviários",38,0,0,{"$f":"IF((U84=0),0,(IF((P84=0),DEMANDA!$AB$18,(VALUE((RIGHT(P84,3)))))))","v":234.464},{"$f":"IF(OR(V84=0,DEMANDA!$AB$18<=X84),0,(DEMANDA!$AB$18-X84))","v":0},0]
[null,null,null,null,null,null,null,null,null,null,null,null,null,72,"Fabricação de carrocerias para veículos automotores-exclusive chassis",null,51,38,31,"72 - Fabricação de carrocerias para veículos automotores-exclusive chassis",51,0,0,{"$f":"IF((U85=0),0,(IF((P85=0),DEMANDA!$AB$18,(VALUE((RIGHT(P85,3)))))))","v":234.464},{"$f":"IF(OR(V85=0,DEMANDA!$AB$18<=X85),0,(DEMANDA!$AB$18-X85))","v":0},0]
[null,null,null,null,null,null,null,null,null,null,null,null,null,73,"Indústria de madeira",null,55,38,12,"73 - Indústria de madeira",55,0,0,{"$f":"IF((U86=0),0,(IF((P86=0),DEMANDA!$AB$18,(VALUE((RIGHT(P86,3)))))))","v":234.464},{"$f":"IF(OR(V86=0,DEMANDA!$AB$18<=X86),0,(DEMANDA!$AB$18-X86))","v":0},0]
[null,null,null,null,null,null,null,null,null,null,null,null,null,74,"Desdobramento da madeira",null,51,36,12,"74 - Desdobramento da madeira",51,0,0,{"$f":"IF((U87=0),0,(IF((P87=0),DEMANDA!$AB$18,(VALUE((RIGHT(P87,3)))))))","v":234.464},{"$f":"IF(OR(V87=0,DEMANDA!$AB$18<=X87),0,(DEMANDA!$AB$18-X87))","v":0},0]
[null,null,null,null,null,null,null,null,null,null,null,null,null,75,"Fabricação de chapas e placas de madeira, aglomerada ou prensada e de madeira compensada, revestida ou não com material plástico",null,59,40,11,"75 - Fabricação de chapas e placas de madeira, aglomerada ou prensada e de madeira compensada, revestida ou não com material plástico",59,0,0,{"$f":"IF((U88=0),0,(IF((P88=0),DEMANDA!$AB$18,(VALUE((RIGHT(P88,3)))))))","v":234.464},{"$f":"IF(OR(V88=0,DEMANDA!$AB$18<=X88),0,(DEMANDA!$AB$18-X88))","v":0},0]
[null,null,null,null,null,null,null,null,null,null,null,null,null,76,"Indústria de mobiliário, fabricação de móveis de madeira, vime e junco",null,83,42,22,"76 - Indústria de mobiliário, fabricação de móveis de madeira, vime e junco",83,0,0,{"$f":"IF((U89=0),0,(IF((P89=0),DEMANDA!$AB$18,(VALUE((RIGHT(P89,3)))))))","v":234.464},{"$f":"IF(OR(V89=0,DEMANDA!$AB$18<=X89),0,(DEMANDA!$AB$18-X89))","v":0},0]
[null,null,null,null,null,null,null,null,null,null,null,null,null,77,"Indústria de celulose, papel e papelão fabricação de papel, papelão, cartolina e cartão",null,82,77,71,"77 - Indústria de celulose, papel e papelão fabricação de papel, papelão, cartolina e cartão",82,0,0,{"$f":"IF((U90=0),0,(IF((P90=0),DEMANDA!$AB$18,(VALUE((RIGHT(P90,3)))))))","v":234.464},{"$f":"IF(OR(V90=0,DEMANDA!$AB$18<=X90),0,(DEMANDA!$AB$18-X90))","v":0},0]
[null,null,null,null,null,null,null,null,null,null,null,null,null,78,"Indústria de borracha recondicionamento de pneumáticos",null,68,58,26,"78 - Indústria de borracha recondicionamento de pneumáticos",68,0,0,{"$f":"IF((U91=0),0,(IF((P91=0),DEMANDA!$AB$18,(VALUE((RIGHT(P91,3)))))))","v":234.464},{"$f":"IF(OR(V91=0,DEMANDA!$AB$18<=X91),0,(DEMANDA!$AB$18-X91))","v":0},0]
[null,null,null,null,null,null,null,null,null,null,null,null,null,79,"Indústria de couros, peles e produtos similares curtimento e outras preparações de couros e peles - inclusive subprodutos",null,64,51,32,"79 - Indústria de couros, peles e produtos similares curtimento e outras preparações de couros e peles - inclusive subprodutos",64,0,0,{"$f":"IF((U92=0),0,(IF((P92=0),DEMANDA!$AB$18,(VALUE((RIGHT(P92,3)))))))","v":234.464},{"$f":"IF(OR(V92=0,DEMANDA!$AB$18<=X92),0,(DEMANDA!$AB$18-X92))","v":0},0]
[null,null,null,null,null,null,null,null,null,null,null,null,null,80,"Indústria química",null,67,48,23,"80 - Indústria química",67,0,0,{"$f":"IF((U93=0),0,(IF((P93=0),DEMANDA!$AB$18,(VALUE((RIGHT(P93,3)))))))","v":234.464},{"$f":"IF(OR(V93=0,DEMANDA!$AB$18<=X93),0,(DEMANDA!$AB$18-X93))","v":0},0]
[null,null,null,null,null,null,null,null,null,null,null,null,null,81,"Produção de elementos Químicos e de produtos químicos inorgânicos, orgânicos, orgânicos inorgânicos, exclusive produtos derivados do processamento do petróleo, da rochas oleígenas, de carvão-de-pedra e de madeira",null,92,54,36,"81 - Produção de elementos Químicos e de produtos químicos inorgânicos, orgânicos, orgânicos inorgânicos, exclusive produtos derivados do processamento do petróleo, da rochas oleígenas, de carvão-de-pedra e de madeira",92,0,0,{"$f":"IF((U94=0),0,(IF((P94=0),DEMANDA!$AB$18,(VALUE((RIGHT(P94,3)))))))","v":234.464},{"$f":"IF(OR(V94=0,DEMANDA!$AB$18<=X94),0,(DEMANDA!$AB$18-X94))","v":0},0]
[null,null,null,null,null,null,null,null,null,null,null,null,null,82,"Fabricação de asfalto",null,79,52,22,"82 - Fabricação de asfalto",79,0,0,{"$f":"IF((U95=0),0,(IF((P95=0),DEMANDA!$AB$18,(VALUE((RIGHT(P95,3)))))))","v":234.464},{"$f":"IF(OR(V95=0,DEMANDA!$AB$18<=X95),0,(DEMANDA!$AB$18-X95))","v":0},0]
[null,null,null,null,null,null,null,null,null,null,null,null,null,83,"Fabricação de resinas de fibras e de fios artificiais e sintéticos e de borracha e látex sintéticos",null,56,48,24,"83 - Fabricação de resinas de fibras e de fios artificiais e sintéticos e de borracha e látex sintéticos",56,0,0,{"$f":"IF((U96=0),0,(IF((P96=0),DEMANDA!$AB$18,(VALUE((RIGHT(P96,3)))))))","v":234.464},{"$f":"IF(OR(V96=0,DEMANDA!$AB$18<=X96),0,(DEMANDA!$AB$18-X96))","v":0},0]
[null,null,null,null,null,null,null,null,null,null,null,null,null,84,"Produção de óleos, gorduras e ceras vegetais e animais, em banho de óleos, essenciais vegetais e outros produtos da destilação da madeira - exclusive refinação de produtos alimentares (destilaria de álcool proveniente de madeira)",null,62,43,22,"84 - Produção de óleos, gorduras e ceras vegetais e animais, em banho de óleos, essenciais vegetais e outros produtos da destilação da madeira - exclusive refinação de produtos alimentares (destilaria de álcool proveniente de madeira)",62,0,0,{"$f":"IF((U97=0),0,(IF((P97=0),DEMANDA!$AB$18,(VALUE((RIGHT(P97,3)))))))","v":234.464},{"$f":"IF(OR(V97=0,DEMANDA!$AB$18<=X97),0,(DEMANDA!$AB$18-X97))","v":0},0]
[null,null,null,null,null,null,null,null,null,null,null,null,null,85,"Fabricação de concentrados aromáticos naturais, artificiais e sintéticos, inclusive mesclas",null,21,15,13,"85 - Fabricação de concentrados aromáticos naturais, artificiais e sintéticos, inclusive mesclas",21,0,0,{"$f":"IF((U98=0),0,(IF((P98=0),DEMANDA!$AB$18,(VALUE((RIGHT(P98,3)))))))","v":234.464},{"$f":"IF(OR(V98=0,DEMANDA!$AB$18<=X98),0,(DEMANDA!$AB$18-X98))","v":0},0]
[null,null,null,null,null,null,null,null,null,null,null,null,null,86,"Fabricação de preparados para limpeza e polimento, desinfetantes, inseticidas, germicidas e fungicidas",null,77,66,28,"86 - Fabricação de preparados para limpeza e polimento, desinfetantes, inseticidas, germicidas e fungicidas",77,0,0,{"$f":"IF((U99=0),0,(IF((P99=0),DEMANDA!$AB$18,(VALUE((RIGHT(P99,3)))))))","v":234.464},{"$f":"IF(OR(V99=0,DEMANDA!$AB$18<=X99),0,(DEMANDA!$AB$18-X99))","v":0},0]
[null,null,null,null,null,null,null,null,null,null,null,null,null,87,"Fabricação de adubos e fertilizantes e corretivos de solo",null,84,57,19,"87 - Fabricação de adubos e fertilizantes e corretivos de solo",84,0,0,{"$f":"IF((U100=0),0,(IF((P100=0),DEMANDA!$AB$18,(VALUE((RIGHT(P100,3)))))))","v":234.464},{"$f":"IF(OR(V100=0,DEMANDA!$AB$18<=X100),0,(DEMANDA!$AB$18-X100))","v":0},0]
[null,null,null,null,null,null,null,null,null,null,null,null,null,88,"Indústria de produtos farmacêuticos e veterinários",null,68,39,24,{"$f":"CONCATENATE(N101,\" - \",O101)","v":"88 - Indústria de produtos farmacêuticos e veterinários"},68,0,0,{"$f":"IF((U101=0),0,(IF((P101=0),DEMANDA!$AB$18,(VALUE((RIGHT(P101,3)))))))","v":234.464},{"$f":"IF(OR(V101=0,DEMANDA!$AB$18<=X101),0,(DEMANDA!$AB$18-X101))","v":0},0]
[null,null,null,null,null,null,null,null,null,null,null,null,null,89,"Indústria de perfumaria, sabões e velas fabricação de sabões, detergentes e glicerinas",null,85,46,29,"89 - Indústria de perfumaria, sabões e velas fabricação de sabões, detergentes e glicerinas",85,0,0,{"$f":"IF((U102=0),0,(IF((P102=0),DEMANDA!$AB$18,(VALUE((RIGHT(P102,3)))))))","v":234.464},{"$f":"IF(OR(V102=0,DEMANDA!$AB$18<=X102),0,(DEMANDA!$AB$18-X102))","v":0},0]
[null,null,null,null,null,null,null,null,null,null,null,null,null,90,"Indústria de produtos de matérias plásticas",null,85,41,48,"90 - Indústria de produtos de matérias plásticas",85,0,0,{"$f":"IF((U103=0),0,(IF((P103=0),DEMANDA!$AB$18,(VALUE((RIGHT(P103,3)))))))","v":234.464},{"$f":"IF(OR(V103=0,DEMANDA!$AB$18<=X103),0,(DEMANDA!$AB$18-X103))","v":0},0]
[null,null,null,null,null,null,null,null,null,null,null,null,null,91,"Fabricação de artigos de material plástico para usos - exclusive embalagem e acondicionamento",null,85,41,30,"91 - Fabricação de artigos de material plástico para usos - exclusive embalagem e acondicionamento",85,0,0,{"$f":"IF((U104=0),0,(IF((P104=0),DEMANDA!$AB$18,(VALUE((RIGHT(P104,3)))))))","v":234.464},{"$f":"IF(OR(V104=0,DEMANDA!$AB$18<=X104),0,(DEMANDA!$AB$18-X104))","v":0},0]
[null,null,null,null,null,null,null,null,null,null,null,null,null,92,"Indústria têxtil",null,81,52,43,"92 - Indústria têxtil",81,0,0,{"$f":"IF((U105=0),0,(IF((P105=0),DEMANDA!$AB$18,(VALUE((RIGHT(P105,3)))))))","v":234.464},{"$f":"IF(OR(V105=0,DEMANDA!$AB$18<=X105),0,(DEMANDA!$AB$18-X105))","v":0},0]
[null,null,null,null,null,null,null,null,null,null,null,null,null,93,"Beneficiamento de fibras têxteis vegetais, artificiais e de materiais têxteis de origem animal, fabricação de estopa de materiais para estofados e recuperação de resíduos têxteis",null,60,44,36,"93 - Beneficiamento de fibras têxteis vegetais, artificiais e de materiais têxteis de origem animal, fabricação de estopa de materiais para estofados e recuperação de resíduos têxteis",60,0,0,{"$f":"IF((U106=0),0,(IF((P106=0),DEMANDA!$AB$18,(VALUE((RIGHT(P106,3)))))))","v":234.464},{"$f":"IF(OR(V106=0,DEMANDA!$AB$18<=X106),0,(DEMANDA!$AB$18-X106))","v":0},0]
[null,null,null,null,null,null,null,null,null,null,null,null,null,94,"Fiação e Tecelagem",null,91,57,46,"94 - Fiação e Tecelagem",91,0,0,{"$f":"IF((U107=0),0,(IF((P107=0),DEMANDA!$AB$18,(VALUE((RIGHT(P107,3)))))))","v":234.464},{"$f":"IF(OR(V107=0,DEMANDA!$AB$18<=X107),0,(DEMANDA!$AB$18-X107))","v":0},0]
[null,null,null,null,null,null,null,null,null,null,null,null,null,95,"Malharia e fabricação de tecidos elásticos",null,92,55,47,"95 - Malharia e fabricação de tecidos elásticos",92,0,0,{"$f":"IF((U108=0),0,(IF((P108=0),DEMANDA!$AB$18,(VALUE((RIGHT(P108,3)))))))","v":234.464},{"$f":"IF(OR(V108=0,DEMANDA!$AB$18<=X108),0,(DEMANDA!$AB$18-X108))","v":0},0]
[null,null,null,null,null,null,null,null,null,null,null,null,null,96,"Indústria de vestuário, calçados e artefatos de tecidos",null,49,43,27,"96 - Indústria de vestuário, calçados e artefatos de tecidos",49,0,0,{"$f":"IF((U109=0),0,(IF((P109=0),DEMANDA!$AB$18,(VALUE((RIGHT(P109,3)))))))","v":234.464},{"$f":"IF(OR(V109=0,DEMANDA!$AB$18<=X109),0,(DEMANDA!$AB$18-X109))","v":0},0]
[null,null,null,null,null,null,null,null,null,null,null,null,null,97,"Confecções de roupas e agasalhos",null,28,22,25,"97 - Confecções de roupas e agasalhos",28,0,0,{"$f":"IF((U110=0),0,(IF((P110=0),DEMANDA!$AB$18,(VALUE((RIGHT(P110,3)))))))","v":234.464},{"$f":"IF(OR(V110=0,DEMANDA!$AB$18<=X110),0,(DEMANDA!$AB$18-X110))","v":0},0]
[null,null,null,null,null,null,null,null,null,null,null,null,null,98,"Fabricação de calçados",null,69,63,29,"98 - Fabricação de calçados",69,0,0,{"$f":"IF((U111=0),0,(IF((P111=0),DEMANDA!$AB$18,(VALUE((RIGHT(P111,3)))))))","v":234.464},{"$f":"IF(OR(V111=0,DEMANDA!$AB$18<=X111),0,(DEMANDA!$AB$18-X111))","v":0},0]
[null,null,null,null,null,null,null,null,null,null,null,null,null,99,"Indústria de produtos alimentares",null,77,56,38,"99 - Indústria de produtos alimentares",77,0,0,{"$f":"IF((U112=0),0,(IF((P112=0),DEMANDA!$AB$18,(VALUE((RIGHT(P112,3)))))))","v":234.464},{"$f":"IF(OR(V112=0,DEMANDA!$AB$18<=X112),0,(DEMANDA!$AB$18-X112))","v":0},0]
[null,null,null,null,null,null,null,null,null,null,null,null,null,100,"Beneficiamento de café, cereais e produtos afins","≤130",97,56,20,"100 - Beneficiamento de café, cereais e produtos afins",97,60,0,{"$f":"IF((U113=0),0,(IF((P113=0),DEMANDA!$AB$18,(VALUE((RIGHT(P113,3)))))))","v":130},{"$f":"IF(OR(V113=0,DEMANDA!$AB$18<=X113),0,(DEMANDA!$AB$18-X113))","v":104.464},0]
[null,null,null,null,null,null,null,null,null,null,null,null,null,{"$f":"N113","v":100},null,">130",60,35,27,"100 - ",60,0,0,{"$f":"IF((U114=0),0,(IF((P114=0),DEMANDA!$AB$18,(VALUE((RIGHT(P114,3)))))))","v":130},{"$f":"IF(OR(V114=0,DEMANDA!$AB$18<=X114),0,(DEMANDA!$AB$18-X114))","v":0},0]
[null,null,null,null,null,null,null,null,null,null,null,null,null,101,"Moagem de trigo",null,92,72,71,"101 - Moagem de trigo",92,0,0,{"$f":"IF((U115=0),0,(IF((P115=0),DEMANDA!$AB$18,(VALUE((RIGHT(P115,3)))))))","v":234.464},{"$f":"IF(OR(V115=0,DEMANDA!$AB$18<=X115),0,(DEMANDA!$AB$18-X115))","v":0},0]
[null,null,null,null,null,null,null,null,null,null,null,null,null,102,"Torrefação e moagem de café",null,82,77,19,"102 - Torrefação e moagem de café",82,0,0,{"$f":"IF((U116=0),0,(IF((P116=0),DEMANDA!$AB$18,(VALUE((RIGHT(P116,3)))))))","v":234.464},{"$f":"IF(OR(V116=0,DEMANDA!$AB$18<=X116),0,(DEMANDA!$AB$18-X116))","v":0},0]
[null,null,null,null,null,null,null,null,null,null,null,null,null,103,"Fabricação de produtos de milho, exclusive óleos",null,55,48,12,"103 - Fabricação de produtos de milho, exclusive óleos",55,0,0,{"$f":"IF((U117=0),0,(IF((P117=0),DEMANDA!$AB$18,(VALUE((RIGHT(P117,3)))))))","v":234.464},{"$f":"IF(OR(V117=0,DEMANDA!$AB$18<=X117),0,(DEMANDA!$AB$18-X117))","v":0},0]
[null,null,null,null,null,null,null,null,null,null,null,null,null,104,"Beneficiamento, moagem, torrefação e fabricação de produtos alimentares diversos de origem vegetal, não especificados ou não classificados",null,91,53,14,"104 - Beneficiamento, moagem, torrefação e fabricação de produtos alimentares diversos de origem vegetal, não especificados ou não classificados",91,0,0,{"$f":"IF((U118=0),0,(IF((P118=0),DEMANDA!$AB$18,(VALUE((RIGHT(P118,3)))))))","v":234.464},{"$f":"IF(OR(V118=0,DEMANDA!$AB$18<=X118),0,(DEMANDA!$AB$18-X118))","v":0},0]
[null,null,null,null,null,null,null,null,null,null,null,null,null,105,"Refeições conservadas, conservas de frutas, legumes e outros vegetais, preparação de especiarias e condimentos e fabricação de doces, exclusive de confeitaria",null,54,34,28,"105 - Refeições conservadas, conservas de frutas, legumes e outros vegetais, preparação de especiarias e condimentos e fabricação de doces, exclusive de confeitaria",54,0,0,{"$f":"IF((U119=0),0,(IF((P119=0),DEMANDA!$AB$18,(VALUE((RIGHT(P119,3)))))))","v":234.464},{"$f":"IF(OR(V119=0,DEMANDA!$AB$18<=X119),0,(DEMANDA!$AB$18-X119))","v":0},0]
[null,null,null,null,null,null,null,null,null,null,null,null,null,106,"Abate de animais","≤200",85,72,52,"106 - Abate de animais",85,80,0,{"$f":"IF((U120=0),0,(IF((P120=0),DEMANDA!$AB$18,(VALUE((RIGHT(P120,3)))))))","v":200},{"$f":"IF(OR(V120=0,DEMANDA!$AB$18<=X120),0,(DEMANDA!$AB$18-X120))","v":34.463999999999999},0]
[null,null,null,null,null,null,null,null,null,null,null,null,null,{"$f":"N120","v":106},null,">200",80,53,43,"106 - ",80,0,0,{"$f":"IF((U121=0),0,(IF((P121=0),DEMANDA!$AB$18,(VALUE((RIGHT(P121,3)))))))","v":200},{"$f":"IF(OR(V121=0,DEMANDA!$AB$18<=X121),0,(DEMANDA!$AB$18-X121))","v":0},0]
[null,null,null,null,null,null,null,null,null,null,null,null,null,107,"Preparação de conservas de carne - inclusive subprodutos - processados em matadouros e frigoríficos","≤120",70,38,29,"107 - Preparação de conservas de carne - inclusive subprodutos - processados em matadouros e frigoríficos",70,62,0,{"$f":"IF((U122=0),0,(IF((P122=0),DEMANDA!$AB$18,(VALUE((RIGHT(P122,3)))))))","v":120},{"$f":"IF(OR(V122=0,DEMANDA!$AB$18<=X122),0,(DEMANDA!$AB$18-X122))","v":114.464},0]
[null,null,null,null,null,null,null,null,null,null,null,null,null,{"$f":"N122","v":107},null,">120",62,48,71,"107 - ",62,0,0,{"$f":"IF((U123=0),0,(IF((P123=0),DEMANDA!$AB$18,(VALUE((RIGHT(P123,3)))))))","v":120},{"$f":"IF(OR(V123=0,DEMANDA!$AB$18<=X123),0,(DEMANDA!$AB$18-X123))","v":0},0]
[null,null,null,null,null,null,null,null,null,null,null,null,null,108,"Preparação de conservas de carne e produtos de salsicharia, não processados em matadouros e frigoríficos",null,56,44,39,"108 - Preparação de conservas de carne e produtos de salsicharia, não processados em matadouros e frigoríficos",56,0,0,{"$f":"IF((U124=0),0,(IF((P124=0),DEMANDA!$AB$18,(VALUE((RIGHT(P124,3)))))))","v":234.464},{"$f":"IF(OR(V124=0,DEMANDA!$AB$18<=X124),0,(DEMANDA!$AB$18-X124))","v":0},0]
[null,null,null,null,null,null,null,null,null,null,null,null,null,109,"Preparação de leite e fabricação de produtos de laticínios","<80",90,82,28,"109 - Preparação de leite e fabricação de produtos de laticínios",90,97,90,{"$f":"IF((U125=0),0,(IF((DEMANDA!AB18>X126),80,DEMANDA!AB18)))","v":234.464},{"$f":"IF((X125<=80),0,(IF((DEMANDA!AB18>300),220,(DEMANDA!AB18-80))))","v":154.464},{"$f":"IF((DEMANDA!AB18>300),(DEMANDA!AB18-300),0)","v":0}]
[null,null,null,null,null,null,null,null,null,null,null,null,null,{"$f":"N125","v":109},null,">80 ≤300",97,65,38,"109 - ",97,95,0,{"$f":"IF((U126=0),0,(IF((P126=0),DEMANDA!$AB$18,(RIGHT(P126,3)))))","v":"300"},{"$f":"IF(OR(V126=0,DEMANDA!$AB$18<=X126),0,(DEMANDA!$AB$18-X126))","v":0},0]
[null,null,null,null,null,null,null,null,null,null,null,null,null,{"$f":"N126","v":109},null,">300",95,57,64,"109 - ",95,0,0,{"$f":"IF((U127=0),0,(IF((P127=0),DEMANDA!$AB$18,(RIGHT(P127,3)))))","v":"300"},{"$f":"IF(OR(V127=0,DEMANDA!$AB$18<=X127),0,(DEMANDA!$AB$18-X127))","v":0},0]
[null,null,null,null,null,null,null,null,null,null,null,null,null,110,"Fabricação de açúcar",null,54,30,49,"110 - Fabricação de açúcar",54,0,0,{"$f":"IF((U128=0),0,(IF((P128=0),DEMANDA!$AB$18,(VALUE((RIGHT(P128,3)))))))","v":234.464},{"$f":"IF(OR(V128=0,DEMANDA!$AB$18<=X128),0,(DEMANDA!$AB$18-X128))","v":0},0]
[null,null,null,null,null,null,null,null,null,null,null,null,null,111,"Fabricação de balas, caramelos, pastilhas, drops, bombons, chocolates, etc. - inclusive goma de mascar",null,96,78,30,"111 - Fabricação de balas, caramelos, pastilhas, drops, bombons, chocolates, etc. - inclusive goma de mascar",96,0,0,{"$f":"IF((U129=0),0,(IF((P129=0),DEMANDA!$AB$18,(VALUE((RIGHT(P129,3)))))))","v":234.464},{"$f":"IF(OR(V129=0,DEMANDA!$AB$18<=X129),0,(DEMANDA!$AB$18-X129))","v":0},0]
[null,null,null,null,null,null,null,null,null,null,null,null,null,112,"Serviços de reparação, manutenção e conservação",null,52,34,32,"112 - Serviços de reparação, manutenção e conservação",52,0,0,{"$f":"IF((U130=0),0,(IF((P130=0),DEMANDA!$AB$18,(VALUE((RIGHT(P130,3)))))))","v":234.464},{"$f":"IF(OR(V130=0,DEMANDA!$AB$18<=X130),0,(DEMANDA!$AB$18-X130))","v":0},0]
[null,null,null,null,null,null,null,null,null,null,null,null,null,113,"Reparação, manutenção e conservação de máquinas e de uso doméstico - exclusive máquinas de costura",null,36,27,40,"113 - Reparação, manutenção e conservação de máquinas e de uso doméstico - exclusive máquinas de costura",36,0,0,{"$f":"IF((U131=0),0,(IF((P131=0),DEMANDA!$AB$18,(VALUE((RIGHT(P131,3)))))))","v":234.464},{"$f":"IF(OR(V131=0,DEMANDA!$AB$18<=X131),0,(DEMANDA!$AB$18-X131))","v":0},0]
[null,null,null,null,null,null,null,null,null,null,null,null,null,114,"Reparação de veículos - exclusive embarcações, aeronaves e veículos ferroviários",null,63,42,36,"114 - Reparação de veículos - exclusive embarcações, aeronaves e veículos ferroviários",63,0,0,{"$f":"IF((U132=0),0,(IF((P132=0),DEMANDA!$AB$18,(VALUE((RIGHT(P132,3)))))))","v":234.464},{"$f":"IF(OR(V132=0,DEMANDA!$AB$18<=X132),0,(DEMANDA!$AB$18-X132))","v":0},0]
[null,null,null,null,null,null,null,null,null,null,null,null,null,115,"Manutenção e conservação de veículos em geral",null,47,33,32,{"$f":"CONCATENATE(N133,\" - \",O133)","v":"115 - Manutenção e conservação de veículos em geral"},47,0,0,{"$f":"IF((U133=0),0,(IF((P133=0),DEMANDA!$AB$18,(VALUE((RIGHT(P133,3)))))))","v":234.464},{"$f":"IF(OR(V133=0,DEMANDA!$AB$18<=X133),0,(DEMANDA!$AB$18-X133))","v":0},0]
[null,null,null,null,null,null,null,null,null,null,null,null,null,116,"Serviços pessoais",null,62,43,32,"116 - Serviços pessoais",{"$f":"Q134","v":62},{"$f":"IF((N135=N134),Q135,0)","v":0},{"$f":"IF((N134=N136),Q134,0)","v":0},{"$f":"IF((U134=0),0,(IF((P134=0),DEMANDA!$AB$18,(VALUE((RIGHT(P134,3)))))))","v":234.464},{"$f":"IF(OR(V134=0,DEMANDA!$AB$18<=X134),0,(DEMANDA!$AB$18-X134))","v":0},0]
[null,null,null,null,null,null,null,null,null,null,null,null,null,117,"Serviços de higiene - barbearias, saunas, lavanderias, etc.",null,58,46,36,"117 - Serviços de higiene - barbearias, saunas, lavanderias, etc.",58,0,0,{"$f":"IF((U135=0),0,(IF((P135=0),DEMANDA!$AB$18,(VALUE((RIGHT(P135,3)))))))","v":234.464},{"$f":"IF(OR(V135=0,DEMANDA!$AB$18<=X135),0,(DEMANDA!$AB$18-X135))","v":0},0]
[null,null,null,null,null,null,null,null,null,null,null,null,null,118,"Hospitais e casas de saúde","≤110",81,61,40,"118 - Hospitais e casas de saúde",81,60,0,{"$f":"IF((U136=0),0,(IF((P136=0),DEMANDA!$AB$18,(VALUE((RIGHT(P136,3)))))))","v":110},{"$f":"IF(OR(V136=0,DEMANDA!$AB$18<=X136),0,(DEMANDA!$AB$18-X136))","v":124.464},0]
[null,null,null,null,null,null,null,null,null,null,null,null,null,{"$f":"N136","v":118},null,">110",60,32,35,"118 - ",60,0,0,{"$f":"IF((U137=0),0,(IF((P137=0),DEMANDA!$AB$18,(VALUE((RIGHT(P137,3)))))))","v":110},{"$f":"IF(OR(V137=0,DEMANDA!$AB$18<=X137),0,(DEMANDA!$AB$18-X137))","v":0},0]
[null,null,null,null,null,null,null,null,null,null,null,null,null,119,"Estabelecimentos de ensino tradicional (1º e 2° graus)",null,63,58,31,"119 - Estabelecimentos de ensino tradicional (1º e 2° graus)",63,0,0,{"$f":"IF((U138=0),0,(IF((P138=0),DEMANDA!$AB$18,(VALUE((RIGHT(P138,3)))))))","v":234.464},{"$f":"IF(OR(V138=0,DEMANDA!$AB$18<=X138),0,(DEMANDA!$AB$18-X138))","v":0},0]
[null,null,null,null,null,null,null,null,null,null,null,null,null,120,"Estabelecimentos de ensino superior - Faculdade",null,42,26,24,"120 - Estabelecimentos de ensino superior - Faculdade",42,0,0,{"$f":"IF((U139=0),0,(IF((P139=0),DEMANDA!$AB$18,(VALUE((RIGHT(P139,3)))))))","v":234.464},{"$f":"IF(OR(V139=0,DEMANDA!$AB$18<=X139),0,(DEMANDA!$AB$18-X139))","v":0},0]
[null,null,null,null,null,null,null,null,null,null,null,null,null,121,"Estabelecimentos de ensino integrado - unidades integradas",null,65,34,25,"121 - Estabelecimentos de ensino integrado - unidades integradas",65,0,0,{"$f":"IF((U140=0),0,(IF((P140=0),DEMANDA!$AB$18,(VALUE((RIGHT(P140,3)))))))","v":234.464},{"$f":"IF(OR(V140=0,DEMANDA!$AB$18<=X140),0,(DEMANDA!$AB$18-X140))","v":0},0]
[null,null,null,null,null,null,null,null,null,null,null,null,null,122,"Serviços comerciais",null,59,41,33,"122 - Serviços comerciais",59,0,0,{"$f":"IF((U141=0),0,(IF((P141=0),DEMANDA!$AB$18,(VALUE((RIGHT(P141,3)))))))","v":234.464},{"$f":"IF(OR(V141=0,DEMANDA!$AB$18<=X141),0,(DEMANDA!$AB$18-X141))","v":0},0]
[null,null,null,null,null,null,null,null,null,null,null,null,null,123,"Serviços auxiliares do comércio de mercadorias, inclusive de distribuição",null,36,23,24,"123 - Serviços auxiliares do comércio de mercadorias, inclusive de distribuição",36,0,0,{"$f":"IF((U142=0),0,(IF((P142=0),DEMANDA!$AB$18,(VALUE((RIGHT(P142,3)))))))","v":234.464},{"$f":"IF(OR(V142=0,DEMANDA!$AB$18<=X142),0,(DEMANDA!$AB$18-X142))","v":0},0]
[null,null,null,null,null,null,null,null,null,null,null,null,null,124,"Armazéns gerais e trapiches",null,48,26,14,"124 - Armazéns gerais e trapiches",48,0,0,{"$f":"IF((U143=0),0,(IF((P143=0),DEMANDA!$AB$18,(VALUE((RIGHT(P143,3)))))))","v":234.464},{"$f":"IF(OR(V143=0,DEMANDA!$AB$18<=X143),0,(DEMANDA!$AB$18-X143))","v":0},0]
[null,null,null,null,null,null,null,null,null,null,null,null,null,125,"Serviço de processamento de dados",null,78,56,50,"125 - Serviço de processamento de dados",78,0,0,{"$f":"IF((U144=0),0,(IF((P144=0),DEMANDA!$AB$18,(VALUE((RIGHT(P144,3)))))))","v":234.464},{"$f":"IF(OR(V144=0,DEMANDA!$AB$18<=X144),0,(DEMANDA!$AB$18-X144))","v":0},0]
[null,null,null,null,null,null,null,null,null,null,null,null,null,126,"Serviços de contabilidade e despachante",null,74,59,43,"126 - Serviços de contabilidade e despachante",74,0,0,{"$f":"IF((U145=0),0,(IF((P145=0),DEMANDA!$AB$18,(VALUE((RIGHT(P145,3)))))))","v":234.464},{"$f":"IF(OR(V145=0,DEMANDA!$AB$18<=X145),0,(DEMANDA!$AB$18-X145))","v":0},0]
[null,null,null,null,null,null,null,null,null,null,null,null,null,127,"Serviços de diversões",null,26,13,20,"127 - Serviços de diversões",26,0,0,{"$f":"IF((U146=0),0,(IF((P146=0),DEMANDA!$AB$18,(VALUE((RIGHT(P146,3)))))))","v":234.464},{"$f":"IF(OR(V146=0,DEMANDA!$AB$18<=X146),0,(DEMANDA!$AB$18-X146))","v":0},0]
[null,null,null,null,null,null,null,null,null,null,null,null,null,128,"Entidades financeiras",null,92,64,31,"128 - Entidades financeiras",92,0,0,{"$f":"IF((U147=0),0,(IF((P147=0),DEMANDA!$AB$18,(VALUE((RIGHT(P147,3)))))))","v":234.464},{"$f":"IF(OR(V147=0,DEMANDA!$AB$18<=X147),0,(DEMANDA!$AB$18-X147))","v":0},0]
[null,null,null,null,null,null,null,null,null,null,null,null,null,129,"Bancos comerciais e caixas econômicas",null,92,64,31,"129 - Bancos comerciais e caixas econômicas",92,0,0,{"$f":"IF((U148=0),0,(IF((P148=0),DEMANDA!$AB$18,(VALUE((RIGHT(P148,3)))))))","v":234.464},{"$f":"IF(OR(V148=0,DEMANDA!$AB$18<=X148),0,(DEMANDA!$AB$18-X148))","v":0},0]
[null,null,null,null,null,null,null,null,null,null,null,null,null,130,"Comércio atacadista",null,44,37,32,"130 - Comércio atacadista",44,0,0,{"$f":"IF((U149=0),0,(IF((P149=0),DEMANDA!$AB$18,(VALUE((RIGHT(P149,3)))))))","v":234.464},{"$f":"IF(OR(V149=0,DEMANDA!$AB$18<=X149),0,(DEMANDA!$AB$18-X149))","v":0},0]
[null,null,null,null,null,null,null,null,null,null,null,null,null,131,"Comércio atacadista de ferragens e produtos metalúrgicos",null,46,25,17,"131 - Comércio atacadista de ferragens e produtos metalúrgicos",46,0,0,{"$f":"IF((U150=0),0,(IF((P150=0),DEMANDA!$AB$18,(VALUE((RIGHT(P150,3)))))))","v":234.464},{"$f":"IF(OR(V150=0,DEMANDA!$AB$18<=X150),0,(DEMANDA!$AB$18-X150))","v":0},0]
[null,null,null,null,null,null,null,null,null,null,null,null,null,132,"Comércio atacadista de combustíveis e lubrificantes (terminal)",null,44,35,29,"132 - Comércio atacadista de combustíveis e lubrificantes (terminal)",44,0,0,{"$f":"IF((U151=0),0,(IF((P151=0),DEMANDA!$AB$18,(VALUE((RIGHT(P151,3)))))))","v":234.464},{"$f":"IF(OR(V151=0,DEMANDA!$AB$18<=X151),0,(DEMANDA!$AB$18-X151))","v":0},0]
[null,null,null,null,null,null,null,null,null,null,null,null,null,133,"Comércio atacadista de cereais e farinhas",null,27,13,23,"133 - Comércio atacadista de cereais e farinhas",27,0,0,{"$f":"IF((U152=0),0,(IF((P152=0),DEMANDA!$AB$18,(VALUE((RIGHT(P152,3)))))))","v":234.464},{"$f":"IF(OR(V152=0,DEMANDA!$AB$18<=X152),0,(DEMANDA!$AB$18-X152))","v":0},0]
[null,null,null,null,null,null,null,null,null,null,null,null,null,134,"Comércio atacadista de produtos alimentícios diversos",null,46,34,32,"134 - Comércio atacadista de produtos alimentícios diversos",46,0,0,{"$f":"IF((U153=0),0,(IF((P153=0),DEMANDA!$AB$18,(VALUE((RIGHT(P153,3)))))))","v":234.464},{"$f":"IF(OR(V153=0,DEMANDA!$AB$18<=X153),0,(DEMANDA!$AB$18-X153))","v":0},0]
[null,null,null,null,null,null,null,null,null,null,null,null,null,135,"Comércio atacadista de mercadorias em geral com produtos alimentícios",null,96,65,56,"135 - Comércio atacadista de mercadorias em geral com produtos alimentícios",96,0,0,{"$f":"IF((U154=0),0,(IF((P154=0),DEMANDA!$AB$18,(VALUE((RIGHT(P154,3)))))))","v":234.464},{"$f":"IF(OR(V154=0,DEMANDA!$AB$18<=X154),0,(DEMANDA!$AB$18-X154))","v":0},0]
[null,null,null,null,null,null,null,null,null,null,null,null,null,136,"Comércio varejista",null,75,52,38,"136 - Comércio varejista",75,0,0,{"$f":"IF((U155=0),0,(IF((P155=0),DEMANDA!$AB$18,(VALUE((RIGHT(P155,3)))))))","v":234.464},{"$f":"IF(OR(V155=0,DEMANDA!$AB$18<=X155),0,(DEMANDA!$AB$18-X155))","v":0},0]
[null,null,null,null,null,null,null,null,null,null,null,null,null,137,"Comércio varejista de veículos",null,60,36,25,"137 - Comércio varejista de veículos",60,0,0,{"$f":"IF((U156=0),0,(IF((P156=0),DEMANDA!$AB$18,(VALUE((RIGHT(P156,3)))))))","v":234.464},{"$f":"IF(OR(V156=0,DEMANDA!$AB$18<=X156),0,(DEMANDA!$AB$18-X156))","v":0},0]
[null,null,null,null,null,null,null,null,null,null,null,null,null,138,"Comércio varejista de veículos e acessórios",null,91,69,23,"138 - Comércio varejista de veículos e acessórios",91,0,0,{"$f":"IF((U157=0),0,(IF((P157=0),DEMANDA!$AB$18,(VALUE((RIGHT(P157,3)))))))","v":234.464},{"$f":"IF(OR(V157=0,DEMANDA!$AB$18<=X157),0,(DEMANDA!$AB$18-X157))","v":0},0]
[null,null,null,null,null,null,null,null,null,null,null,null,null,139,"Comércio varejista de móveis, artigos de habitação e de utilidade doméstica",null,40,37,47,"139 - Comércio varejista de móveis, artigos de habitação e de utilidade doméstica",40,0,0,{"$f":"IF((U158=0),0,(IF((P158=0),DEMANDA!$AB$18,(VALUE((RIGHT(P158,3)))))))","v":234.464},{"$f":"IF(OR(V158=0,DEMANDA!$AB$18<=X158),0,(DEMANDA!$AB$18-X158))","v":0},0]
[null,null,null,null,null,null,null,null,null,null,null,null,null,140,"Comércio varejista de combustíveis e lubrificantes, exclusive gás liquefeito de petróleo",null,89,42,40,"140 - Comércio varejista de combustíveis e lubrificantes, exclusive gás liquefeito de petróleo",89,0,0,{"$f":"IF((U159=0),0,(IF((P159=0),DEMANDA!$AB$18,(VALUE((RIGHT(P159,3)))))))","v":234.464},{"$f":"IF(OR(V159=0,DEMANDA!$AB$18<=X159),0,(DEMANDA!$AB$18-X159))","v":0},0]
[null,null,null,null,null,null,null,null,null,null,null,null,null,141,"Supermercados",null,98,77,54,"141 - Supermercados",98,0,0,{"$f":"IF((U160=0),0,(IF((P160=0),DEMANDA!$AB$18,(VALUE((RIGHT(P160,3)))))))","v":234.464},{"$f":"IF(OR(V160=0,DEMANDA!$AB$18<=X160),0,(DEMANDA!$AB$18-X160))","v":0},0]
[null,null,null,null,null,null,null,null,null,null,null,null,null,142,"Cooperativas",null,87,75,41,"142 - Cooperativas",87,0,0,{"$f":"IF((U161=0),0,(IF((P161=0),DEMANDA!$AB$18,(VALUE((RIGHT(P161,3)))))))","v":234.464},{"$f":"IF(OR(V161=0,DEMANDA!$AB$18<=X161),0,(DEMANDA!$AB$18-X161))","v":0},0]
[null,null,null,null,null,null,null,null,null,null,null,null,null,143,"Cooperativas de beneficiamento, industrialização e comercialização",null,98,82,27,"143 - Cooperativas de beneficiamento, industrialização e comercialização",98,0,0,{"$f":"IF((U162=0),0,(IF((P162=0),DEMANDA!$AB$18,(VALUE((RIGHT(P162,3)))))))","v":234.464},{"$f":"IF(OR(V162=0,DEMANDA!$AB$18<=X162),0,(DEMANDA!$AB$18-X162))","v":0},0]
[null,null,null,null,null,null,null,null,null,null,null,null,null,144,"Cooperativas de consumo de bens e serviços",null,77,69,54,"144 - Cooperativas de consumo de bens e serviços",77,0,0,{"$f":"IF((U163=0),0,(IF((P163=0),DEMANDA!$AB$18,(VALUE((RIGHT(P163,3)))))))","v":234.464},{"$f":"IF(OR(V163=0,DEMANDA!$AB$18<=X163),0,(DEMANDA!$AB$18-X163))","v":0},0]
[null,null,null,null,null,null,null,null,null,null,null,null,null,145,"Fundações, entidades e associações de fins não lucrativos",null,40,27,20,"145 - Fundações, entidades e associações de fins não lucrativos",40,0,0,{"$f":"IF((U164=0),0,(IF((P164=0),DEMANDA!$AB$18,(VALUE((RIGHT(P164,3)))))))","v":234.464},{"$f":"IF(OR(V164=0,DEMANDA!$AB$18<=X164),0,(DEMANDA!$AB$18-X164))","v":0},0]
[null,null,null,null,null,null,null,null,null,null,null,null,null,146,"Fundações beneficentes, religiosas e assistenciais",null,33,20,26,"146 - Fundações beneficentes, religiosas e assistenciais",33,0,0,{"$f":"IF((U165=0),0,(IF((P165=0),DEMANDA!$AB$18,(VALUE((RIGHT(P165,3)))))))","v":234.464},{"$f":"IF(OR(V165=0,DEMANDA!$AB$18<=X165),0,(DEMANDA!$AB$18-X165))","v":0},0]
[null,null,null,null,null,null,null,null,null,null,null,null,null,147,"Fundações culturais, científicas e educacionais",null,22,17,18,"147 - Fundações culturais, científicas e educacionais",22,0,0,{"$f":"IF((U166=0),0,(IF((P166=0),DEMANDA!$AB$18,(VALUE((RIGHT(P166,3)))))))","v":234.464},{"$f":"IF(OR(V166=0,DEMANDA!$AB$18<=X166),0,(DEMANDA!$AB$18-X166))","v":0},0]
[null,null,null,null,null,null,null,null,null,null,null,null,null,148,"Associações beneficentes, religiosas e assistenciais",null,65,41,33,"148 - Associações beneficentes, religiosas e assistenciais",65,0,0,{"$f":"IF((U167=0),0,(IF((P167=0),DEMANDA!$AB$18,(VALUE((RIGHT(P167,3)))))))","v":234.464},{"$f":"IF(OR(V167=0,DEMANDA!$AB$18<=X167),0,(DEMANDA!$AB$18-X167))","v":0},0]
[null,null,null,null,null,null,null,null,null,null,null,null,null,149,"Associações esportivas e recreativas",null,40,29,3,"149 - Associações esportivas e recreativas",40,0,0,{"$f":"IF((U168=0),0,(IF((P168=0),DEMANDA!$AB$18,(VALUE((RIGHT(P168,3)))))))","v":234.464},{"$f":"IF(OR(V168=0,DEMANDA!$AB$18<=X168),0,(DEMANDA!$AB$18-X168))","v":0},0]
[null,null,null,null,null,null,null,null,null,null,null,null,null,150,"Administração pública direta ou Autárquica",null,81,45,43,"150 - Administração pública direta ou Autárquica",81,0,0,{"$f":"IF((U169=0),0,(IF((P169=0),DEMANDA!$AB$18,(VALUE((RIGHT(P169,3)))))))","v":234.464},{"$f":"IF(OR(V169=0,DEMANDA!$AB$18<=X169),0,(DEMANDA!$AB$18-X169))","v":0},0]

{"sheet":"CAMPOS","index":4,"n_rows":260,"n_cols":7,"rows_kept":260,"cut":false,"hidden":true,"merged":[[0,0,0,2],[0,4,0,6]]}
["DADOS",null,null,null,"DEMANDA"]
["CAMPO","DADOS","FORMULA",null,"CAMPO","DADOS","FORMULA"]
[{"$f":"DADOS!C7","v":"TIPO DE PROJETO:"},{"$f":"DADOS!F7","v":"Subestação Aérea "},"NÃO",null,{"$f":"DEMANDA!B5","v":"PROPRIETÁRIO:"},{"$f":"DEMANDA!C5","v":"Proprietário Exemplo"},"SIM"]
[{"$f":"DADOS!M7","v":"PREVISÃO DE ATENDIMENTO:"},{"$f":"DADOS!R7","v":"Junho"},"NÃO",null,{"$f":"DEMANDA!B6","v":"EDIFICAÇÃO:"},{"$f":"DEMANDA!C6","v":"Hotel Exemplo"},"SIM"]
[{"$f":"A4","v":"PREVISÃO DE ATENDIMENTO:"},{"$f":"DADOS!U7","v":2017},"NÃO",null,{"$f":"DEMANDA!B7","v":"ENDEREÇO:"},{"$f":"DEMANDA!C7","v":"Rua do Hotel Exemplo"},"SIM"]
[{"$f":"DADOS!C8","v":"FINALIDADE:"},{"$f":"DADOS!F8","v":"Atender a um Hotel com entrada em tensão primária."},"NÃO",null,{"$f":"DEMANDA!B8","v":"CARGA"},{"$f":"DEMANDA!B9","v":"Iluminação"},"NÃO"]
[{"$f":"DADOS!C12","v":"DADOS DO PROPRIETÁRIO"},{"$f":"DADOS!G12","v":""},"SIM",null,{"$f":"E6","v":"CARGA"},{"$f":"DEMANDA!B10","v":"Tomadas"},"NÃO"]
[{"$f":"DADOS!C14","v":"NOME:"},{"$f":"DADOS!F14","v":"Proprietário Exemplo"},"NÃO",null,{"$f":"E7","v":"CARGA"},{"$f":"DEMANDA!B11","v":"Chuv. Eletrico"},"NÃO"]
[{"$f":"DADOS!C15","v":"PESSOA:"},{"$f":"DADOS!F15","v":"Empresa Privada"},"NÃO",null,"CARGA",{"$f":"DEMANDA!B12","v":"Central de Ar"},"NÃO"]
[{"$f":"DADOS!J15","v":"CNPJ:"},{"$f":"DADOS!L15","v":"25.086.034/0001-71 "},"NÃO",null,"CARGA",{"$f":"DEMANDA!B13","v":"Exautores"},"NÃO"]
[{"$f":"DADOS!P15","v":"INSC.ESTADUAL:"},{"$f":"DADOS!S15","v":123456},"NÃO",null,"CARGA",{"$f":"DEMANDA!B14","v":"Bomba "},"NÃO"]
[{"$f":"DADOS!C16","v":"ENDEREÇO:"},{"$f":"DADOS!F16","v":"Rua Endereço do Proprietario"},"NÃO",null,"CARGA",{"$f":"DEMANDA!B15","v":"Elevador"},"NÃO"]
[{"$f":"DADOS!P16","v":"Nº:"},{"$f":"DADOS!Q16","v":111},"NÃO",null,"CARGA",{"$f":"DEMANDA!B16","v":0},"NÃO"]
[{"$f":"DADOS!S16","v":"COMP.:"},{"$f":"DADOS!U16","v":0},"NÃO",null,"CARGA",{"$f":"DEMANDA!B17","v":0},"NÃO"]
[{"$f":"DADOS!C17","v":"BAIRRO:"},{"$f":"DADOS!F17","v":"Manaira"},"NÃO",null,"CARGA",{"$f":"DEMANDA!B18","v":0},"NÃO"]
[{"$f":"DADOS!L17","v":"CIDADE:"},{"$f":"DADOS!N17","v":"João Pessoa"},"NÃO",null,"CARGA",{"$f":"DEMANDA!B19","v":0},"NÃO"]
[{"$f":"DADOS!U17","v":"UF:"},{"$f":"DADOS!V17","v":"PB"},"NÃO",null,"CARGA",{"$f":"DEMANDA!B20","v":0},"NÃO"]
[{"$f":"DADOS!C18","v":"EMAIL:"},{"$f":"DADOS!F18","v":"email@proprietario.com.br"},"NÃO",null,"CARGA",{"$f":"DEMANDA!B21","v":0},"NÃO"]
[{"$f":"A18","v":"EMAIL:"},{"$f":"DADOS!F19","v":0},"NÃO",null,"CARGA",{"$f":"DEMANDA!B22","v":0},"NÃO"]
[{"$f":"DADOS!C20","v":"TELEFONE-01:"},{"$f":"DADOS!F20","v":"(83) 12345-6789"},"NÃO",null,"CARGA",{"$f":"DEMANDA!B23","v":0},"NÃO"]
[{"$f":"DADOS!K20","v":"02:"},{"$f":"DADOS!L20","v":0},"NÃO",null,"CARGA",{"$f":"DEMANDA!B24","v":0},"NÃO"]
[{"$f":"DADOS!Q20","v":"03:"},{"$f":"DADOS!R20","v":0},"NÃO",null,"CARGA",{"$f":"DEMANDA!B25","v":0},"NÃO"]
[{"$f":"DADOS!C21","v":" DADOS DA OBRA"},{"$f":"DADOS!G21","v":""},"SIM",null,"CARGA",{"$f":"DEMANDA!B26","v":0},"NÃO"]
[{"$f":"DADOS!C23","v":"EDIFICAÇÃO:"},{"$f":"DADOS!F23","v":"Hotel Exemplo"},"NÃO",null,"CARGA",{"$f":"DEMANDA!B27","v":0},"NÃO"]
[{"$f":"DADOS!C24","v":"ENDEREÇO:"},{"$f":"DADOS!F24","v":"Rua do Hotel Exemplo"},"NÃO",null,"CARGA",{"$f":"DEMANDA!B28","v":0},"NÃO"]
[{"$f":"DADOS!P24","v":"N°:"},{"$f":"DADOS!Q24","v":222},"NÃO",null,"CARGA",{"$f":"DEMANDA!B29","v":0},"NÃO"]
[{"$f":"DADOS!S24","v":"COMP.:"},{"$f":"DADOS!U24","v":0},"NÃO",null,"CARGA",{"$f":"DEMANDA!B30","v":0},"NÃO"]
[{"$f":"DADOS!C25","v":"BAIRRO:"},{"$f":"DADOS!F25","v":"Tambaú"},"NÃO",null,"CARGA",{"$f":"DEMANDA!B31","v":0},"NÃO"]
[{"$f":"DADOS!L25","v":"CIDADE:"},{"$f":"DADOS!N25","v":"João Pessoa"},"NÃO",null,"CARGA",{"$f":"DEMANDA!B32","v":0},"NÃO"]
[{"$f":"DADOS!S25","v":"ZONA:"},{"$f":"DADOS!U25","v":"Urbana"},"NÃO",null,"CARGA",{"$f":"DEMANDA!B33","v":0},"NÃO"]
[{"$f":"DADOS!C26","v":"MEDIÇÕES EXISTENTES: "},{"$f":"DADOS!G26","v":""},"SIM",null,{"$f":"DEMANDA!C8","v":"TIPO DE CARGA"},{"$f":"DEMANDA!C9","v":"Ilum./Tomadas "},"NÃO"]
[{"$f":"DADOS!H28","v":"EXISTE ALGUMA MEDIÇÃO NO LOCAL A SER ATENDIDO?"},{"$f":"DADOS!Q28","v":"SIM"},"SIM",null,{"$f":"E31","v":"TIPO DE CARGA"},{"$f":"DEMANDA!C10","v":"Ilum./Tomadas "},"NÃO"]
[{"$f":"DADOS!S28","v":"QUANTAS?"},{"$f":"DADOS!U28","v":1},"SIM",null,{"$f":"E32","v":"TIPO DE CARGA"},{"$f":"DEMANDA!C11","v":"Aquecimento"},"NÃO"]
[{"$f":"DADOS!C30","v":"Nº UC:"},{"$f":"DADOS!E30","v":1234566},"NÃO",null,"TIPO DE CARGA",{"$f":"DEMANDA!C12","v":"Refrigeração"},"NÃO"]
[{"$f":"DADOS!C31","v":0},{"$f":"DADOS!E31","v":0},"NÃO",null,"TIPO DE CARGA",{"$f":"DEMANDA!C13","v":"Motriz Monofásica "},"NÃO"]
[{"$f":"DADOS!C32","v":0},{"$f":"DADOS!E32","v":0},"NÃO",null,"TIPO DE CARGA",{"$f":"DEMANDA!C14","v":"Motriz Trifásica"},"NÃO"]
[{"$f":"DADOS!C33","v":0},{"$f":"DADOS!E33","v":0},"NÃO",null,"TIPO DE CARGA",{"$f":"DEMANDA!C15","v":"Motriz Trifásica"},"NÃO"]
[{"$f":"DADOS!C34","v":0},{"$f":"DADOS!E34","v":0},"NÃO",null,"TIPO DE CARGA",{"$f":"DEMANDA!C16","v":0},"NÃO"]
[{"$f":"DADOS!H30","v":0},{"$f":"DADOS!J30","v":0},"NÃO",null,"TIPO DE CARGA",{"$f":"DEMANDA!C17","v":0},"NÃO"]
[{"$f":"DADOS!H31","v":0},{"$f":"DADOS!J31","v":0},"NÃO",null,"TIPO DE CARGA",{"$f":"DEMANDA!C18","v":0},"NÃO"]
[{"$f":"DADOS!H32","v":0},{"$f":"DADOS!J32","v":0},"NÃO",null,"TIPO DE CARGA",{"$f":"DEMANDA!C19","v":0},"NÃO"]
[{"$f":"DADOS!H33","v":0},{"$f":"DADOS!J33","v":0},"NÃO",null,"TIPO DE CARGA",{"$f":"DEMANDA!C20","v":0},"NÃO"]
[{"$f":"DADOS!H34","v":0},{"$f":"DADOS!J34","v":0},"NÃO",null,"TIPO DE CARGA",{"$f":"DEMANDA!C21","v":0},"NÃO"]
[{"$f":"DADOS!M30","v":0},{"$f":"DADOS!O30","v":0},"NÃO",null,"TIPO DE CARGA",{"$f":"DEMANDA!C22","v":0},"NÃO"]
[{"$f":"DADOS!M31","v":0},{"$f":"DADOS!O31","v":0},"NÃO",null,"TIPO DE CARGA",{"$f":"DEMANDA!C23","v":0},"NÃO"]
[{"$f":"DADOS!M32","v":0},{"$f":"DADOS!O32","v":0},"NÃO",null,"TIPO DE CARGA",{"$f":"DEMANDA!C24","v":0},"NÃO"]
[{"$f":"DADOS!M33","v":0},{"$f":"DADOS!O33","v":0},"NÃO",null,"TIPO DE CARGA",{"$f":"DEMANDA!C25","v":0},"NÃO"]
[{"$f":"DADOS!M34","v":0},{"$f":"DADOS!O34","v":0},"NÃO",null,"TIPO DE CARGA",{"$f":"DEMANDA!C26","v":0},"NÃO"]
[{"$f":"DADOS!R30","v":0},{"$f":"DADOS!T30","v":0},"NÃO",null,"TIPO DE CARGA",{"$f":"DEMANDA!C27","v":0},"NÃO"]
[{"$f":"DADOS!R31","v":0},{"$f":"DADOS!T31","v":0},"NÃO",null,"TIPO DE CARGA",{"$f":"DEMANDA!C28","v":0},"NÃO"]
[{"$f":"DADOS!R32","v":0},{"$f":"DADOS!T32","v":0},"NÃO",null,"TIPO DE CARGA",{"$f":"DEMANDA!C29","v":0},"NÃO"]
[{"$f":"DADOS!R33","v":0},{"$f":"DADOS!T33","v":0},"NÃO",null,"TIPO DE CARGA",{"$f":"DEMANDA!C30","v":0},"NÃO"]
[{"$f":"DADOS!R34","v":0},{"$f":"DADOS!T34","v":0},"NÃO",null,"TIPO DE CARGA",{"$f":"DEMANDA!C31","v":0},"NÃO"]
[{"$f":"DADOS!C35","v":"OBSERVAÇÃO:"},{"$f":"DADOS!C36","v":"Existe uma medição do canteiro de obras em baixa tensão tarifada no grupo B que deverá ser desativada quando da energização do hotel que será atendido em média tensão tarifado no Grupo A"},"NÃO",null,"TIPO DE CARGA",{"$f":"DEMANDA!C32","v":0},"NÃO"]
[{"$f":"DADOS!C41","v":"DADOS DO RESP. TÉCNICO"},{"$f":"DADOS!G41","v":""},"SIM",null,"TIPO DE CARGA",{"$f":"DEMANDA!C33","v":0},"NÃO"]
[{"$f":"DADOS!C43","v":"NOME:"},{"$f":"DADOS!F43","v":"Projetista Modelo"},"NÃO",null,{"$f":"DEMANDA!D8","v":"QTD"},{"$f":"DEMANDA!D9","v":100},"NÃO"]
[{"$f":"DADOS!C44","v":"REG. PROFISSIONAL:"},{"$f":"DADOS!F44","v":4551626},"NÃO",null,{"$f":"E56","v":"QTD"},{"$f":"DEMANDA!D10","v":60},"NÃO"]
[{"$f":"DADOS!J44","v":"ORGÃO:"},{"$f":"DADOS!L44","v":"CREA"},"NÃO",null,{"$f":"E57","v":"QTD"},{"$f":"DEMANDA!D11","v":8},"NÃO"]
[{"$f":"DADOS!P44","v":"CPF:"},{"$f":"DADOS!S44","v":"123.4565.789-11"},"NÃO",null,"QTD",{"$f":"DEMANDA!D12","v":2},"NÃO"]
[{"$f":"DADOS!C45","v":"EMAIL:"},{"$f":"DADOS!F45","v":"email@projetista.com.br"},"NÃO",null,"QTD",{"$f":"DEMANDA!D13","v":12},"NÃO"]
[{"$f":"A60","v":"EMAIL:"},{"$f":"DADOS!F46","v":0},"NÃO",null,"QTD",{"$f":"DEMANDA!D14","v":4},"NÃO"]
[{"$f":"DADOS!C47","v":"TELEFONE-01:"},{"$f":"DADOS!F47","v":"(83) 98765-4321"},"NÃO",null,"QTD",{"$f":"DEMANDA!D15","v":3},"NÃO"]
[{"$f":"DADOS!K47","v":"02:"},{"$f":"DADOS!L47","v":0},"NÃO",null,"QTD",{"$f":"DEMANDA!D16","v":0},"NÃO"]
[{"$f":"DADOS!Q47","v":"03:"},{"$f":"DADOS!R47","v":0},"NÃO",null,"QTD",{"$f":"DEMANDA!D17","v":0},"NÃO"]
[null,null,null,null,"QTD",{"$f":"DEMANDA!D18","v":0},"NÃO"]
[null,null,null,null,"QTD",{"$f":"DEMANDA!D19","v":0},"NÃO"]
[null,null,null,null,"QTD",{"$f":"DEMANDA!D20","v":0},"NÃO"]
[null,null,null,null,"QTD",{"$f":"DEMANDA!D21","v":0},"NÃO"]
[null,null,null,null,"QTD",{"$f":"DEMANDA!D22","v":0},"NÃO"]
[null,null,null,null,"QTD",{"$f":"DEMANDA!D23","v":0},"NÃO"]
[null,null,null,null,"QTD",{"$f":"DEMANDA!D24","v":0},"NÃO"]
[null,null,null,null,"QTD",{"$f":"DEMANDA!D25","v":0},"NÃO"]
[null,null,null,null,"QTD",{"$f":"DEMANDA!D26","v":0},"NÃO"]
[null,null,null,null,"QTD",{"$f":"DEMANDA!D27","v":0},"NÃO"]
[null,null,null,null,"QTD",{"$f":"DEMANDA!D28","v":0},"NÃO"]
[null,null,null,null,"QTD",{"$f":"DEMANDA!D29","v":0},"NÃO"]
[null,null,null,null,"QTD",{"$f":"DEMANDA!D30","v":0},"NÃO"]
[null,null,null,null,"QTD",{"$f":"DEMANDA!D31","v":0},"NÃO"]
[null,null,null,null,"QTD",{"$f":"DEMANDA!D32","v":0},"NÃO"]
[null,null,null,null,"QTD",{"$f":"DEMANDA!D33","v":0},"NÃO"]
[null,null,null,null,{"$f":"DEMANDA!E8","v":"EIXO\n(CV)"},{"$f":"DEMANDA!E9","v":0},"NÃO"]
[null,null,null,null,{"$f":"E81","v":"EIXO\n(CV)"},{"$f":"DEMANDA!E10","v":0},"NÃO"]
[null,null,null,null,{"$f":"E82","v":"EIXO\n(CV)"},{"$f":"DEMANDA!E11","v":0},"NÃO"]
[null,null,null,null,"EIXO\n(CV)",{"$f":"DEMANDA!E12","v":0},"NÃO"]
[null,null,null,null,"EIXO\n(CV)",{"$f":"DEMANDA!E13","v":2},"NÃO"]
[null,null,null,null,"EIXO\n(CV)",{"$f":"DEMANDA!E14","v":5},"NÃO"]
[null,null,null,null,"EIXO\n(CV)",{"$f":"DEMANDA!E15","v":10},"NÃO"]
[null,null,null,null,"EIXO\n(CV)",{"$f":"DEMANDA!E16","v":0},"NÃO"]
[null,null,null,null,"EIXO\n(CV)",{"$f":"DEMANDA!E17","v":0},"NÃO"]
[null,null,null,null,"EIXO\n(CV)",{"$f":"DEMANDA!E18","v":0},"NÃO"]
[null,null,null,null,"EIXO\n(CV)",{"$f":"DEMANDA!E19","v":0},"NÃO"]
[null,null,null,null,"EIXO\n(CV)",{"$f":"DEMANDA!E20","v":0},"NÃO"]
[null,null,null,null,"EIXO\n(CV)",{"$f":"DEMANDA!E21","v":0},"NÃO"]
[null,null,null,null,"EIXO\n(CV)",{"$f":"DEMANDA!E22","v":0},"NÃO"]
[null,null,null,null,"EIXO\n(CV)",{"$f":"DEMANDA!E23","v":0},"NÃO"]
[null,null,null,null,"EIXO\n(CV)",{"$f":"DEMANDA!E24","v":0},"NÃO"]
[null,null,null,null,"EIXO\n(CV)",{"$f":"DEMANDA!E25","v":0},"NÃO"]
[null,null,null,null,"EIXO\n(CV)",{"$f":"DEMANDA!E26","v":0},"NÃO"]
[null,null,null,null,"EIXO\n(CV)",{"$f":"DEMANDA!E27","v":0},"NÃO"]
[null,null,null,null,"EIXO\n(CV)",{"$f":"DEMANDA!E28","v":0},"NÃO"]
[null,null,null,null,"EIXO\n(CV)",{"$f":"DEMANDA!E29","v":0},"NÃO"]
[null,null,null,null,"EIXO\n(CV)",{"$f":"DEMANDA!E30","v":0},"NÃO"]
[null,null,null,null,"EIXO\n(CV)",{"$f":"DEMANDA!E31","v":0},"NÃO"]
[null,null,null,null,"EIXO\n(CV)",{"$f":"DEMANDA!E32","v":0},"NÃO"]
[null,null,null,null,"EIXO\n(CV)",{"$f":"DEMANDA!E33","v":0},"NÃO"]
[null,null,null,null,{"$f":"DEMANDA!F8","v":"TENSÃO \n(V)"},{"$f":"DEMANDA!F9","v":"220V"},"NÃO"]
[null,null,null,null,"TENSÃO \n(V)",{"$f":"DEMANDA!F10","v":"220V"},"NÃO"]
[null,null,null,null,"TENSÃO \n(V)",{"$f":"DEMANDA!F11","v":"220V"},"NÃO"]
[null,null,null,null,"TENSÃO \n(V)",{"$f":"DEMANDA!F12","v":"380V"},"NÃO"]
[null,null,null,null,"TENSÃO \n(V)",{"$f":"DEMANDA!F13","v":"220V"},"NÃO"]
[null,null,null,null,"TENSÃO \n(V)",{"$f":"DEMANDA!F14","v":"380V"},"NÃO"]
[null,null,null,null,"TENSÃO \n(V)",{"$f":"DEMANDA!F15","v":"380V"},"NÃO"]
[null,null,null,null,"TENSÃO \n(V)",{"$f":"DEMANDA!F16","v":0},"NÃO"]
[null,null,null,null,"TENSÃO \n(V)",{"$f":"DEMANDA!F17","v":0},"NÃO"]
[null,null,null,null,"TENSÃO \n(V)",{"$f":"DEMANDA!F18","v":0},"NÃO"]
[null,null,null,null,"TENSÃO \n(V)",{"$f":"DEMANDA!F19","v":0},"NÃO"]
[null,null,null,null,"TENSÃO \n(V)",{"$f":"DEMANDA!F20","v":0},"NÃO"]
[null,null,null,null,"TENSÃO \n(V)",{"$f":"DEMANDA!F21","v":0},"NÃO"]
[null,null,null,null,"TENSÃO \n(V)",{"$f":"DEMANDA!F22","v":0},"NÃO"]
[null,null,null,null,"TENSÃO \n(V)",{"$f":"DEMANDA!F23","v":0},"NÃO"]
[null,null,null,null,"TENSÃO \n(V)",{"$f":"DEMANDA!F24","v":0},"NÃO"]
[null,null,null,null,"TENSÃO \n(V)",{"$f":"DEMANDA!F25","v":0},"NÃO"]
[null,null,null,null,"TENSÃO \n(V)",{"$f":"DEMANDA!F26","v":0},"NÃO"]
[null,null,null,null,"TENSÃO \n(V)",{"$f":"DEMANDA!F27","v":0},"NÃO"]
[null,null,null,null,"TENSÃO \n(V)",{"$f":"DEMANDA!F28","v":0},"NÃO"]
[null,null,null,null,"TENSÃO \n(V)",{"$f":"DEMANDA!F29","v":0},"NÃO"]
[null,null,null,null,"TENSÃO \n(V)",{"$f":"DEMANDA!F30","v":0},"NÃO"]
[null,null,null,null,"TENSÃO \n(V)",{"$f":"DEMANDA!F31","v":0},"NÃO"]
[null,null,null,null,"TENSÃO \n(V)",{"$f":"DEMANDA!F32","v":0},"NÃO"]
[null,null,null,null,"TENSÃO \n(V)",{"$f":"DEMANDA!F33","v":0},"NÃO"]
[null,null,null,null,{"$f":"DEMANDA!G8","v":"POT. IND.\n(W)"},{"$f":"DEMANDA!G9","v":60},"NÃO"]
[null,null,null,null,"POT. IND.\n(W)",{"$f":"DEMANDA!G10","v":300},"NÃO"]
[null,null,null,null,"POT. IND.\n(W)",{"$f":"DEMANDA!G11","v":4500},"NÃO"]
[null,null,null,null,"POT. IND.\n(W)",{"$f":"DEMANDA!G12","v":60000},"NÃO"]
[null,null,null,null,"POT. IND.\n(W)",{"$f":"DEMANDA!G13","v":2208},"NÃO"]
[null,null,null,null,"POT. IND.\n(W)",{"$f":"DEMANDA!G14","v":3680},"NÃO"]
[null,null,null,null,"POT. IND.\n(W)",{"$f":"DEMANDA!G15","v":7360},"NÃO"]
[null,null,null,null,"POT. IND.\n(W)",{"$f":"DEMANDA!G16","v":0},"NÃO"]
[null,null,null,null,"POT. IND.\n(W)",{"$f":"DEMANDA!G17","v":0},"NÃO"]
[null,null,null,null,"POT. IND.\n(W)",{"$f":"DEMANDA!G18","v":0},"NÃO"]
[null,null,null,null,"POT. IND.\n(W)",{"$f":"DEMANDA!G19","v":0},"NÃO"]
[null,null,null,null,"POT. IND.\n(W)",{"$f":"DEMANDA!G20","v":0},"NÃO"]
[null,null,null,null,"POT. IND.\n(W)",{"$f":"DEMANDA!G21","v":0},"NÃO"]
[null,null,null,null,"POT. IND.\n(W)",{"$f":"DEMANDA!G22","v":0},"NÃO"]
[null,null,null,null,"POT. IND.\n(W)",{"$f":"DEMANDA!G23","v":0},"NÃO"]
[null,null,null,null,"POT. IND.\n(W)",{"$f":"DEMANDA!G24","v":0},"NÃO"]
[null,null,null,null,{"$f":"E146","v":"POT. IND.\n(W)"},{"$f":"DEMANDA!G25","v":0},"NÃO"]
[null,null,null,null,"POT. IND.\n(W)",{"$f":"DEMANDA!G26","v":0},"NÃO"]
[null,null,null,null,"POT. IND.\n(W)",{"$f":"DEMANDA!G27","v":0},"NÃO"]
[null,null,null,null,"POT. IND.\n(W)",{"$f":"DEMANDA!G28","v":0},"NÃO"]
[null,null,null,null,"POT. IND.\n(W)",{"$f":"DEMANDA!G29","v":0},"NÃO"]
[null,null,null,null,"POT. IND.\n(W)",{"$f":"DEMANDA!G30","v":0},"NÃO"]
[null,null,null,null,"POT. IND.\n(W)",{"$f":"DEMANDA!G31","v":0},"NÃO"]
[null,null,null,null,"POT. IND.\n(W)",{"$f":"DEMANDA!G32","v":0},"NÃO"]
[null,null,null,null,"POT. IND.\n(W)",{"$f":"DEMANDA!G33","v":0},"NÃO"]
[null,null,null,null,{"$f":"DEMANDA!H8","v":"FP"},{"$f":"DEMANDA!H9","v":0.92},"NÃO"]
[null,null,null,null,"FP",{"$f":"DEMANDA!H10","v":0.92},"NÃO"]
[null,null,null,null,"FP",{"$f":"DEMANDA!H11","v":1},"NÃO"]
[null,null,null,null,"FP",{"$f":"DEMANDA!H12","v":0.9},"NÃO"]
[null,null,null,null,"FP",{"$f":"DEMANDA!H13","v":0.96},"NÃO"]
[null,null,null,null,"FP",{"$f":"DEMANDA!H14","v":0.9},"NÃO"]
[null,null,null,null,"FP",{"$f":"DEMANDA!H15","v":0.9},"NÃO"]
[null,null,null,null,"FP",{"$f":"DEMANDA!H16","v":0},"NÃO"]
[null,null,null,null,"FP",{"$f":"DEMANDA!H17","v":0},"NÃO"]
[null,null,null,null,"FP",{"$f":"DEMANDA!H18","v":0},"NÃO"]
[null,null,null,null,"FP",{"$f":"DEMANDA!H19","v":0},"NÃO"]
[null,null,null,null,"FP",{"$f":"DEMANDA!H20","v":0},"NÃO"]
[null,null,null,null,"FP",{"$f":"DEMANDA!H21","v":0},"NÃO"]
[null,null,null,null,"FP",{"$f":"DEMANDA!H22","v":0},"NÃO"]
[null,null,null,null,"FP",{"$f":"DEMANDA!H23","v":0},"NÃO"]
[null,null,null,null,"FP",{"$f":"DEMANDA!H24","v":0},"NÃO"]
[null,null,null,null,"FP",{"$f":"DEMANDA!H25","v":0},"NÃO"]
[null,null,null,null,"FP",{"$f":"DEMANDA!H26","v":0},"NÃO"]
[null,null,null,null,"FP",{"$f":"DEMANDA!H27","v":0},"NÃO"]
[null,null,null,null,"FP",{"$f":"DEMANDA!H28","v":0},"NÃO"]
[null,null,null,null,"FP",{"$f":"DEMANDA!H29","v":0},"NÃO"]
[null,null,null,null,"FP",{"$f":"DEMANDA!H30","v":0},"NÃO"]
[null,null,null,null,"FP",{"$f":"DEMANDA!H31","v":0},"NÃO"]
[null,null,null,null,"FP",{"$f":"DEMANDA!H32","v":0},"NÃO"]
[null,null,null,null,"FP",{"$f":"DEMANDA!H33","v":0},"NÃO"]
[null,null,null,null,{"$f":"DEMANDA!I8","v":"CARGA\n(kW)"},{"$f":"DEMANDA!I9","v":6},"SIM"]
[null,null,null,null,"CARGA\n(kW)",{"$f":"DEMANDA!I10","v":18},"SIM"]
[null,null,null,null,"CARGA\n(kW)",{"$f":"DEMANDA!I11","v":36},"SIM"]
[null,null,null,null,"CARGA\n(kW)",{"$f":"DEMANDA!I12","v":120},"SIM"]
[null,null,null,null,"CARGA\n(kW)",{"$f":"DEMANDA!I13","v":17.664000000000001},"SIM"]
[null,null,null,null,"CARGA\n(kW)",{"$f":"DEMANDA!I14","v":14.719999999999999},"SIM"]
[null,null,null,null,"CARGA\n(kW)",{"$f":"DEMANDA!I15","v":22.08},"SIM"]
[null,null,null,null,"CARGA\n(kW)",{"$f":"DEMANDA!I16","v":"-"},"SIM"]
[null,null,null,null,"CARGA\n(kW)",{"$f":"DEMANDA!I17","v":"-"},"SIM"]
[null,null,null,null,"CARGA\n(kW)",{"$f":"DEMANDA!I18","v":"-"},"SIM"]
[null,null,null,null,"CARGA\n(kW)",{"$f":"DEMANDA!I19","v":"-"},"SIM"]
[null,null,null,null,"CARGA\n(kW)",{"$f":"DEMANDA!I20","v":"-"},"SIM"]
[null,null,null,null,"CARGA\n(kW)",{"$f":"DEMANDA!I21","v":"-"},"SIM"]
[null,null,null,null,"CARGA\n(kW)",{"$f":"DEMANDA!I22","v":"-"},"SIM"]
[null,null,null,null,"CARGA\n(kW)",{"$f":"DEMANDA!I23","v":"-"},"SIM"]
[null,null,null,null,"CARGA\n(kW)",{"$f":"DEMANDA!I24","v":"-"},"SIM"]
[null,null,null,null,"CARGA\n(kW)",{"$f":"DEMANDA!I25","v":"-"},"SIM"]
[null,null,null,null,"CARGA\n(kW)",{"$f":"DEMANDA!I26","v":"-"},"SIM"]
[null,null,null,null,"CARGA\n(kW)",{"$f":"DEMANDA!I27","v":"-"},"SIM"]
[null,null,null,null,"CARGA\n(kW)",{"$f":"DEMANDA!I28","v":"-"},"SIM"]
[null,null,null,null,"CARGA\n(kW)",{"$f":"DEMANDA!I29","v":"-"},"SIM"]
[null,null,null,null,"CARGA\n(kW)",{"$f":"DEMANDA!I30","v":"-"},"SIM"]
[null,null,null,null,"CARGA\n(kW)",{"$f":"DEMANDA!I31","v":"-"},"SIM"]
[null,null,null,null,"CARGA\n(kW)",{"$f":"DEMANDA!I32","v":"-"},"SIM"]
[null,null,null,null,"CARGA\n(kW)",{"$f":"DEMANDA!I33","v":"-"},"SIM"]
[null,null,null,null,{"$f":"DEMANDA!J8","v":"CARGA\n(kVA)"},{"$f":"DEMANDA!J9","v":6.5217391304347823},"SIM"]
[null,null,null,null,"CARGA\n(kVA)",{"$f":"DEMANDA!J10","v":19.565217391304348},"SIM"]
[null,null,null,null,"CARGA\n(kVA)",{"$f":"DEMANDA!J11","v":36},"SIM"]
[null,null,null,null,"CARGA\n(kVA)",{"$f":"DEMANDA!J12","v":133.33333333333334},"SIM"]
[null,null,null,null,"CARGA\n(kVA)",{"$f":"DEMANDA!J13","v":18.400000000000002},"SIM"]
[null,null,null,null,{"$f":"E210","v":"CARGA\n(kVA)"},{"$f":"DEMANDA!J14","v":16.355555555555554},"SIM"]
[null,null,null,null,"CARGA\n(kVA)",{"$f":"DEMANDA!J15","v":24.533333333333331},"SIM"]
[null,null,null,null,"CARGA\n(kVA)",{"$f":"DEMANDA!J16","v":"-"},"SIM"]
[null,null,null,null,"CARGA\n(kVA)",{"$f":"DEMANDA!J17","v":"-"},"SIM"]
[null,null,null,null,"CARGA\n(kVA)",{"$f":"DEMANDA!J18","v":"-"},"SIM"]
[null,null,null,null,"CARGA\n(kVA)",{"$f":"DEMANDA!J19","v":"-"},"SIM"]
[null,null,null,null,"CARGA\n(kVA)",{"$f":"DEMANDA!J20","v":"-"},"SIM"]
[null,null,null,null,"CARGA\n(kVA)",{"$f":"DEMANDA!J21","v":"-"},"SIM"]
[null,null,null,null,"CARGA\n(kVA)",{"$f":"DEMANDA!J22","v":"-"},"SIM"]
[null,null,null,null,"CARGA\n(kVA)",{"$f":"DEMANDA!J23","v":"-"},"SIM"]
[null,null,null,null,"CARGA\n(kVA)",{"$f":"DEMANDA!J24","v":"-"},"SIM"]
[null,null,null,null,"CARGA\n(kVA)",{"$f":"DEMANDA!J25","v":"-"},"SIM"]
[null,null,null,null,"CARGA\n(kVA)",{"$f":"DEMANDA!J26","v":"-"},"SIM"]
[null,null,null,null,"CARGA\n(kVA)",{"$f":"DEMANDA!J27","v":"-"},"SIM"]
[null,null,null,null,"CARGA\n(kVA)",{"$f":"DEMANDA!J28","v":"-"},"SIM"]
[null,null,null,null,"CARGA\n(kVA)",{"$f":"DEMANDA!J29","v":"-"},"SIM"]
[null,null,null,null,"CARGA\n(kVA)",{"$f":"DEMANDA!J30","v":"-"},"SIM"]
[null,null,null,null,"CARGA\n(kVA)",{"$f":"DEMANDA!J31","v":"-"},"SIM"]
[null,null,null,null,"CARGA\n(kVA)",{"$f":"DEMANDA!J32","v":"-"},"SIM"]
[null,null,null,null,"CARGA\n(kVA)",{"$f":"DEMANDA!J33","v":"-"},"SIM"]
[null,null,null,null,{"$f":"DEMANDA!B34","v":"TOTAL DE CARGA INSTALADA"},{"$f":"DEMANDA!I34","v":234.464},"SIM"]
[null,null,null,null,{"$f":"E231","v":"TOTAL DE CARGA INSTALADA"},{"$f":"DEMANDA!J34","v":254.70917874396136},"SIM"]
[null,null,null,null,{"$f":"DEMANDA!B35","v":"TOTAL DE CARGA MOTRIZ"},{"$f":"DEMANDA!I35","v":74},"SIM"]
[null,null,null,null,{"$f":"DEMANDA!B36","v":"OBSERVAÇÃO:"},{"$f":"DEMANDA!B37","v":"DADOS CONFIRMADOS PARA AVALIAÇÃO DA CONCESSIONÁRIA"},"SIM"]
[null,null,null,null,{"$f":"DEMANDA!B39","v":"OUTRAS CONSIDERAÇÕES:"},{"$f":"DEMANDA!B40","v":0},"NÃO"]
[null,null,null,null,{"$f":"DEMANDA!L5","v":"RAMO DE ATIVIDADE:"},{"$f":"DEMANDA!M5","v":"15 - Indústria metalúrgica"},"NÃO"]
[null,null,null,null,{"$f":"DEMANDA!L6","v":"MÉTODO DE CÁLCULO:"},{"$f":"DEMANDA!M6","v":"Utilizar  Fator de Demanda e Fator de Potencia conforme NDU 002"},"NÃO"]
[null,null,null,null,{"$f":"DEMANDA!L7","v":"TIPO DE LIGAÇÃO:"},{"$f":"DEMANDA!M7","v":"Trifásico"},"NÃO"]
[null,null,null,null,{"$f":"DEMANDA!O7","v":"RAMAL DE LIGAÇÃO:"},{"$f":"DEMANDA!Q7","v":"Cabo nu - 2AWG"},"NÃO"]
[null,null,null,null,{"$f":"DEMANDA!L8","v":"CARGA\n (kW)"},{"$f":"DEMANDA!L9","v":234.464},"SIM"]
[null,null,null,null,{"$f":"DEMANDA!M8","v":"FD"},{"$f":"DEMANDA!M9","v":0.6499616139213511},"SIM"]
[null,null,null,null,{"$f":"E241","v":"FD"},{"$f":"DEMANDA!N9","v":0},"NÃO"]
[null,null,null,null,{"$f":"DEMANDA!O8","v":"FP"},{"$f":"DEMANDA!O9","v":0.92},"SIM"]
[null,null,null,null,{"$f":"E243","v":"FP"},{"$f":"DEMANDA!P9","v":0},"NÃO"]
[null,null,null,null,{"$f":"DEMANDA!Q8","v":"DEMANDA\n (kVA)"},{"$f":"DEMANDA!Q9","v":165.64},"SIM"]
[null,null,null,null,{"$f":"DEMANDA!R8","v":"DEMANDA\n (kW)"},{"$f":"DEMANDA!R9","v":152.3888},"SIM"]
[null,null,null,null,{"$f":"DEMANDA!L10","v":"Fórmula Adotada para a Demanda:"},{"$f":"DEMANDA!N10","v":"DEMANDA (KVA) = ((234,46 x 0,65 = 152,39)) / 0,92"},"SIM"]
[null,null,null,null,{"$f":"DEMANDA!L11","v":"SE ADOTADA\n(kVA)"},{"$f":"DEMANDA!L13","v":225},"NÃO"]
[null,null,null,null,{"$f":"DEMANDA!M12","v":"ISOLAMENTO"},{"$f":"DEMANDA!M13","v":"XLPE /EPR/HEPR - 0,6/1kV"},"NÃO"]
[null,null,null,null,{"$f":"DEMANDA!P12","v":"CONDUTORES (mm²)"},{"$f":"DEMANDA!P13","v":"3#240(120)"},"SIM"]
[null,null,null,null,{"$f":"DEMANDA!R12","v":"(mm)"},{"$f":"DEMANDA!R13","v":100},"SIM"]
[null,null,null,null,{"$f":"DEMANDA!L14","v":"POSTE\n(daN)"},{"$f":"DEMANDA!L16","v":1000},"SIM"]
[null,null,null,null,{"$f":"DEMANDA!M14","v":"DISJUNTOR\n(A)"},{"$f":"DEMANDA!M16","v":350},"SIM"]
[null,null,null,null,{"$f":"DEMANDA!O14","v":"ELO FUSIVEL"},{"$f":"DEMANDA!O16","v":"10K"},"SIM"]
[null,null,null,null,{"$f":"DEMANDA!Q14","v":"RELAÇÃO DE TC"},{"$f":"DEMANDA!Q16","v":"250:5"},"SIM"]
[null,null,null,null,{"$f":"DEMANDA!R14","v":"MEDIDOR"},{"$f":"DEMANDA!R16","v":"Medição Trif. Indireta"},"SIM"]
[null,null,null,null,{"$f":"DEMANDA!L17","v":"OPÇÃO TARIFÁRIA"},{"$f":"DEMANDA!L19","v":"GRUPO A"},"NÃO"]
[null,null,null,null,{"$f":"DEMANDA!M17","v":"MODALIDADE TARIFÁRIA"},{"$f":"DEMANDA!M19","v":"HORO-SAZONAL AZUL"},"NÃO"]
[null,null,null,null,{"$f":"DEMANDA!Q18","v":"FORA PONTA"},{"$f":"DEMANDA!Q19","v":100},"NÃO"]
[null,null,null,null,{"$f":"DEMANDA!R18","v":"PONTA"},{"$f":"DEMANDA!R19","v":180},"NÃO"]